Workbook

Sheet Lammet
A1: 3.3.2b. Lammet
A4: Mittarit | E4: Vesi- ja rantakasvillisuuden (putkilokasvit ja/tai jäkälät ja/tai sammalet) edustavuus: lajisto ja kasvillisuuden rakenne (runsaus, peittävyys, lajien/lajiryhmien runsaussuhteet) | F4: Valuma-alueen tila | G4: Vedenpinnan taso ja vaihtelu | H4: Umpeenkasvu | I4: Ranta- ja lähivyöhykkeen luonnontilaa muuttaneiden tekijöiden vaikutus (esim. metsä- tai suo-ojat, rantametsien hakkuut, hakkuualueiden auraus tai äestys, rakentaminen) | J4: Haitalliset vieraslajit | K4: Vesirakentaminen ja pohjan muokkaus (esim. ruoppaus, läjitys)
A5: Mittarin suhteellinen painokerroin | E5: 2 | F5: 2 | G5: 2 | H5: 2 | I5: 2 | J5: 2 | K5: 1
A7: Kuvionro | B7: Apusarake | C7: LuTu-luontotyyppi (koodi) | D7: Kuvion pinta-ala, ha | E7: Mittarin arvo (0,1 -1,0) | F7: Mittarin arvo (0,1 -1,0) | G7: Mittarin arvo (0,1 -1,0) | H7: Mittarin arvo (0,1 -1,0) | I7: Mittarin arvo (0,1 -1,0) | J7: Mittarin arvo (0,1 -1,0) | K7: Mittarin arvo (0,1 -1,0) | L7: Luonnonarvovastaavuus | M7: Luonnonarvohehtaarit | N7: METSO-kohde | O7: Natura-TYYPPI | P7: Natura edustavuus | Q7: METE (ML 10 §) | R7: vesilakikohde (VL 11 §) | S7: Uhex | T7: Muuta erityistä, esim lajisto
A8: 140 | B8: Ylimmäinen Korvalampi | C8: V02.04 Suolammet | D8: 4.9 | E8: 1 | F8: 0.7 | G8: 0.8 | H8: 1 | I8: 0.7 | J8: 1 | K8: 0.9 | L8: =(2*SUM(E8:J8)+SUM(K8:K8))/(2*COLUMNS(E8:J8)+COLUMNS(K8:K8)) -> 0.8692307692 | M8: =(PRODUCT(D8,L8)) -> 4.259230769 | N8: ei | O8: Humuspitoiset järvet ja lammet (3160) | P8: hyvä | Q8: ei | R8: ei | S8: NT | T8: Länsireunan nevalaide hyvin kehittynyt, itärannalla yksityinen laavu, laituri ja uimapaikka. Eteläreunalla kapea, lajistoltaan tyypillinen laide. Ojituksista kuormitusta, tumma, humuspitoinen vesi. Ulpukkaa, nevalaiteiden kasvillisuus tyypillinen. Vedenpinnan tasossa ollut mahdollisesti lievää vaihtelua (kuolleet nuoret puut nevalaiteella; majava?).
A9: 180 | B9: Alimmainen Korvalampi | C9: V02.04 Suolammet | D9: 4.9 | E9: 0.9 | F9: 0.6 | G9: 1 | H9: 1 | I9: 0.6 | J9: 1 | K9: 0.9 | L9: =(2*SUM(E9:J9)+SUM(K9:K9))/(2*COLUMNS(E9:J9)+COLUMNS(K9:K9)) -> 0.8538461538 | M9: =(PRODUCT(D9,L9)) -> 4.183846154 | N9: ei | O9: Humuspitoiset järvet ja lammet (3160) | P9: hyvä | Q9: ei | R9: ei | S9: NT | T9: Pohjoisrannan nevalaide melko hyvin kehittynyt, itärannalla pelastusopiston harjoitusalueen laituri ym. muokattua rantaa. Vesi tummaa, humuspitoista, ulpukkaa vedessä ja lähellä korvapuron suuta suursaroja, sekä hieman järviruokoa. Ympäröivillä metsäalueilla ojituksia. Yhä edustava.
A10: 307 | B10: Heinälampi | C10: V02.04 Suolammet | D10: 0.7 | E10: 0.7 | F10: 0.5 | G10: 0.9 | H10: 1 | I10: 0.6 | J10: 1 | K10: 0.9 | L10: =(2*SUM(E10:J10)+SUM(K10:K10))/(2*COLUMNS(E10:J10)+COLUMNS(K10:K10)) -> 0.7923076923 | M10: =(PRODUCT(D10,L10)) -> 0.5546153846 | N10: ei | O10: Humuspitoiset järvet ja lammet (3160) | P10: hyvä | Q10: ei | R10: kyllä | S10: NT | T10: Louhos, ojitukset ja harvennushakkuut valuma-alueella ovat heikentäneet Heinälammen luonnontilaa. Merkkejä lievästä rehevöitymisestä. Ulpukkaa ja lummetta, sekä mahdollisesti vitoja lammessa. Suolaide ja luhdan kasvillisuus hyvin kehittyneitä ja yhä edustavia. Rimpivesiherne runsas luhdassa.
A11: 319 | B11: Poskilampi | C11: V02.03 Metsälammet | D11: 4.6 | E11: 1 | F11: 0.2 | G11: 1 | H11: 1 | I11: 0.7 | J11: 1 | K11: 1 | L11: =(2*SUM(E11:J11)+SUM(K11:K11))/(2*COLUMNS(E11:J11)+COLUMNS(K11:K11)) -> 0.8307692308 | M11: =(PRODUCT(D11,L11)) -> 3.821538462 | N11: ei | O11: Humuspitoiset järvet ja lammet (3160) | P11: hyvä | Q11: ei | R11: ei | S11: NT | T11: Edustava, rannoiltaan luonnontilaisen kaltainen metsälampi. Vesi kirkasta, tummaa, näkyvyys noin 1,5 m. Lumpeita, ulpukkaa, uistinvitaa vähän. Rantavyöhykkeessä paikoin hieman rantakukkaa, suoputkea, jouhisaraa, kurjenjalkaa. Kasvillisuus niukkaa. Rantavyöhyke melko luonnontilainen, mutta pohjoisrannalla heti kapean vyöhykkeen takana tehty hakkuu, jossa nyt nuorta taimikkoa. Koilliskulmalla rannalla epämääräisiä letkuja vedessä, jotka johtavat tyhjien kanisterien luo. Muutama oja, eteläkulmalla melko leveä jossa virtaa hitaasti Poskilampeen punasakkaista seisovaa ja sameaa vettä ja ojan suulla vehkakasvustoa.

Sheet Lähteiköt
A1: 4.3.1. Lähteiköt
A4: Mittarit | F4: Lähdevaikutteinen pintaala (sisältäen erilaiset allikot, hetteiköt, tihkupinnat yms. sekä niiden muodostamat kompleksit | G4: Lähteikön tilaan vaikuttava ihmistoiminta (esim. perkaukset, ojitukset, vedenottoon liittyvät rakenteet kuten kaivaminen, kaivonrenkaat ja kiveämiset) | H4: Antoisuus | I4: Pohjaveden purkaumien sijainti | J4: Pintavesivaikutus ja veden laatu | K4: Lähiympäristön tilaan vaikuttava ihmistoiminta (esim. maa-ainesten otto, pellonraivaus, tiestö, metsätalous)
A5: Mittarin suhteellinen painokerroin | F5: 2 | G5: 1 | H5: 1 | I5: 1 | J5: 1 | K5: 1
C7: Tee tarvitatessa usempi rivi samalle kuviolle, jos useita lähteikköluontotyyppejä!
A8: Kuvionro | B8: Apusarake | C8: LuTu-luontotyyppi (koodi) | D8: LuTu-tyypin % kuviosta | E8: Kuvion pinta-ala, ha | F8: Mittarin arvo (0,1 -1,0) | G8: Mittarin arvo (0,1 -1,0) | H8: Mittarin arvo (0,1 -1,0) | I8: Mittarin arvo (0,1 -1,0) | J8: Mittarin arvo (0,1 -1,0) | K8: Mittarin arvo (0,1 -1,0) | L8: Luonnonarvovastaavuus | M8: Luonnonarvohehtaarit | N8: METSO-kohde | O8: Natura-TYYPPI | P8: Natura edustavuus | Q8: METE (ML 10 §) | R8: vesilakikohde (VL 11 §) | S8: Uhex | T8: Muuta erityistä, esim lajisto
A9: 123 | B9: Korpelan tihkupintalähde, kuivunut, vielä edustava | C9: V03.01 Lähteiköt | D9: 99 | E9: 0.3 | F9: 0.4 | G9: 0.6 | H9: 0.5 | I9: 0.8 | J9: 1 | K9: 0.9 | L9: =(2*SUM(F9:F9)+SUM(G9:K9))/(2*COLUMNS(F9:F9)+COLUMNS(G9:K9)) -> 0.6571428571 | M9: =(PRODUCT(E9,L9)) -> 0.1971428571 | N9: Kyllä | O9: Lähteet ja lähdesuot (7160) | P9: merkittävä | Q9: Kyllä | R9: Kyllä | S9: VU | T9: "Myös luonnontilansa osittain menettäneet lähteiköt, esimerkiksi sellaiset joissa on vanhoja vedenottoon liityviä rakenteita, voivat olla edustavia lajistoltaan" (Airaksinen & Karttunen 2001). Korpinurmikka (NT, RT) ja hentosara (NT), kevätlinnunsilmä paikoin runsas. Lähiympäristö lähes luonnontilainen, yksi vanha rengaskaivo kauempana lähteikön reunalla, ojassa, Hepomäen louhos kuivattanut.
A10: 158 | B10: Korvaharju 267 tihkupintalähde, rengaskaivo | C10: V03.01 Lähteiköt | D10: 100 | E10: 0.1 | F10: 0.5 | G10: 0.3 | H10: 0.4 | I10: 0.3 | J10: 1 | K10: 0.8 | L10: =(2*SUM(F10:F10)+SUM(G10:K10))/(2*COLUMNS(F10:F10)+COLUMNS(G10:K10)) -> 0.5428571429 | M10: =(PRODUCT(E10,L10)) -> 0.05428571429 | N10: ei | O10: Lähteet ja lähdesuot (7160) | P10: ei merkittävä | Q10: ei | R10: ei | S10: VU | T10: Ei tietoa millainen ollut purkautuma ennen kaivoa. Kaivon NW-puolella pieni suora "ränni" luoteeseen kohti rantaa. Mahdollisesti noro, jonka uomaa muokattu?Palautumassa luonnontilaisen kaltaiseksi, suojaava puusto ja muu kasvillisuus. Käytössä oleva rengaskaivo, josta letku rantaa kohti. Hieman vettä purkautuu edelleen kaivon alapuolelta rinteeseen. Pienialainen, mutainen tihkupinta. Lehväsammalia, suokeltto, rönsyleinikki, ojakellukka, palmusammal. Ku, hale runsas, pi, käenkaali, hiirenporras, metsäimarre, sudenmarja, oravanmarja, lehtokorte, ahomansikka, lehtoruusukesammal.
A11: 183 | B11: Liukon tihkupintalähde ja noro | C11: V03.01 Lähteiköt | D11: 90 | E11: 0.8 | F11: 0.9 | G11: 0.8 | H11: 1 | I11: 1 | J11: 1 | K11: 0.6 | L11: =(2*SUM(F11:F11)+SUM(G11:K11))/(2*COLUMNS(F11:F11)+COLUMNS(G11:K11)) -> 0.8857142857 | M11: =(PRODUCT(E11,L11)) -> 0.7085714286 | N11: Kyllä | O11: Lähteet ja lähdesuot (7160) | P11: erinomainen | Q11: Kyllä | R11: Kyllä | S11: VU | T11: Tihkupintainen lähde, pinta paikoin hyllyvän upottava. Kasvillisuus edustava, mm. pikkuvelholehteä runsaasti. Hale valtainen, tuomi, mustaherukka, vadelma, hiirenporras, korpi-imarre, suokeltto, kurjenjalka, suo- ja korpiorvokki, metsä- ja lehtokorte, leskenlehti, käenkaali,ojakellukka, rentukka, karhunputki, mesiangervo, lehväsammalet. Ympäröivä kasvillisuus lehtoa, jossa vielä kookkaita puita, mutta ympäröiviä metsäalueita käsitelty. Kuviolla myös noro, jonka uoma oli kartoitusajankohtana kuiva, mutta jossa kasvoi lehväsammalia ja isokastesammalta, sekä hiirenporrasta, metsäalvejuurta, lehtokortetta, mustaherukkaa, korpikastikkaa, korpiorvokkia, korpi-imarretta ja tuomea. Noro kulkee lähteen eteläpuolelta itäkoilliseen alas rinnettä. Viereinen metsä harvennettu hiljan reippaasti. ULKOPUOLELLA
A12: 317 | B12: Tihkupintainen lähde | C12: V03.01 Lähteiköt | D12: 100 | E12: 0.1 | F12: 0.9 | G12: 0.8 | H12: 1 | I12: 1 | J12: 0.9 | K12: 0.7 | L12: =(2*SUM(F12:F12)+SUM(G12:K12))/(2*COLUMNS(F12:F12)+COLUMNS(G12:K12)) -> 0.8857142857 | M12: =(PRODUCT(E12,L12)) -> 0.08857142857 | N12: Kyllä | O12: Lähteet ja lähdesuot (7160) | P12: erinomainen | Q12: Kyllä | R12: Kyllä | S12: VU | T12: Tihkupuntainen lähde ja sen ympärille muodostunut lähdelehtokorpi. Mutainen, hirvet etsineet vettä, kartoitus hyvin kuivana ajankohtana. Kevätlinnunsilmä runsas, samoin leskenlehti. Suokeltto, suo-orvokki, ojakellukka, hiirenporras, mesiangervo, lähdelehväsammal, palmusammal, rönsyleinikki, käenkaali, karhunputki, lehtokuusama, vadelma, iso- ja metsäalvejuuri. Erirakenteinen puusto. Lähteikön lähistöllä tehty metsänhoitotoimia, kuvion lounaisreuna talousmetsän puolella. Suojavyöhyke voisi olla leveämpi.
E13: =SUM(E9:E12) -> 1.3

Sheet Virtavedet
A1: 5.3.1. Virtavedet
A4: Mittarit | D4: Uoman rakennepiirteet luontotyypille ja paikallisolosuhteille ominaisella tavalla (esim. vaihteleva raekoko, koskija suvantoalueet, mutkittelevuus, meanderointi) ja niiden muuttuminen ihmistoiminnan vuoksi (esim. perkaukset, suoristukset, rakentaminen) | E4: Valuma-alueen tila | F4: Kasvillisuuden (putkilokasvit ja/tai sammalet) edustavuus: lajisto ja kasvillisuuden rakenne (runsaus, peittävyys, lajien/lajiryhmien runsaussuhteet) | G4: Säännöstely | H4: Esteettömyys (padot, tierummut ja muut esteet) | I4: Ranta- ja lähivyöhykkeen tilaa muuttaneen ihmistoiminnan vaikutus (esim. ojitukset, rantametsien hakkuut, hakkuualueiden auraus tai äestys, rakentaminen)
A5: Mittarin suhteellinen painokerroin | D5: 2 | E5: 2 | F5: 1 | G5: 1 | H5: 1 | I5: 1
A7: Kuvionro | B7: LuTu-luontotyyppi (koodi) | C7: Kuvion pinta-ala, ha | D7: Mittarin arvo (0,1 -1,0) | E7: Mittarin arvo (0,1 -1,0) | F7: Mittarin arvo (0,1 -1,0) | G7: Mittarin arvo (0,1 -1,0) | H7: Mittarin arvo (0,1 -1,0) | I7: Mittarin arvo (0,1 -1,0) | J7: Ekologinen tila/Luonnonarvovastaavuus | K7: Luonnonarvohehtaarit | L7: METSO kohde | M7: NATURA-tyyppi | N7: Natura-edustavuusluokka | O7: METE (ML 10 §) | P7: vesilakikohde (VL 11 §) | Q7: LSL 64-65 § kohde | R7: Uhex | S7: Muuta
A8: 10 | B8: Havumetsävyöhykkeen latvapurot V04.02.02 | C8: 0.13 | D8: 0.7 | E8: 0.4 | F8: 0.5 | G8: 0.9 | H8: 0.9 | I8: 0.2 | J8: =(2*SUM(D8:E8)+SUM(F8:I8))/(2*COLUMNS(D8:E8)+COLUMNS(F8:I8)) -> 0.5875 | K8: =(PRODUCT(C8,J8)) -> 0.076375 | L8: ei | M8: pikkujoet ja purot (3260) | N8: merkittävä, poikkeama ihmistoiminnan aiheuttama | O8: ei luonnontilainen/luonnontilaisenkaltainen ympäristö | P8: ei | Q8: ei | R8: NT | S8: Uoma on luonnontilainen eli siihen ei ole varsinaisesti koskettu mutta ympäristö kokonaan muuttunut, uomassa hiukan vettä ja näkyy myös tyypillisiä pieniä "suvantopaikkoja" ja kiemurteleva. Ns virallinen valuma-alue on iso yli 10 km2 mutta käytännössä ko. pienen uoman reaalinen valuma-alue on hyvin pieni
A9: 86 | B9: Havemetsävyöhykkeen norot V04.02.01 | C9: 0.5 | D9: 0.7 | E9: 0.5 | F9: 0.9 | G9: 0.8 | I9: 0.8 | J9: 0.6125 | K9: 0.30625 | L9: ei | M9: ei | N9: ei | O9: Lähteiden, purojen ja pysyvän vedenjuoksu-uoman muodostavien norojen sekä pienten lampien välittömät lähiympäristöt | P9: Luonnontilainen tai luonnontilaisen kaltainen noro | Q9: ei | R9: DD | S9: Uomaa on varmasti joskus oiottu ja kaivettu, mutta se on paikoin hyvin luonnontilaisen oloinen. Kartoitushetkellä iso osa uomasta oli kuiva. Uomassa on paikoin isoja kiviä sekä myös lahopuuta. Uoman rannat ovet myös edustavia puustoltaan ja kasvillisuudeltaan (lehtoa). Uoma on leveä eli ei kovin noromainen vaan ennemminkin puromainen. Liittyy METSO-kohteeseen (kuvio 67)
A10: 111 | B10: V04.02.02 Havumetsävyöhykkeen norot | C10: 0.3 | D10: 0.7 | E10: 0.5 | F10: 1 | G10: 0.7 | H10: 0.8 | I10: 0.9 | J10: 0.725 | K10: 0.2175 | L10: ei | M10: ei | N10: ei | O10: Lähteiden, purojen ja pysyvän vedenjuoksu-uoman muodostavien norojen sekä pienten lampien välittömät lähiympäristöt | P10: Kyllä, luonnontilainen tai luonnontilaisen kaltainen noro | Q10: ei | R10: DD | S10: Uoma on joskus kaivettu ojaksi, varsinkin Purolan lähellä vielä näkyvissä hieman kaivuuvalleja. Tällä jaksolla palautunut pitkälti luonnontilaisen kaltaiseksi, ainoat rummut jakson alussa, jossa noro virtaa Purolasta, sekä radan ali kuviolle. Uoma noin 1-2,5 m leveä ja vaihdellen noin 0,5-1 m syvä, loivasti mutkitteleva, osin suorahko, haaroo paikoin. Uoma suurelta osin hyvinkin kivinen,kivet sammaleisia, pyöreähköjä, paikoin hiekkaa ja hienompaa ainesta. Runsas kasvillisuus ja puusto varjostaa uomaa koko jaksolla, lajisto tyypillinen. Lahopuuta melko runsaasti uomassa ja sen ympärillä. Isonäkinsammalta ja lehväsammalia uomassa.Vesi kirkasta, vähän uoman pohjalla, virtaa verkkaisesti.liittyy metsokohteeseen (kuviot 110 ja 112)
A11: 147 | B11: V04.02.04 Havumetsävyöhykkeen purot ja pikkujoet | C11: 0.1 | D11: 0.5 | E11: 0.5 | F11: 0.8 | G11: 1 | H11: 1 | I11: 0.6 | J11: 0.675 | K11: 0.0675 | L11: ei | M11: Pikkujoet ja purot (3260) | N11: hyvä, poikkeama ihmistoiminnan aiheuttama | O11: Lähteiden, purojen ja pysyvän vedenjuoksu-uoman muodostavien norojen sekä pienten lampien välittömät lähiympäristöt | P11: ei | Q11: ei | R11: VU | S11: Uoma leveähkö, suorahko, syvä, runsaasti lahopuuta uomassa (myös järeää), isonäkinsammalta, vesitähtiä, suursaroja, vehkaa ja nuijapäitä uomassa, ympäröivä kasvillisuus luonnontilaisen kaltaista, suistoa kohti rehevöityvää, tummaa humuksen värjäämää vettä runsaasti, virtaa verkkaisesti, useita suoria sivuojia, joissa runsaasti kasvillisuutta. Rantapenkassa suurehko pesäkolo, jonka päällä jätös (mahdollisesti saukon?). liittyy metsokohteeseen (kuvio 146)
A12: 151 | B12: V04.02.04 Havumetsävyöhykkeen purot ja pikkujoet | C12: 0.1 | D12: 0.7 | E12: 0.6 | F12: 0.9 | G12: 1 | H12: 1 | I12: 0.7 | J12: 0.775 | K12: 0.0775 | L12: ei | M12: Pikkujoet ja purot (3260) | N12: hyvä, poikkeama ihmistoiminnan aiheuttama | O12: Lähteiden, purojen ja pysyvän vedenjuoksu-uoman muodostavien norojen sekä pienten lampien välittömät lähiympäristöt | P12: ei | Q12: ei | R12: VU | S12: Uoma 2,5-4 m leveä, paikoin suora, kaivuuvalli havaittavissa ja paikoin kevyesti mutkitteleva. Uoman pohjalla hiekkaa, kiviä, soraa, runsaasti lahopuuta ja varjostavaa puustoa & kasvillisuutta. Vesi virtaa paikoin verkkaisesti, paikoin reippaammin , kirkasta, mutta humuksen tummaksi värjäämää. Suursaroja, vesitähteä, isonäkinsammalta, terttualpia, rantaminttua, vehkaa, pohjoisosassa suursaniaisia.
A13: 171 | B13: V04.02.04 Havumetsävyöhykkeen purot ja pikkujoet | C13: 0.4 | D13: 0.8 | E13: 0.6 | F13: 0.7 | G13: 1 | H13: 0.9 | I13: 0.7 | J13: 0.7625 | K13: 0.305 | L13: ei | M13: Pikkujoet ja purot (3260) | N13: Erinomainen | O13: Kyllä, puron välitön lähiympäristö | P13: ei | Q13: ei | R13: VU | S13: Sivuojia, silti edustava. Ainoa rumpu kuvion lopussa, missä Korvapuro alittaa Korvaharjun tien. Uomassa leveys ja syvyysvaihtelua, mutkittelua, sekä koskia ja suvantoja. Uoman pohja vaiheleva, kivikot sammalpeitteisiä. Varjostava puusto ja kasvillisuus, hyvin lahopuuta ja paikoin lehtoryteikkköä.Ympäröivä kuvio 170 METSO-kohde
A14: 241 | B14: V04.02.04 Havumetsävyöhykkeen purot ja pikkujoet | C14: 1.1 | D14: 0.8 | E14: 0.6 | F14: 0.9 | G14: 1 | H14: 1 | I14: 0.7 | J14: 0.8 | K14: 0.88 | L14: ei | M14: Pikkujoet ja purot (3260) | N14: Erinomainen | O14: Kyllä, puron välitön lähiympäristö | P14: ei | Q14: ei | R14: VU | S14: Pari sivuojaa, pohjoispäätä muokattu aiemmin. Suurelta osin, varsinkin keskiosiltaan hyvin luonnontilainen. Vesi on kirkasta, koskia, suvantoja. Uomassa leveys ja syvyysvaihtelua, sekä mutkittelua. Pohjalla vaihdellen eri kokoisia kiviä, hiekkaa, soraa, mutaaa. Suistoalueella puro haarautuu, jokunen juolua jäänyt mahdollisesta majavien tulvituksesta. Pohjoisosassa ollut selvästi majavapato ja majavien tulvittama metsä. Uomassa kasvoi paikoin mm. suursaroja, terttualpia, keltakurjenmiekkaa, korpikastikkaa, rentukkaa, vehkaa, ulpukkaa, isonäkinsammalta ja raatetta.
A15: 255 | B15: V04.02.02 Havumetsävyöhykkeen norot | C15: 0.1 | D15: 1 | E15: 0.8 | F15: 1 | G15: 1 | H15: 0.7 | I15: 0.9 | J15: 0.9 | K15: 0.09 | L15: ei | M15: ei | N15: ei | O15: Kyllä, noron välitön lähiympäristö | P15: kyllä | Q15: ei | R15: DD | S15: Lähes luonnontilainen, Karttulantien ali pohjoisesta laskeutuva noro rinnenotkelmassa. Mahdollinen Karttulantien ali kulkevan rumpuputken suu ei ollut tiheän kasvillisuuden vuoksi näkyvillä, muutoin esteetön kulku. Valuma-aluetta vain vähäisesti muutettu: latvaosissa hakkuita, alempana uoman varrella lähde.
A16: 283 | B16: V04.02.04 Havumetsävyöhykkeen purot ja pikkujoet | C16: 1.5 | D16: 1 | E16: 0.5 | F16: 1 | G16: 1 | H16: 0.8 | I16: 0.9 | J16: 0.8375 | K16: 1.25625 | L16: ei | M16: Pikkujoet ja purot (3260) | N16: erinomainen | O16: ei | P16: ei | Q16: ei | R16: VU | S16: Pitkälti luonnontilainen, edustava, samoin kasvillisuus. Valuma-alueella sijaitsee mm. kaatopaikka ja pelastusopiston harjoitusalue. Liittyy METSO-kohteeseen
A17: 467 | B17: V04.02.04 Havumetsävyöhykkeen purot ja pikkujoet | C17: 1 | D17: 1 | E17: 0.5 | F17: 1 | G17: 1 | H17: 0.8 | I17: 0.9 | J17: 0.8375 | K17: 0.8375 | L17: ei | M17: pikkujoet ja purot (3260) | N17: Erinomainen | O17: kyllä | P17: ei | Q17: ei | R17: VU | S17: Myllyjoen varren osuus, joka metsälakikohteena ja METSO-kohteena. Pitkälti luonnontilainen, edustava, samoin kasvillisuus. Valuma-alueella sijaitsee mm. kaatopaikka ja pelastusopiston harjoitusalue.
A18: 289 | B18: V04.02.04 Havumetsävyöhykkeen purot ja pikkujoet | C18: 0.5 | D18: 0.6 | E18: 0.3 | F18: 0.8 | G18: 1 | H18: 0.6 | I18: 0.6 | J18: 0.6 | K18: 0.3 | L18: ei | M18: Pikkujoet ja purot (3260) | N18: hyvä, poikkeama ihmistoiminnan aiheuttama | O18: kyllä | P18: ei | Q18: ei | R18: VU | S18: Valuma-alue on hieman alle 10 neliökilometria, mutta uomassa oli vettä hyvin kuivana ajankohtana elokuussa ja kalakulun katsotaan olevan hyvinkin mahdollista, joten virtavesi katsotaan puroksi. Viereinen kaatopaikka, sekä aivan uoman tuntumassa suoritetut hakkuut ovat heikentäneet luonnontilaa.
A19: 291 | B19: V04.02.02 Havumetsävyöhykkeen norot | C19: 0.2 | D19: 0.7 | E19: 0.6 | F19: 0.9 | G19: 1 | H19: 1 | I19: 0.8 | J19: 0.7875 | K19: 0.1575 | L19: ei | M19: ei | N19: ei | O19: kyllä | P19: kyllä | Q19: ei | R19: DD | S19: Noron yläjuoksulla uoma perattu ojaksi, mutta kuviolla pitkälti luonnontilaisen kaltainen, kapea. Kartoitusajankohtaan suurelta osin kuiva. Ympäröivä kuvio on METSO-kohteena.
A20: 292 | B20: V04.02.02 Havumetsävyöhykkeen norot | C20: 0.1 | D20: 0.5 | E20: 0.5 | F20: 1 | G20: 1 | H20: 1 | I20: 0.8 | J20: =(2*SUM(D20:E20)+SUM(F20:I20))/(2*COLUMNS(D20:E20)+COLUMNS(F20:I20)) -> 0.725 | K20: =(PRODUCT(C20,J20)) -> 0.0725 | L20: ei | M20: ei | N20: ei | O20: kyllä | P20: kyllä | Q20: ei | R20: DD | S20: Noro lähtee Kaatopaikantien reunamilta jätteenkäsittely/maanläjitysalueen kulmalta ja sen uoman yläosa on liettynyt, uoma hävinnyt ja vedessä sakeaa oranssia rautasaostumaa. Alempana uoma luonnontilaisen kaltainen ja vesi kirkasta.
A21: 293 | B21: V04.02.02 Havumetsävyöhykkeen norot | C21: 0.5 | D21: 0.8 | E21: 0.7 | F21: 1 | G21: 1 | H21: 0.9 | I21: 0.6 | J21: 0.8125 | K21: 0.40625 | L21: ei | M21: ei | N21: ei | O21: kyllä | P21: kyllä | Q21: ei | R21: DD | S21: Edustava pieni noro ja rikas noronvarsilehdon kasvillisuus uomaosuuden yläjuoksulla. Suurin osa uomaa kuitenkin todennäköisesti muokattu, mutta palautumassa luonnontilaan (ollut peltoa 1980-luvulle). Osa kuviosta tulkittu.
A22: 298 | B22: V04.02.02 Havumetsävyöhykkeen norot | C22: 0.2 | D22: 0.4 | E22: 0.3 | F22: 1 | G22: 1 | H22: 1 | I22: 0.8 | J22: 0.65 | K22: 0.13 | L22: ei | M22: ei | N22: ei | O22: kyllä | P22: kyllä | Q22: ei | R22: DD | S22: Uomaa muokattu, palautumassa, mutta kärsiiviereisestä kaatopaikasta ja yläjuoksun hakkuista. Laskee Heinälamminojaan. Uomassa paljon hiekkkaa ja vähän roskaa. Kasvillisuus edustava, puusto erirakenteista, osin vanhaa, osin nuorempaa.
A23: 303 | B23: V04.02.04 Havumetsävyöhykkeen purot ja pikkujoet | C23: 0.5 | D23: 0.7 | E23: 0.4 | F23: 0.7 | G23: 1 | H23: 0.5 | I23: 0.5 | J23: 0.6125 | K23: 0.30625 | L23: ei | M23: Pikkujoet ja purot (3260) | N23: merkittävä, poikkeama ihmistoiminnan aiheuttama | O23: kyllä | P23: ei | Q23: ei | R23: VU | S23: Heinälamminojan luonnontilaisen kaltaiset uomaosuudet katsotaan puroiksi, sillä vettä runsaasti ja kalankulku merkittvävssä määrin mahdollista, vaikka valuma-alue onkin alle 10 neliökilometriä. Osuus tulkittu. Ilmakuvissa erottuu yhä luontainen, meanderoiva uoma ja luhtainen lähiympäristö. Ojitukset ja louhostoiminta kuitenkin selkeästi heikentäneet luonnontilaa. Louhoksen läpi kulkeva huoltotie kulkee uoman päältä. Ennallistettavaissa.
A24: 305 | B24: V04.02.02 Havumetsävyöhykkeen norot | C24: 0.1 | D24: 0.9 | E24: 0.6 | F24: 0.9 | G24: 1 | H24: 1 | I24: 0.6 | J24: 0.8125 | K24: 0.08125 | L24: ei | M24: ei | N24: ei | O24: kyllä | P24: kyllä | Q24: ei | R24: DD | S24: Luonnontilaisen kaltainen pieni noro rinteessä. Yläjuoksulla uomaa muokattu harvennushakkuiden yhteydessä (viereinen kuvio). Mahdollisesti purokinnassammalta, tai muuta Scapania-suvun sammalta noron kivillä paikoin runsaasti. Kartoitusajankohtana uoma kuiva.
A25: 310 | B25: V04.02.04 Havumetsävyöhykkeen purot ja pikkujoet | C25: 0.3 | D25: 0.7 | E25: 0.8 | F25: 0.9 | G25: 1 | H25: 1 | I25: 0.7 | J25: 0.825 | K25: 0.2475 | L25: ei | M25: Pikkujoet ja purot (3260) | N25: erinomainen | O25: kyllä | P25: ei | Q25: ei | R25: VU | S25: Heinälamminojan luonnontilaisen kaltainen uomaosuus. Vierellä vanhoja, leveitä ojituksia, jotka eivät kuitenkaan ole kuivattaneet juuri aluetta ja vanha uoma myös ennallaan. Suopuro tässäkohdin. Länsiranta puustoinen, itärannalla puustoista ja avosuota. Vesi syvää, tummaa, kirkasta, verkkaalleen virtaavaa. Uoma 1,5-3 m leveä, meanderoiva, paikoin suorempi. Vedessä vesisammaleita, ulpukkaa, palpakoita, suursaroja, raatetta, vehkaa, mahdollisesti ärviöitä tai vesisammalia.
A26: 313 | B26: V04.02.04 Havumetsävyöhykkeen purot ja pikkujoet | C26: 0.3 | D26: 0.7 | E26: 0.8 | F26: 0.9 | G26: 1 | H26: 1 | I26: 0.7 | J26: 0.825 | K26: 0.2475 | L26: ei | M26: Pikkujoet ja purot (3260) | N26: erinomainen | O26: kyllä | P26: ei | Q26: ei | R26: VU | S26: Heinälamminojan luonnontilaisen kaltainen uomaosuus. Vierellä vanhoja, leveitä ojituksia, jotka eivät kuitenkaan ole kuivattaneet alkuperäistä uomaa. Vesi kirkasta, verkkaalleen etenevää, ei kovin humuspitoista. Uoma tässä kohden matala, mutkitteleva, noin 1,5 m leveä, pohja mutainen. Uomassa ulpukkaa ja suomenlummetta, mahd. myös isolummetta, sekä uistinvitaa ja vehkaa. Rannat luonnontilaisen kaltaiset, puustoiset, luhtaiset. Ennallistamiskelpoinen ja arvokas.
A27: 325 | B27: V04.02.02 Havumetsävyöhykkeen norot | C27: 0.2 | D27: 1 | E27: 0.6 | F27: 1 | G27: 1 | H27: 0.9 | I27: 1 | J27: 0.8875 | K27: 0.1775 | L27: ei | M27: ei | N27: ei | O27: kyllä | P27: kyllä | Q27: ei | R27: DD | S27: Kaatopaikantien reunalta, tai sen alta rinteeseen purkautuva noro, joka kulkee osin näkymättömissä kivikosa. Rehevä kasvillisuus, mm. mesiangervoa, kotkansiipeä,hiirenporrasta, mustaherukkaa, hajuheinää, lehväsammalia, hieman vehkaa ja punakoisoa. Vettä paikoin näkyvissä.
A28: 376 | B28: V04.02.02 Havumetsävyöhykkeen norot | C28: 0.2 | D28: 1 | E28: 0.5 | F28: 1 | G28: 1 | H28: 1 | I28: 1 | J28: 0.875 | K28: 0.175 | L28: ei | M28: ei | N28: ei | O28: kyllä | P28: kyllä | Q28: ei | R28: DD | S28: Osin näkymättömissä, kasvillisuuden seassa painanteessa kulkeva noro. Uoma vaikeammin rajattavissa, lähtee todennäköisesti ylempää rinteestä. Jo aiemmin tunnistettu METE-kohde. Yläpuolisella valuma-alueella suuri louhosalue, jonka vaikutuksesta noron vesitalouteen ei tietoa. Kasvillisuus edustavaa.
A29: 381 | B29: V04.02.02 Havumetsävyöhykkeen norot | C29: 0.6 | D29: 0.6 | E29: 0.5 | F29: 1 | G29: 1 | H29: 1 | I29: 0.7 | J29: =(2*SUM(D29:E29)+SUM(F29:I29))/(2*COLUMNS(D29:E29)+COLUMNS(F29:I29)) -> 0.7375 | K29: =(PRODUCT(C29,J29)) -> 0.4425 | L29: ei | M29: ei | N29: ei | O29: kyllä | P29: kyllä | Q29: ei | R29: DD | S29: Noron yläjuksulla viereisellä kuviolla tehty hakkuu ja kuvion rajalla metsää kaadettu. Uoma vielä luonnontilaisen kaltainen, kasvillisuus edustavaa, lähempänä Korvapuroa luonnontilaisuus kasvaa ja varren lehtokorpi edustava.
A30: 397 | B30: V04.02.02 Havumetsävyöhykkeen norot | C30: 0.1 | D30: 0.5 | E30: 0.7 | F30: 0.4 | G30: 1 | H30: 0.5 | I30: 0.7 | J30: 0.625 | K30: 0.0625 | L30: ei | M30: ei | N30: ei | O30: kyllä | P30: kyllä | Q30: ei | R30: DD | S30: Ojitetun ja luonnontilainsa menettäneen noron viimeinen, luonnontilaisen kaltainen osuus. Uomassa runsaasti lahopuuta, uoma syvenee kohti radan alitusta ja siihen tulee lievää mutkittelua. Perkausvalleja vielä näkyvissä. Puusto osin varttunutta, suuria haapoja ja mm. koivulahopuuta. Tyypillinen kasvillisuus vähäistä: isoalvejuuri, metsäalve, soreahiirenporras. Kartoitusajankohtana kuiva. Yläjuoksun osuuksien ennallistaminen voisi parantaa tilaa. Merkitystä myös alajuoksulle, jossa jatkuu radan alitettuaan luonnontilaisen kaltaisena norona.
A31: 419 | B31: V04.02.02 Havumetsävyöhykkeen norot | C31: 0.1 | D31: 0.8 | E31: 0.6 | F31: 0.9 | G31: 1 | H31: 1 | I31: 0.5 | J31: 0.775 | K31: 0.0775 | L31: ei | M31: ei | N31: ei | O31: kyllä | P31: kyllä | Q31: ei | R31: DD | S31: Noro ilmeisesti aikoinaan ojitettu, mutta palautunut luonnontilaisen kaltaiseksi. Kuvion yläpuolinen osuus ojitettu. Kartoitusajankohtana elokuussa kuiva. Kasvillisuus tyypillistä, uoman reunamilla kosteaa lehtoa. Jokunen järeähkö haapa, paikoin lehtokuusama runsas. Lähiympäristössä suoritettu harvennushakkuita, mutta puustoa jätetty välittömään läheisyyteen. Avohakkuu tehty viimeksi 1990-luvun puolivälissä.
A32: 451 | B32: V04.02.02 Havumetsävyöhykkeen norot | C32: 0.2 | D32: 0.6 | E32: 0.7 | F32: 0.7 | G32: 0.8 | H32: 0.7 | I32: 0.6 | J32: 0.675 | K32: 0.135 | L32: ei | M32: ei | N32: ei | O32: kyllä | P32: kyllä | Q32: ei | R32: DD | S32: Tulkittu. Kts. Ylävirtaan kuvio 86. Vaikuttaa samankaltaiselta. Vuoden 2014 selvityksessä mainitaan ojana. Sittemmin todennäköisesti palautunut luonnontolaisen kaltaiseksi.
A33: 454 | B33: V04.02.02 Havumetsävyöhykkeen norot | C33: 0.1 | D33: 0.7 | E33: 0.7 | F33: 0.7 | G33: 1 | H33: 1 | I33: 0.7 | J33: 0.775 | K33: 0.0775 | L33: ei | M33: ei | N33: ei | O33: kyllä | P33: kyllä | Q33: ei | R33: DD | S33: Tämä osuus melko luonnontilainen. Muutamasta kohtaa ajettu yli metsäkoneella ja mönkijällä. Virtaa suurimmaksi osaksi kasvillisuuden seassa piilossa. Osin kuiva.

Sheet Avosuot
A1: 7.3.1. Avosuot
A4: Mittarit | E4: Suokasvillisuuden (putkilokasvit ja/tai sammalet) edustavuus: lajisto ja kasvillisuuden rakenne (runsaus, peittävyys, lajien/lajiryhmien runsaussuhteet) | F4: Vesitalous | G4: Umpeenkasvu | H4: Muu ihmisvaikutus | I4: Suon suhde ympäristöönsä (suoyhdistymän tila) Ei käytetä boreaalisilla piensoilla eikä yhdestä suotyypistä koostuvilla irrallisilla suolaikuilla.
A5: Mittarin suhteellinen painokerroin | E5: 2 | F5: 2 | G5: 2 | H5: 1 | I5: 2
B7: Tee tarvitatessa usempi rivi samalle kuviolle, jos useita avosoiden luontotyyppejä!
A8: Kuvionro | B8: LuTu-luontotyyppi (koodi) | C8: LuTu-tyypin % kuviosta | D8: Kuvion pinta-ala, ha | E8: Mittarin arvo (0,1 -1,0) | F8: Mittarin arvo (0,1 -1,0) | G8: Mittarin arvo (0,1 -1,0) | H8: Mittarin arvo (0,1 -1,0) | I8: Mittarin arvo (0,1 -1,0) | J8: Luonnonarvovastaavuus | K8: Luonnonarvohehtaarit | L8: METSO kohde | M8: NATURA-tyyppi | N8: Natura-edustavuusluokka | O8: Metsälaki 10 § | P8: vesilakikohde (VL 2:11) | Q8: LSL 64-65 § kohde | R8: Uhex | S8: Muuta
A9: 19 | B9: S05.03 Saranevat (luhtainen) | C9: 80 | D9: 0.07 | E9: 1 | F9: 1 | G9: 1 | H9: 0.8 | I9: ei | J9: =(2*SUM(E9:G9)+SUM(H9))/(2*COLUMNS(E9:G9)+COLUMNS(H9)) -> 0.9714285714 | K9: =(PRODUCT(D9,J9)) -> 0.068 | L9: ei | M9: Vaihettumissuot ja rantasuot (7140) | N9: Hyvä, poikkeama luontaisten syiden aiheuttama | O9: 10 §:n vähäpuustoinen jouto- ja kitumaan suo | P9: ei | Q9: ei | R9: NT | S9: Luonnontilainen mutta erittäin pieni kohde. Onko tässä ollut joskus aikoinaan kaivanto, joka liittyy kenties taloon? vuoden 1959 vanhassa kartassa näkyy pieni kosteikkomerkintä, sen jälkeisissä ei näy. Muutoin hiukan yllättävä paikka piensuolle jossa ei kuitenkaan merkkejä lähteisyydestä eikä avointa vettä mutta kuitenkin hyvin hyllyvä, eli jokin pieni syvä lampare ollut joskus vaikkei näy vanhoissa ilmakuvissa tms. Tai pieni suppa aluieella, jolla ei muutoin näy suppakuoppia.
A10: 146 | B10: S05.02 Luhtanevat | C10: 45 | D10: 0.7 | E10: 0.9 | F10: 0.7 | G10: 0.8 | H10: 1 | I10: ei | J10: 0.8285714286 | K10: 0.58 | L10: kyllä | M10: Vaihettumissuot ja rantasuot (7140) | N10: Hyvä, poikkeama ihmistoiminnan aiheuttama (ojitukset) | O10: 10 §:n luhdat | P10: ei | Q10: ei | R10: NT | S10: Ylimmän Korvalammen nevalaide edustava, liittyy luhtaiseen ja ruohoiseen sarakorpeen, joka osin kuivunut turvekankaaksi ojitusten takia. Kuviolla Korvapuro (147) ja sen suisto. Lammen rantavyöhykkeen luhtainen suokokonaisuus kaikkiaan arvokas ja ennallistamiskelpoinen.
A11: 153 | B11: S07.02.01 Pajuluhdat | C11: 99 | D11: 0.4 | E11: 0.9 | F11: 0.9 | G11: 0.9 | H11: 0.9 | I11: ei | J11: 0.9 | K11: 0.36 | L11: ei | M11: Vaihettumissuot ja rantasuot (7140) | N11: Hyvä | O11: 10 §:n luhdat | P11: ei | Q11: ei | R11: LC | S11: Keskimmäisen Korvalammen rantaluhta Korvapuron suistossa, melko luonnontilainen ja häiriötön. Kiilto- ja tuhkapaju, korpikastikka, hiirenporras, metsäkorte, suo-orvokki, suo-ohdake, keltakurjenmiekka, vehka, kurjenjalka. Tiheäkasvuinen, vaikeakulkuinen. Valokuvat puuttuvat.
A12: 179 | B12: S05.02 Luhtanevat | C12: 99 | D12: 0.2 | E12: 0.9 | F12: 0.8 | G12: 0.8 | H12: 1 | I12: ei | J12: 0.8571428571 | K12: 0.1714285714 | L12: ei | M12: Vaihettumissuot ja rantasuot (7140) | N12: Hyvä | O12: 10 §:n vähäpuustoinen jouto- ja kitumaan suo | P12: ei | Q12: ei | R12: NT | S12: Laide pohjoisrannalla kohtalaisen hyvin kehittynyt. Taaempana ojituksia, jotka vaikuttaneet vaihettumissuovyöhykkeisiin.
A13: 308 | B13: S05.02 Luhtanevat | C13: 45 | D13: 1.3 | E13: 1 | F13: 0.9 | G13: 1 | H13: 1 | I13: ei | J13: 0.9714285714 | K13: 1.262857143 | L13: kyllä | M13: Vaihettumissuot ja rantasuot (7140) | N13: erinomainen | O13: 10 §:n vähäpuustoinen jouto- ja kitumaan suo | P13: ei | Q13: ei | R13: NT | S13: Osa Heinälampea ympäröivää luhtaisten suotyyppien kokonaisuutta. Rahkasammallaide laaja, hyvin kehittynyt. Myös paju- ja ruokoluhtaa. Jouhisara runsas, pullosara, suoputki, kurjenjalka, vaivero, terttualpi, vaivaiskoivu, karpalo, suohorsma, kiiltopaju, raate, rimpivesiherne, paikoin juolukka & suopursu, viitakastikka, järviruoko, järvikorte, suokorte, vehka, luhtalitukka, rantamatara, terttualpi, rantakukka.
A14: 309 | B14: S05.03 Saranevat (ruohoinen) | C14: 25 | D14: 0.8 | E14: 1 | F14: 0.8 | G14: 0.8 | H14: 1 | I14: ei | J14: 0.8857142857 | K14: 0.7085714286 | L14: kyllä | M14: Vaihettumissuot ja rantasuot (7140) | N14: erinomainen | O14: 10 §:n vähäpuustoinen jouto- ja kitumaan suo, vesistön välitön lähiympäristö | P14: ei | Q14: ei | R14: NT | S14: Etelä-Suomessa uhex luokitus VU: "Etelä-Suomen saranevojen selvästi voimakkaamman vähenemisen takia on esiintymisen painopiste siirtynyt entistä selvemmin Pohjois-Suomeen. Saranevat ovat vähentyneet etenkin hemi- ja eteläboreaalisella vyöhykkeellä ja keskiboreaalisen vyöhykkeen eteläosissa ojitusten takia." (Luontotyppien uhanalaisuus, Pun. kirjan verkkopalvelu). Kuviolla puro Heinälamminoja (310). Edustava kasvillisuus: suovalkkua (NT, RT), siniheinä, juurtosara, jouhisara, pullosara, raate, kurjenjalka, vaivaiskoivu, maariankämmekkä runsas. Vaihettuu idässä ja etelässä ruohoiseksi sararämeeksi. Puron länsipuolella saraluhtaa.

Sheet Puustoiset suot
A1: 7.3.2. Puustoiset suot
A2: Mittarit | F2: Suokasvillisuuden (putkilokasvit ja/tai jäkälät ja/tai sammalet) edustavuus: lajisto ja kasvillisuuden rakenne (runsaus, peittävyys, lajien/lajiryhmien runsaussuhteet | G2: Vesitalous | H2: Puuston rakenne (puuston tiheys, ikäjakauma, tilajakauma, latvuskerroksellisuus, lajijakauma | I2: Lahopuun määrä | J2: Muu ihmisvaikutus | K2: Suon suhde ympäristöönsä (suoyhdistymän tila) Ei käytetä boreaalisilla piensoilla eikä yhdestä suotyypistä koostuvilla irrallisilla suolaikuilla. | L2: Onko puustoltaan hakkuukelpoinen?
A3: Mittarin suhteellinen painokerroin | F3: 2 | G3: 2 | H3: 2 | I3: 1 | J3: 1 | K3: 2 | L3: ei käytetä
C4: Tee tarvitatessa usempi rivi samalle kuviolle, jos useita puustoisten soiden luontotyyppejä!
A5: Kuvionro | B5: apusarake | C5: LuTu-luontotyyppi (koodi) | D5: LuTu-tyypin % kuviosta | E5: Kuvion pinta-ala, ha | F5: Mittarin arvo (0,1 -1,0) | G5: Mittarin arvo (0,1 -1,0) | H5: Mittarin arvo (0,1 -1,0) | I5: Mittarin arvo (0,1 -1,0) | J5: Mittarin arvo (0,1 -1,0) | K5: Mittarin arvo (0,1 -1,0) | L5: 0= ei, 1=kyllä | M5: Luonnonarvovastaavuus/Ekologinen tila | N5: Luonnonarvohehtaarit | O5: METSO-kohde | P5: Natura TYYPPI | Q5: Natura edustavuus | R5: METE (ML 10 §) | S5: vesilakikohde (VL 2:11 ) | T5: LSL 64-65 § kohde | U5: Uhex | V5: Muuta erityistä, esim lajisto
A6: 2 | C6: S01.02 Lehtokorpi | D6: 90 | E6: 0.5 | F6: 0.8 | G6: 0.7 | H6: 0.9 | I6: 0.8 | J6: 0.9 | K6: ei | L6: 1 | M6: =(2*SUM(F6:H6)+SUM(I6:J6))/(2*COLUMNS(F6:H6)+COLUMNS(I6:J6)) -> 0.8125 | N6: =(PRODUCT(E6,M6)) -> 0.40625 | O6: METSO-taulukossa | P6: Lehdot (9050) | Q6: hyvä, poikkeama ihmistoiminnan aiheuttama | R6: 10 §:n lehto- ja ruohokorpi | S6: ei | T6: ei | U6: VU | V6: Velhonlehti ja korpikaisla
A7: 7 | C7: Entinen niittypelto/Lettomuuttuma | D7: 99 | E7: 0.7 | F7: 0.4 | G7: 0.1 | H7: 0.1 | I7: 0.1 | J7: 0.6 | K7: ei | L7: 0 | M7: 0.2375 | N7: 0.16625 | O7: ei | P7: ei | Q7: ei | R7: ei | S7: ei | T7: ei | U7: ei | V7: Hakattu, ojitettu/pusikoitunut alue. Ollut vielä 1975 länsipäästään peltoa ja sitä ennen niittypalstoja (esim ilmakuva 1949). Metsittynyt lehtipuustolla alkaen 80-luvulta. Itäpää ollut rehevää suota jolla jonkin verran puustoakin jne. Puro menee edelleen lävitse. Ei varmaa tietoa mikä Lutu-tyyppi mutta rehevää on ollut alunperin selvästi. Pieneltä märältä alueelta otettu sinnittelevä rahaksamal näyttää olevan Sph. teres. Kohdassa on vielä märkää ja muutakin rehevän suon lajistoa.
A8: 9 | C8: Entinen lehtokorpi, muuttuma | D8: 99 | E8: 2.4 | F8: 0.4 | G8: 0.1 | H8: 0.1 | I8: 0.1 | J8: 0.8 | K8: ei | L8: 0 | M8: 0.2625 | N8: 0.63 | O8: ei | P8: ei | Q8: ei | R8: ei | S8: ei | T8: ei | U8: ei | V8: Lehtokorpi lie uskottavin alkuperäisenä luonotyyppinä vrt alueen yleinen rehevyys ja kun katsoo ilmakuvaa vv 1949 (isoja puita) plus maastokartan suo-merkinnät. Puro on virrannut silloinkin kuvion läpi.
A9: 39 | C9: S03.04 Isovarpuräme | D9: 99 | E9: 2.2 | F9: 0.8 | G9: 0.7 | H9: 0.7 | I9: 0.5 | J9: 1 | K9: ei | L9: 1 | M9: 0.7375 | N9: 1.6225 | O9: ei | P9: puustoiset suot (91D0) | Q9: hyvä, poikkeama ihmistoiminnan aiheuttama | R9: ei | S9: ei | T9: ei | U9: NT | V9: myös maisemallisesti hieno kohde lammen vieressä
A10: 41 | C10: S01.01 Mustikkakangaskorpi | D10: 90 | E10: 0.9 | F10: 0.9 | G10: 0.6 | H10: 0.5 | I10: 0.2 | J10: 1 | K10: ei | L10: 1 | M10: 0.65 | N10: 0.585 | O10: ei | P10: Luonnonmetsät (9010) | Q10: hyvä, poikkeama ihmistoiminnan aiheuttama | R10: ei | S10: ei | T10: ei | U10: EN | V10: löytyy myös Sphagnum wulfianum, metsäkoretta paikoin runsaasti
A11: 42 | C11: S03.04 Isovarpuräme | D11: 100 | E11: 0.4 | F11: 0.8 | G11: 0.6 | H11: 0.5 | I11: 0.1 | J11: 0.6 | K11: ei | L11: 1 | M11: 0.5625 | N11: 0.225 | O11: ei | P11: puustoiset suot (91D0) | Q11: merkittävä, poikkeama ihmistoiminnan aiheuttama | R11: ei | S11: ei | T11: ei | U11: NT | V11: tien vieressä
A12: 27 | C12: Lehtokorpimuuttuma | D12: 99 | E12: 0.3 | F12: 0.8 | G12: 0.5 | H12: 0.4 | I12: 0.6 | J12: 0.9 | K12: ei | L12: 0 | M12: 0.6125 | N12: 0.18375 | O12: ei | P12: ei | Q12: ei | R12: ei | S12: ei | T12: ei | U12: ei | V12: Sis ojan joka kulkee läpi ja on osin puromainen (tulee kuviolta 28). Osa avointa, osa puustoista. Paikoin hyvin edustavaa kasvillisuutta vieläkin, vaikka lähinnä korpimuuttuma.
A13: 28 | C13: Ruohokorpimuuttuma | D13: 99 | E13: 0.1 | F13: 0.5 | G13: 0.5 | H13: 0.8 | I13: 0.8 | J13: 0.9 | K13: ei | L13: 0 | M13: 0.6625 | N13: 0.06625 | O13: ei | P13: ei | Q13: ei | R13: ei | S13: ei | T13: ei | U13: ei | V13: Erittäin tiheä ja paljon pystylahopuuta (sekä kuusi että koivu), lahopuuta muodostunut tod. näk. tulvittumisen kautta (avo-oja tukittu teollisuustontin puolelta). Kohteella sekä nuorta että vanhaa raitaa sekä leppää, paljon nuorta koivua ja pajupensaita (ml. kiiltopaju). Hyvin pensaikkoinen. Sanikkaisia ja korkeita heinäkasveja. Hyvä lintukohde. Säilyttämisen arvoinen kohde.
A14: 27 | B14: kuviolle tuleva oja on osin puromainen reunoiltaan | C14: Lehtokorpimuuttuma | D14: 99 | E14: 0.3 | F14: 0.5 | G14: 0.5 | H14: 0.3 | I14: 0.6 | J14: 0.8 | K14: ei | L14: 0 | M14: 0.5 | N14: 0.15 | O14: ei | P14: ei | Q14: ei | R14: ei | S14: ei | T14: ei | U14: ei | V14: liittyy edelliseen kohteeseen, oja, joka osin puromainen varreltaan virtaa myös tämän kuvion läpi (pohjakasvillisuus osin edustavaa)
A15: 48 | B15: LuNK aivan rannalla | C15: Sarakorvet; luhtanevakorvet S02.02 | D15: 40 | E15: 0.24 | F15: 1 | G15: 1 | H15: 1 | I15: 1 | J15: 1 | K15: ei | L15: 1 | M15: 1 | N15: 0.24 | O15: Kyllä, Metso-taulukossa | P15: puustoiset suot (91D0) | Q15: Erinomainen | R15: Vähäpuustoiset jouto- ja kitumaan suot sekä luhdat | S15: ei | T15: ei | U15: VU | V15: Erittäin paljon erilaatuista lahopuuta, hyvin luonnontilainen, kasvillisuudeltaan monipuolinen
A16: 48 | B16: sama kuvio kuin yllä, ei eroteltu | C16: Korpirämeet S03.02 | D16: 60 | E16: 0.36 | F16: 0.9 | G16: 1 | H16: 1 | I16: 0.7 | J16: 1 | K16: ei | L16: 1 | M16: 0.9375 | N16: 0.3375 | O16: Kyllä, Metso-taulukossa | P16: puustoiset suot (91D0) | Q16: Hyvä, poikkeama luontaisten syiden aiheuttama | R16: ei | S16: ei | T16: ei | U16: EN
A17: 54 | B17: Ruohokangaskorpi | C17: Kangaskorvet; ruohokangaskorvet S01.01 | D17: 99 | E17: 0.3 | F17: 1 | G17: 1 | H17: 1 | I17: 1 | J17: 1 | K17: ei | L17: 1 | M17: 1 | N17: 0.3 | O17: Kyllä, Metso-taulukossa | P17: Luonnonmetsät (9010) | Q17: Erinomainen | R17: ei | S17: ei | T17: ei | U17: EN
A18: 90 | B18: Pieni osa kuviota 90 | C18: Korpimuuttuma | D18: 5 | E18: 0.3 | F18: 0.3 | G18: 0.3 | H18: 0.4 | I18: 0.1 | J18: 0.3 | K18: ei | L18: 1 | M18: 0.3 | N18: 0.09 | O18: ei | P18: ei | Q18: ei | R18: ei | S18: ei | T18: ei | V18: Koivu, kuusi, suursaniaisia. Lajisto selvästi muuttunut, kuten myös vesitalous. Syviä metsäkoneuria.
A19: 99 | B19: Kuivunut saniaislehtokorpi | C19: Korpimuuttuma | D19: 99 | E19: 2 | F19: 0.4 | G19: 0.3 | H19: 0.7 | I19: 0.5 | J19: 0.7 | K19: ei | L19: 1 | M19: 0.5 | N19: 1 | O19: ei | P19: ei | Q19: ei | R19: ei | S19: ei | T19: ei | V19: Keskellä kulkee syväksi ja suoraksi kaivettu oja. Kuusi ja koivu valtapuina, myös yksittäisiä järeitä puita ja varttunutta puustoa. Liito-oravalle ok. Ollut osin saniaiskorpi ja osin saniaislehtokorpea, pohjoispäässä Purolan lähellä hieman kosteampaa, muutoin selvästi kuivunut. Seinäsammal ja kynsisammalet korvanneet rahkasammalia, paikoin korpikarhunsammal, korpirahkasammal. Runsaita hiirenporras, isoalvejuuri, metsäalvejuuri, korpi-imarre, metsäimarre, oravanmarja ja käenkaali. Paikoin metsätähti, mustikka, vadelma, lehtotesma, korpikastikka, puna-ailakki, ahomansikka, karhunputki. Muutama lehtokuusama, vaahtera, punaherukka, sudenmarja. Pohjoispäässä suo-orvokkia, suo-kelttoa ja suo-ohdaketta.
A20: 100 | B20: MK ja SaK muuttumaa, kuivunut, puusto varttunutta ku, ko, ha | C20: Korpimuuttuma | D20: 20 | E20: 0.46 | F20: 0.7 | G20: 0.5 | H20: 0.8 | I20: 0.5 | J20: 0.8 | K20: ei | L20: 1 | M20: 0.6625 | N20: 0.30475 | O20: kyllä | P20: ei | Q20: ei | R20: ei | S20: ei | T20: ei | V20: Ojituksia, pohja paikoin rahkainen, paikoin painunut. Muu osa kuviosta mustikkakangasta. METSO-pontentiaalia, varsinkin jos saa kehittyä rauhassa; puusto järeähköä (30-40 cm rinnank.) ja monilajista. Eteläosissa myös varttunutta haapaa: kuvio liito-oravalle sopivaa habitaattia.
A21: 122 | B21: Lähteikkökorpi | C21: S01.02 Lehtokorvet | D21: 90 | E21: 0.6 | F21: 0.8 | G21: 0.6 | H21: 0.8 | I21: 0.9 | J21: 1 | L21: 1 | M21: 0.7875 | N21: 0.4725 | O21: Kyllä, Metso-taulukossa | P21: Lehdot (9050) | Q21: erinomainen | R21: Kyllä, lähteikön välitön lähiympäristö | S21: Kuviolla lähteikkö (123) | T21: ei | U21: VU | V21: Puusto kuusivaltaista,erirakenteista, koi, ha, rai, lahopuuta hyvin. Kasvillisuus tyypillistä, vaikka kuviolla sijaitseva lähteikkö kuivahtanut läheisen Hepomäen louhoksen takia.Liittyy vanhan metsän METSO-kohteeseen (124). "Myös luonnontilansa osittain menettäneet lähteiköt, esimerkiksi sellaiset joissa on vanhoja vedenottoon liityviä rakenteita, voivat olla edustavia lajistoltaan" (Airaksinen & Karttunen 2001). Korpinurmikka (NT, RT) ja hentosara (NT), kevätlinnunsilmä paikoin runsas. Vanha rengaskaivo lähteikön reunalla, sijainti vaihdellut.
A22: 139 | B22: Ojitettu isovarpuräme | C22: S03.04 Isovarpuräme | D22: 98 | E22: 0.4 | F22: 0.8 | G22: 0.7 | H22: 0.7 | I22: 0.5 | J22: 0.9 | L22: 1 | M22: 0.725 | N22: 0.29 | O22: ei | P22: puustoiset suot (91D0) | Q22: hyvä | R22: ei | S22: ei | T22: ei | U22: NT | V22: Ojituksesta huolimatta vesitalous vielä luonnontilaisen kaltainen ja kasvillisuus säilynyt. Lammen rannassa nevalaide. Muodostaa Ylimmän Korvalammen kanssa edustavan kokonaisuuden. Samaa luontotyyppikuviota kuin 39.
A23: 146 | B23: Ojitettu luhtainen ja ruohoinen hieskoivukorpi | C23: S02.02 Sarakorvet | D23: 40 | E23: 0.7 | F23: 0.7 | G23: 0.6 | H23: 0.7 | I23: 0.6 | J23: 1 | L23: 1 | M23: 0.7 | N23: 0.49 | O23: Kyllä, Metso-taulukossa | P23: puustoiset suot (91D0) | Q23: hyvä | R23: kyllä | S23: ei | T23: ei | U23: VU | V23: Ruohoinen ja luhtainen ojitettu sarakorpi, joka osin kuivunut. Harajuuri (RT), hentosara (NT). Vaihettuu luhtanevaan Ylimmäisen korvalammen rannassa. Arvokas lammen rantavyöhykkeen suokokonaisuus. Enemmistö kuviosta luhtanevaa (arvioitu erikseen). Korvapuron penkassa suurehko pesäkolo ja jätös (mahdollisesti saukon?)
A24: 178 | B24: rantavyöhykkeen vaihettumisräme | C24: S03.04 Isovarpurämeet | D24: 20 | E24: 0.14 | F24: 0.9 | G24: 0.7 | H24: 0.7 | I24: 0.6 | J24: 1 | K24: ei | L24: 1 | M24: 0.775 | N24: 0.1085 | O24: ei | P24: puustoiset suot (91D0) | Q24: hyvä, poikkeama ihmistoiminnan aiheuttama | R24: ei | S24: ei | T24: ei | U24: NT | V24: Reunavyöhykkeen kapea räme edustava. Ylempänä ojitus kuivattanut kankaaksi. Kuviosta 80 % tuoretta kangasta. Kuvioiden 170, 171 ja 177 kanssa merkittävä kokonaisuus. METSO-potentiaalia.
A25: 193 | B25: Ojitettu, varttunut korpi | C25: S01.04.02 Metsäkortekorvet | D25: 85 | E25: 0.3 | F25: 0.8 | G25: 0.6 | H25: 0.8 | I25: 0.6 | J25: 1 | K25: ei | L25: 1 | M25: 0.75 | N25: 0.225 | O25: Kyllä, Metso-taulukossa | P25: puustoiset suot (91D0) | Q25: hyvä, poikkeama ihmistoiminnan aiheuttama | R25: kyllä 10§:n metsäkortekorpi | S25: ei | T25: ei | U25: EN | V25: Pieni metsäkortekorpi satavuotiaan kankaan kyljessä. Suo ojitettu, mutta tämä alue vielä edustava. Paikoin jo korpimuuttumaa, ollut mahdollisesti myös puolukkakorpea ja muurainkorpea? Vaihettuu rämemuuttumaan. Herttakaksikkoa (RT) ja pallopäärahkasammalta, maariankämmekkä runsas osassa aluetta, mustikka, puolukka, metsätähti, vaalearahkasammal ja korpirahkasammal, lakka, pallosara, rahkasara, riippasara, harmaasara ja tupasvilla. Puusto noin 70 vuotiasta, erirakenteista.
A26: 195 | B26: Ojitettu, varttunut korpi | C26: Korpimuuttuma | D26: 50 | E26: 4.2 | F26: 0.5 | G26: 0.5 | H26: 0.7 | I26: 0.4 | J26: 0.8 | K26: ei | L26: 1 | M26: 0.575 | N26: 2.415 | O26: kyllä | P26: ei | Q26: ei | R26: ei | S26: ei | T26: ei | V26: Syvät ojat, kuivunut. Korpijuoteissa pallosara, tupasvilla, lakka ja metsäkorte runsaita. Pyypoikue alueen etelälaidalla. Ollut erilaisia aitokorpia? Ennallistamiskelpoinen ja täten mahdollinen METSO 1C-kohde.
A27: 196 | B27: Ojitettu, varttunut korpi | C27: S01.04 Aitokorvet | D27: 90 | E27: 1.9 | F27: 0.7 | G27: 0.7 | H27: 0.7 | I27: 0.3 | J27: 0.9 | K27: ei | L27: 1 | M27: 0.675 | N27: 1.2825 | O27: Kyllä, Metso-taulukossa | P27: puustoiset suot (91D0) | Q27: merkittävä, poikkeama ihmistoiminnan aiheuttama | R27: ei | S27: ei | T27: ei | U27: EN | V27: Ojitus osin muuttanut, ollut aitokorpia, vielä mustikkakorpea ja pienialaisesti metsäkortekorpea. Maasto kosteaa myös rinteessä. Ennallistamiskelpoinen, potentiaalinen laajempi METSO-kohde yhdessä kuvioiden 192, 193 ja 195 kanssa. Pienialaisesti metsäkortekorpea? (ML 10§?)
A28: 200 | B28: Osin hakattu pieni suo | C28: S01.04 Aitokorvet | D28: 15 | E28: 0.3 | F28: 0.7 | G28: 0.7 | H28: 0.6 | I28: 0.3 | J28: 0.7 | K28: ei | L28: 1 | M28: 0.625 | N28: 0.1875 | O28: Kyllä, Metso-taulukossa | P28: Puustoiset suot (91D0) | Q28: merkittävä, poikkeama ihmistoiminnan aiheuttama | R28: ei | S28: ei | T28: ei | U28: EN | V28: Ei ojitettu, vesitalous luonotilaisen kaltainen, mutta osittainen avohakkuu ja metsäkoneurat muuttaneet olosuhteita.
A29: 203 | B29: Ojitettu ku valtainen korpi | C29: S01.01 Kangaskorvet | D29: 60 | E29: 1.3 | F29: 0.6 | G29: 0.6 | H29: 0.6 | I29: 0.3 | J29: 1 | K29: ei | L29: 1 | M29: 0.6125 | N29: 0.79625 | O29: Kyllä, Metso-taulukossa | P29: Luonnonmetsät (9010) | Q29: merkittävä, poikkeama ihmistoiminnan aiheuttama | R29: ei | S29: ei | T29: ei | U29: EN | V29: Ojitus kuivattanut, korpisissa osissa vielä pallosaraa, rahkasammalia ja metsäkortetta paikoin, mustikka, puolukka, metsäalvejuuri.
A30: 204 | B30: Ku valtainen korpi | C30: S01.01 Kangaskorvet | D30: 90 | E30: 6.1 | F30: 0.9 | G30: 0.9 | H30: 0.8 | I30: 0.4 | J30: 1 | K30: ei | L30: 1 | M30: 0.825 | N30: 5.0325 | O30: Kyllä, Metso-taulukossa | P30: Luonnonmetsät (9010) | Q30: hyvä | R30: ei | S30: ei | T30: ei | U30: EN | V30: Luonnontilaisen kaltainen, puusto osin jo järeää. Rahkasammalia ja korpikarhunsammalta, mustikka, puolukka, pallosara, metsäalvejuuri, metsäkorte.
A31: 211 | B31: Ojitettu mä valtainen korpi | C31: Korpimuuttuma | D31: 99 | E31: 2.1 | F31: 0.6 | G31: 0.5 | H31: 0.7 | I31: 0.2 | J31: 0.9 | K31: ei | L31: 1 | M31: 0.5875 | N31: 1.23375 | O31: ei | P31: ei | Q31: ei | R31: ei | S31: ei | T31: ei | V31: Osin mä, osin ku valtainen. Ojitus kuivattanut. Vielä metsäkortetta, lakkaa, pallosaraa. Mustikka runsas.
A32: 219 | B32: Ojitettu räme | C32: S03.04 Isovarpurämeet | D32: 80 | E32: 0.8 | F32: 0.7 | G32: 0.5 | H32: 0.8 | I32: 0.1 | J32: 1 | K32: ei | L32: 1 | M32: 0.6375 | N32: 0.51 | O32: ei | P32: Puustoiset suot (91D0) | Q32: merkittävä, poikkeama ihmistoiminnan aiheuttama | R32: ei | S32: ei | T32: ei | U32: NT | V32: Ojituksen aiheuttamaa muuttumaa, osin jo kangasta. Lajisto yhä melko edustava: rahkasammalet ja seinäsammal, suopursu, juolukka, vaivaiskoivu, mustikka, puolukka, variksenmarja, lakka, pallosara, tupasvilla. Puusto varttunutta mä, koivun taimia. Ennallistamiskelpoinen!
A33: 226 | B33: Ojitettu, hakattu korpi | C33: Korpimuuttuma | D33: 90 | E33: 0.7 | F33: 0.6 | G33: 0.6 | H33: 0.1 | I33: 0.1 | J33: 0.6 | K33: ei | L33: 0 | M33: 0.4125 | N33: 0.28875 | O33: ei | P33: ei | Q33: ei | R33: ei | S33: ei | T33: ei | V33: Tulkittu. Ollut pitkään puuton (suoniitty?), metsittynyt ja hakattu jälleen 200-luvulla.
A34: 240 | B34: Edustava puronvarsikorpi | C34: S01.01 Kangaskorvet | D34: 70 | E34: 5.1 | F34: 0.9 | G34: 0.7 | H34: 0.9 | I34: 0.9 | J34: 0.9 | K34: ei | M34: 0.85 | N34: 4.335 | O34: Kyllä, Metso-taulukossa | P34: Luonnonmetsät (9010) | Q34: hyvä | R34: ei | S34: ei | T34: ei | U34: EN | V34: Suurin osa kuviosta kangaskorpea, mutta myös luhtaista ruohokorpea erityisesti puron suistossa ja suulla, sekä korpi ja rämemuuttumaa ja kangasta. Erityisen monimuotoinen kuvio, runsaasti hyvin järeää lahopuuta. Vanhoja merkkejä majavista ja padosta. Kuviolla myös w-e -suuntainen sammaloitunut maavalli puron molemmin puolin, joka mahdollisesti vanha kiviaita, tai patorakennelma. Liito-oravalle, saukolle, majavalle erinomaisen sopivaa ympäristöä. Lahottajasienet ja sammalet olisi hyvä kartoittaa (mm. aarnisammal, korpihohtosammal...)
A35: 242 | B35: Rantasuo | C35: S03.04 Isovarpurämeet | D35: 95 | E35: 0.3 | F35: 0.9 | G35: 0.7 | H35: 0.9 | I35: 0.2 | J35: 1 | K35: ei | M35: 0.775 | N35: 0.2325 | O35: Kyllä, Metso-taulukossa | P35: Luonnonmetsät (9010) | Q35: hyvä | R35: ei | S35: ei | T35: ei | U35: NT | V35: Rantaräme nevalaiteella.
A36: 269 | B36: Noronvarsikorpi | C36: S01.02 Lehtokorvet | D36: 75 | E36: 0.6 | F36: 0.8 | G36: 0.9 | H36: 0.8 | I36: 0.5 | J36: 0.6 | K36: ei | M36: 0.7625 | N36: 0.4575 | O36: Kyllä, Metso-taulukossa | P36: Lehdot (9050) | Q36: erinomainen | R36: kyllä | S36: kyllä | T36: ei | U36: VU | V36: Kuviolla erikoinen pintavesiallikko ja vielä luonnontilaisen kaltainen noro. Hakkuita suoritettu rajalla.
A37: 284 | B37: Noronvarsikorpi | C37: S01.02 Lehtokorvet | D37: 65 | E37: 1.5 | F37: 1 | G37: 1 | H37: 0.8 | I37: 0.5 | J37: 0.6 | K37: ei | M37: 0.8375 | N37: 1.25625 | O37: Kyllä, Metso-taulukossa | P37: Lehdot (9050) | Q37: erinomainen | R37: kyllä | S37: kyllä | T37: ei | U37: VU | V37: Korvapuroon laskevan noron ympärille notkelmaan muodostunut korpi, hyvinkin märkä. Runs lehväsammalia, lehtokortetta, metsäkortetta ja mesiangervoa. Roskaantumista, vedessä sakeaa värjäymää.
A38: 286 | B38: Kostea rehevä korpi kaatopaikan ja Korvapuron välissä. | C38: S01.02 Lehtokorvet | D38: 80 | E38: 1.2 | F38: 1 | G38: 1 | H38: 1 | I38: 0.9 | J38: 0.8 | K38: ei | M38: =(2*SUM(F38:H38)+SUM(I38:J38))/(2*COLUMNS(F38:H38)+COLUMNS(I38:J38)) -> 0.9625 | N38: =(PRODUCT(E38,M38)) -> 1.155 | O38: Kyllä, Metso-taulukossa | P38: Lehdot (9050) | Q38: erinomainen | R38: kyllä | S38: ei | T38: ei | U38: VU | V38: Jonkinlainen salaojaputki johdettu kuviolle viereiseltä kaatopaikka-alueelta. Putken suulla myös kiintoainesta valunut kuviolle->upottavaa mutaa ja ravinteisen, kostean lehdon kasvillisuutta. Reunamilla myös roskaantumista.Muutoin edustava, Korvapuroon rajautuva lehtokorpi, jossa hyvin erirakenteinen puusto.
A39: 297 | B39: Korpi puron ja noron läheisyydessä | C39: S01.02 Lehtokorvet | D39: 90 | E39: 2.1 | F39: 1 | G39: 0.9 | H39: 1 | I39: 0.5 | J39: 0.6 | K39: ei | M39: 0.8625 | N39: 1.81125 | O39: Kyllä, Metso-taulukossa | P39: Lehdot (9050) | Q39: erinomainen | R39: kyllä | S39: ei | T39: ei | U39: VU | V39: Kuviolla luonontilaisen kaltainen noro ja kuvio rajautuu Heinälamminojan puroon (kuivunut, ojitettu). Puusto ja kasvillisuus edustavaa, kärsii viereisistä kaatopakasta ja hakkuusta. Mönkkäriuria, vähän roskaa.
A40: 300 | B40: Ojitetun Heiniojan luona | C40: Korpimuuttuma | D40: 99 | E40: 1.2 | F40: 0.4 | G40: 0.3 | H40: 0.8 | I40: 0.5 | J40: 0.6 | K40: ei | M40: 0.5125 | N40: 0.615 | O40: Kyllä, Metso-taulukossa | P40: ei | Q40: ei | R40: ei | S40: ei | T40: ei | V40: Kuviolla Heinälamminojan umpeenkasvanutta purouomaa ja vieressä suora, syvä oja. Puusto erirakenteista, osin iäkästä. Metso-kohteen vieressä, ennallistamiskelpoinen.Heinälamminojan luonnollinen uoma vielä olemassa rahkasammalpatjan ja raatekasvuston alla.
A41: 304 | B41: Heinälammen pohjoispuolen luhta | C41: S07.01.01 Koivuluhdat | D41: 60 | E41: 1.8 | F41: 0.8 | G41: 0.6 | H41: 0.6 | I41: 0.4 | J41: 0.3 | K41: ei | M41: 0.5875 | N41: 1.0575 | O41: Kyllä, Metso-taulukossa | P41: 9080 | Q41: hyvä | R41: kyllä, jouto- ja kitumaan suot, puron välitön lähiympäristö | S41: rajautuu vesilkikohteeseen Heinälampi (305) | T41: ei | U41: DD | V41: Heinälammen pohjoispuolinen luhta, joka ojitettu, mutta jossa yhä myös luonnontilaisen kaltainen purouoma Heinälamminoja. Useita luhtaisia luontotyyppejä.
A42: 308 | B42: Heinälammen itäpuolen luhtaiset suot | C42: S01.04 Aitokorvet | D42: 30 | E42: 1.3 | F42: 0.8 | G42: 0.7 | H42: 0.8 | I42: 0.5 | J42: 1 | K42: ei | M42: 0.7625 | N42: 0.99125 | O42: Kyllä, Metso-taulukossa | P42: 91D0 | Q42: hyvä | R42: kyllä | S42: ei | T42: ei | U42: EN | V42: Suurimmaksi osaksi ojitettua, luhtaista luhtanevakorpea,paikoin myös muurainkorven ja metsäkortekorven piirteitä, paikoin hieman kuivunutta muuttumaa. Ennallistamiskelpoinen, osa Heinälampea ympäröivää luhtaisten suotyyppien kokonaisuutta. Vaihettuu luhtarämeeseen ja ruovikkoluhtaan ojan länsipuolella. Sekatyyppi. Osa männyistä vanhoja, kilpikaarnaisia, mutta kituliaita. Luhtaisuuden ja pienialaisen muurainkorven perusteella katsotaan METE-kohteeksi.
A43: 309 | B43: Heinälammen eteläpuolen suot | C43: S04.03 Sararämeet (ruohoinen) | D43: 65 | E43: 0.8 | F43: 1 | G43: 0.9 | H43: 0.9 | I43: 1 | J43: 1 | K43: ei | M43: 0.95 | N43: 0.76 | O43: Kyllä, Metso-taulukossa | P43: 91D0 | Q43: erinomainen | R43: kyllä | S43: kyllä | T43: ei | U43: VU | V43: Etelä-Suomessa uhex-luokitus EN. Edustava, vesitalous luonnontilaisen kaltainen. Siniheinä, jouhisara, karpalo, juolukkapaju ja vaivaiskoivu runsaita. Myös juolukka, tähtisara, raate, paatsama, maariankämmekkä, vaivero, suopursu ja tupasvilla yleisiä. Lisäksi suokukkaa ja suokortetta, sekä kaakossa runsaammin järviruokoa. Ojitettu. Kuvion pohjoisosa rämemuuttumaa. Kuviolla luonnontilaisen kaltainen puro Heinälamminoja. Kuvion keski- ja länsiosa ruohoista saranevaa, jossa mm. suovalkkua (NT, RT).
A44: 311 | B44: Heinälamminojan rantojen suot | C44: S03.02 Korpirämeet | D44: 30 | E44: 1.6 | F44: 1 | G44: 0.8 | H44: 0.8 | I44: 0.8 | J44: 1 | K44: ei | M44: 0.875 | N44: 1.4 | O44: Kyllä, Metso-taulukossa | P44: 91D0 | Q44: hyvä | R44: ei | S44: ei | T44: ei | U44: EN | V44: Ojitettu; vanha, suora, seisovavetinen, leveä oja kulkee alueen halki. Korpirämeen osuus kuvion pohjoispäässä edustava, Naturaluokka erinomainen. Loput kuviosta kuitenkin räme- ja korpimuuttumaa, sekä turvekangasta (lähes 70% kuviosta). Puusto osin vanhaa, jopa yli satavuotiasta. Kilpikaarnaisia mäntyjä ja joitain suurehkoja kuusia ja vanhoja koivuja. Kokonaisuutena arvokas, erityisesti osana Heinälamminsuon-alueen suo- ja vesiluontotyyppejä. Ennallistamiskelpoinen.
A45: 312 | B45: Luhtainen saraneva | C45: S02.02 Sarakorvet | D45: 80 | E45: 1 | F45: 0.7 | G45: 0.6 | H45: 0.9 | I45: 0.5 | J45: 1 | K45: ei | M45: 0.7375 | N45: 0.7375 | O45: Kyllä, Metso-taulukossa | P45: 91D0 | Q45: hyvä | R45: ei | S45: ei | T45: ei | U45: VU | V45: Kuviolla luonnontilaisen kaltainen puro (310). Molemmin puolin puroa kuvion reunoilla suorat, vanhat ojat, jotka kuivattaneet osin kuviota. Osin turvekangasta tai muuttumaa, osin ruohoista ja luhtaista saranevakorpea. Yhdistelmätyyppi.
A46: 318 | B46: Lähdevaikutteinen korpi | C46: S01.04.02 Metsäkortekorvet | D46: 75 | E46: 0.7 | F46: 0.8 | G46: 0.6 | H46: 0.8 | I46: 0.6 | J46: 0.8 | K46: ei | M46: 0.725 | N46: 0.5075 | O46: Kyllä, Metso-taulukossa | P46: 91D0 | Q46: hyvä | R46: kyllä | S46: ei | T46: ei | U46: EN | V46: Ojitettu, lähdevaikutteinen korpi. Keski- ja itäosa metsäkortekorpea, hieman myös korpimuuttumaa. Lounaisreunalla tihkupintainen lähde (317) ja lähdelehtokorpea. Itäreunalla suuria haapoja.
A47: 321 | B47: Poskilammen rantarämeet | C47: S03.04 Isovarpurämeet | D47: 60 | E47: 0.9 | F47: 1 | G47: 0.9 | H47: 0.9 | I47: 0.7 | J47: 1 | K47: ei | M47: 0.9125 | N47: 0.82125 | O47: Kyllä, Metso-taulukossa | P47: 91D0 | Q47: hyvä | R47: ei | S47: ei | T47: ei | U47: NT | V47: Edustava rantasuo, vaikka rämevyöhyke jääkin hakkuun vuoksi pohjoisrannalla kapeaksi. Pohjoiskulmalla vanha oja, joka kuivattanut loput kuviosta rämemuuttumaksi ja turvekankaaksi, voinut olla korpiräme. Pohjoisrannan kuvion länsipäädyssä on luonnonsuojelulain nojalla suojeltu kalasääsken pesäpuu, joka on nykyisin keloutunut oksattomaksi. Ontto, palokorojen kirjoma kelo on yhä arvokas, vaikkei enää kalasääskelle.
A48: 327 | B48: Sekapuustoinen kostea rinnemetsä | C48: S01.02 Lehtokorvet | D48: 95 | E48: 0.7 | F48: 1 | G48: 0.9 | H48: 0.9 | I48: 0.7 | J48: 0.8 | K48: ei | M48: 0.8875 | N48: 0.62125 | O48: Kyllä, Metso-taulukossa | P48: 9050 | Q48: hyvä | R48: kyllä | S48: ei | T48: ei | U48: VU | V48: Sekapuustoinen, osin ku ja osin ko valtainen lehtokorpi. Kuviolla kostea juotti louhoksen reunamilta alas rinnettä itäkoilliseen, jonkinlaista pintaveden valumista. Ei varsinaisia lähteisyyden indikaattorilajeja. Hiirenporras, metsäkorte, isoalvejuuri, leskenlehti, mustaherukka, korpikastikka, lehtokuusama, suo-orvokki, vadelma, lehväsammalet. Lähellä louhoksen reunaa punakoiso, vehka, rikkapalsami, nokkonen. Jokunen terttuselja.
A49: 330 | B49: Arvokas valuvetinen lehtokorpirinne | C49: S01.02 Lehtokorvet | D49: 90 | E49: 2.4 | F49: 1 | G49: 1 | H49: 1 | I49: 0.9 | J49: 0.9 | K49: ei | M49: 0.975 | N49: 2.34 | O49: Kyllä, Metso-taulukossa | P49: 9050 | Q49: erinomainen | R49: ei | S49: ei | T49: ei | U49: VU | V49: Korpinurmikkaa (NT, RT), märkiä pintoja, valuvaa vettä.
A50: 343 | B50: Pieni korpilaikku | C50: S01.02 Lehtokorvet | D50: 100 | E50: 0.2 | F50: 0.7 | G50: 0.8 | H50: 0.5 | I50: 0.2 | J50: 0.9 | K50: ei | M50: 0.6375 | N50: 0.1275 | O50: Kyllä, Metso-taulukossa | P50: 9050 | Q50: merkittävä | R50: kyllä | S50: ei | T50: ei | U50: VU | V50: Pieni saniaiskorpilaikku kangasmetsän keskellä.
A51: 341 | B51: Ojitettu korpi | C51: Korpimuuttuma | D51: 99 | E51: 1.6 | F51: 0.3 | G51: 0.5 | H51: 0.8 | I51: 0.3 | J51: 0.2 | K51: ei | M51: 0.4625 | N51: 0.74 | O51: ei | P51: ei | Q51: ei | R51: ei | S51: ei | T51: ei | V51: Puron uoma perattu ojaksi, viereinen kaatopaikka heikentänyt suuresti luonnontilaa. Osa kuviosta voi olla parempaa? Osin tulkittu.
A52: 346 | B52: Myllyjoen ja korvapuron rantasuot | C52: S01.02 Lehtokorvet | D52: 65 | E52: 2.6 | F52: 1 | G52: 1 | H52: 1 | I52: 0.9 | J52: 1 | K52: ei | M52: 0.9875 | N52: 2.5675 | O52: kyllä | P52: Lehdot (9050) | Q52: Erinomainen | R52: ei | S52: ei | T52: ei | U52: VU | V52: Erittäin edustavaa järeäpuustoista puronvarsilehtoa. Paikoin kotkansiipeä. Hentosaraa (NT).
A53: 466 | B53: Myllyjoen varren lehtokorpien mete-osuus | C53: S01.02 Lehtokorvet | D53: 65 | E53: 1.4 | F53: 1 | G53: 1 | H53: 1 | I53: 0.9 | J53: 1 | K53: ei | M53: 0.9875 | N53: 1.3825 | O53: kyllä | P53: Lehdot (9050) | Q53: Erinomainen | R53: kyllä | S53: ei | T53: ei | U53: VU | V53: Myllyojan varren metsälakiosuus. Erittäin edustavaa järeäpuustoista puronvarsilehtoa. Paikoin kotkansiipeä. Hentosaraa (NT).
A54: 391 | B54: Pieni soistuma vanhalla ojalla | C54: S03.02 Korpirämeet | D54: 100 | E54: 0.3 | F54: 0.9 | G54: 0.7 | H54: 0.9 | I54: 0.3 | J54: 1 | K54: ei | M54: 0.7875 | N54: 0.23625 | O54: ei | P54: 91D0 | Q54: merkittävä, poikkeama ihmistoiminnan aiheuttama | R54: ei | S54: ei | T54: ei | U54: EN | V54: Pienialainen korpiräme ojitetun vanhan norouoman varrella. Muutamia kilpikaarnamäntyjä, kasvillisuus luontotyypille ominainen (mustikka, suopursu, juolukka, vaivero, puolukka, lakka, pallosara, tupasvilla, rahkasammalet).
A55: 396 | B55: Pieni pyöreä suo | C55: S02.02 Sarakorvet | D55: 90 | E55: 0.1 | F55: 0.8 | G55: 0.9 | H55: 0.5 | I55: 0.3 | J55: 0.9 | K55: ei | M55: 0.7 | N55: 0.07 | O55: ei | P55: 91D0 | Q55: merkittävä, poikkeama ihmistoiminnan aiheuttama | R55: kyllä | S55: ei | T55: ei | U55: VU | V55: Pikkuinen vähäpuustoinen avolaikku, mm. Pullosara, korpikastikka, luhtavilla, virpapaju, mättäillä puolukka, lakka, hiko, ku.
A56: 404 | B56: Oja S-reunalla | C56: S01.04.02 Metsäkortekorvet | D56: 65 | E56: 0.6 | F56: 0.8 | G56: 0.6 | H56: 0.8 | I56: 0.9 | J56: 0.9 | K56: ei | M56: 0.775 | N56: 0.465 | O56: kyllä | P56: 91D0 | Q56: merkittävä, poikkeama ihmistoiminnan aiheuttama | R56: kyllä | S56: ei | T56: ei | U56: EN | V56: Ojituksen osin kuivattama, yhä edustava. Puusto varttunutta, erirakenteista, lahopuuta hyvin. Rajautuu ojaan, hakkuuseen ja tiehen, reunavaikutusta. Itäreuna MT-kangasta.
A57: 428 | B57: Korpijuotti | C57: S01.01 Kangaskorvet | D57: 95 | E57: 1.3 | F57: 1 | G57: 0.9 | H57: 0.7 | I57: 0.5 | J57: 0.9 | K57: ei | M57: 0.825 | N57: 1.0725 | O57: kyllä | P57: ei | Q57: ei | R57: ei | S57: ei | T57: ei | U57: EN | V57: Loivan rinteen painanteessa alas laskeutuva kapea korpijuotti.
A58: 432 | B58: Kuivunut korpijuotti | C58: Korpimuuttuma | D58: 90 | E58: 1.4 | F58: 0.5 | G58: 0.5 | H58: 0.3 | I58: 0.5 | J58: 0.7 | K58: ei | M58: 0.475 | N58: 0.665 | O58: ei | P58: ei | Q58: ei | R58: ei | S58: ei | T58: ei | V58: Kapea juotti rinteen painaumassa. N-osa pahemmin kuivunut, runsaasti haapaa ja muutama vanha raita. S-osassa vielä kangaskorven piirteitä. Yläpuolisen valuma-alueen ojitukset todennäköisesti kuivattaneet, metsää raivattu.
A59: 436 | B59: Ojitettu korpi | C59: Korpimuuttuma | D59: 10 | E59: 0.4 | F59: 0.7 | G59: 0.6 | H59: 0.5 | I59: 0.7 | J59: 0.7 | K59: ei | M59: 0.625 | N59: 0.25 | O59: ei | P59: ei | Q59: ei | R59: ei | S59: ei | T59: ei | V59: Puusto yli 60 v, ku valtaista, mustikka ja metsäkorte runsaita. Ojitus kuivattanut.
A60: 439 | B60: Puusto nuorta hiko, ku | C60: S01.04 Aitokorvet | D60: 90 | E60: 0.8 | F60: 0.7 | G60: 0.9 | H60: 0.6 | I60: 0.2 | J60: 0.7 | K60: ei | M60: 0.6625 | N60: 0.53 | O60: kyllä | P60: 91D0 | Q60: merkittävä, poikkeama ihmistoiminnan aiheuttama | R60: ei | S60: ei | T60: ei | U60: EN | V60: Puusto nuorta, reunalta käsitelty, METE-kriteeri ei täyty. Vesitalous kuit luonnontilaisen oloinen, siksi METSO-peruste täyttyy. Todennäköisesti suurelta osin metsäkortekorpea, mutta metsänkäsittely voinut muuttaa kasvillisuuden rakennetta.
A61: 447 | B61: Kaatopaikan reunalla | C61: Korpimuuttuma | D61: 99 | E61: 0.9 | F61: 0.5 | G61: 0.5 | H61: 0.6 | I61: 0.5 | J61: 0.3 | K61: ei | M61: 0.5 | N61: 0.45 | O61: ei | P61: ei | Q61: ei | R61: ei | S61: ei | T61: ei | V61: Tulkittu. Kaatopaikan ja kuvion rajalla oja, joka on luonnontilansa menettänyt noro. Voimakas kaatopaikan reunavaikutus.

Sheet Kangasmetsät yms.
A1: 3.8.1. Lehtomaiset kankaat, Jalopuustoiset kangasmetsät, Tuoreet kankaat, Kuivahkot kankaat, Ruoho-, mustikka-, puolukka-, ja varputurvekankaat
A4: Mittarit | F4: Kehitysluokka | L4: Luontotyypille ominaisten puuston rakennepiirteiden esiintyminen: eri-ikäisyys, latvuskerroksellisuus, satunnainen tilajakauma, palojäljet, monilajisuus | R4: Luontotyypille ominainen lahopuun määrä3 ja rakennepiirteet: jatkumo, järeä lahopuu, monilajisuus | S4: Kasvillisuuden (putkilokasvit ja/tai jäkälät ja/tai sammalet) edustavuus: lajisto ja kasvillisuuden rakenne (runsaus, peittävyys, lajien/lajiryhmien runsaussuhteet | T4: Järeiden puiden määrä | U4: Haitalliset vieraskavilajit | V4: Muu ihmisvaikutus
A5: Mittarin suhteellinen painokerroin | F5: 2 | L5: 2 | R5: 2 | S5: 1 | T5: 1 | U5: 1 | V5: 1
M6: Jompi kumpi näistä (arvio)
A7: Tarkasteltava asia | B7: apusarake yleiskuvaus | G7: Eri-ikäisyys | H7: Latvuskerroksellisuus | I7: Satunnainen tilajakauma | J7: palojäljet | K7: monilajisuus | M7: Määrä m3/ha | N7: Määrä, osuutena luonnontilaisesta | O7: Jatkumo | P7: Järeä lahopuu | Q7: Monilajisuus
C8: Tee tarvitatessa usempi rivi samalle kuviolle, jos useita kangasmetsien/turvekankaiden (pl. karukkokonkaat) luontotyyppejä!
A9: Kuvionro | B9: apusarake yleiskuvaus | C9: LuTu-luontotyyppi (koodi) | D9: LuTu-tyypin % kuviosta | E9: Kuvion pinta-ala, ha | F9: Mittarin arvo (0,1 -1,0) | G9: Apumittarin arvo (0, 1 tai 2) | L9: Mittarin arvo (0,1 -1,0) | O9: Apumittarin arvo (0, 1 tai 2) | R9: Mittarin arvo (0,1 -1,0) | S9: Mittarin arvo (0,1 -1,0) | T9: Mittarin arvo (0,1 -1,0) | U9: Mittarin arvo (0,1 -1,0) | V9: Mittarin arvo (0,1 -1,0) | W9: Luonnonarvovastaavuus | X9: Luonnonarvohehtaarit | Y9: METSO kohde | Z9: NATURA | AA9: Natura edustavuus | AB9: METE | AC9: vesilaki | AD9: LSL 64-65 § kohde? | AE9: uhex | AF9: Muuta
A10: 4 | B10: muutaman vuoden vanha avohakkuu | C10: Nuoret tuoreet kankaat M02.02.01 | D10: 95 | E10: 2.7 | F10: 0.3 | G10: 0 | H10: 0 | I10: 1 | J10: 0 | K10: 1 | L10: 0.4 | R10: 0.2 | S10: 0.2 | T10: 0.2 | U10: 1 | V10: 0.5 | W10: =(2*SUM(F10,L10,R10)+SUM(S10:V10))/(2*AREAS((F10,L10,R10))+COLUMNS(S10:V10)) -> 0.37 | X10: =(PRODUCT(E10,W10)) -> 0.999 | Y10: ei | Z10: ei | AA10: ei | AB10: ei | AC10: ei | AD10: ei | AE10: VU | AF10: hakkuu
A11: 5 | B11: Lähinnä mustikkaturvekangas | C11: Mustikkaturvekangas | D11: 99 | E11: 3.2 | F11: 0.6 | G11: 1 | H11: 1 | I11: 2 | J11: 0 | K11: 1 | L11: 0.4 | R11: 0.3 | S11: 0.8 | T11: 0.2 | U11: 1 | V11: 1 | W11: =(2*SUM(F11,L11,R11)+SUM(S11:V11))/(2*AREAS((F11,L11,R11))+COLUMNS(S11:V11)) -> 0.56 | X11: 1.792 | Y11: ei | Z11: ei | AA11: ei | AB11: ei | AC11: ei | AD11: ei | AF11: turvekangas
A12: 6 | B12: Turvemaa, muuttuma, tuore hakkuu | C12: Turvemaan tuore hakkuu (muuttuma/turvekg) | D12: 99 | E12: 1.8 | F12: 0.1 | L12: 0.1 | R12: 0.1 | S12: 0.5 | T12: 0.1 | U12: 0.5 | V12: 0.3 | W12: =(2*SUM(F12,L12,R12)+SUM(S12:V12))/(2*AREAS((F12,L12,R12))+COLUMNS(S12:V12)) -> 0.2 | X12: 0.36 | Y12: ei | Z12: ei | AA12: ei | AB12: ei | AC12: ei | AD12: ei | AF12: aivan tuore hakkuu (touko-kesäkuu 25)
A13: 11 | B13: avohakkuu, ollut lehtomaista kangasta tod näk | C13: Nuoret lehtomaiset kankaat M02.01.01 | D13: 99 | E13: 0.3 | F13: 0.1 | G13: 0 | H13: 0 | I13: 1 | J13: 0 | K13: 1 | L13: 0.2 | O13: 0 | P13: 0 | Q13: 0 | R13: 0.1 | S13: 0.1 | T13: 0.1 | U13: 0.9 | V13: 1 | W13: =(2*SUM(F13,L13,R13)+SUM(S13:V13))/(2*AREAS((F13,L13,R13))+COLUMNS(S13:V13)) -> 0.29 | X13: 0.087 | Y13: ei | Z13: ei | AA13: ei | AB13: ei | AC13: ei | AD13: ei | AE13: VU | AF13: hakkuu
A14: 22 | B14: tiheä varttunut taimikko, kuusi. Myös koivu ja vähän pihlajaa tulossa. | C14: Nuoret tuoreet kankaat M02.02.01 | D14: 99 | E14: 2.9 | F14: 0.1 | G14: 0 | H14: 0 | I14: 0 | J14: 0 | K14: 1 | L14: 0.1 | M14: 0 | R14: 0.1 | S14: 0.1 | T14: 0.1 | U14: 0.9 | V14: 0.8 | W14: =(2*SUM(F14,L14,R14)+SUM(S14:V14))/(2*AREAS((F14,L14,R14))+COLUMNS(S14:V14)) -> 0.25 | X14: 0.725 | Y14: ei | Z14: ei | AA14: ei | AB14: ei | AC14: ei | AD14: ei | AE14: VU
A15: 23 | C15: Varttuneet havupuuvaltaiset tuoreet kankaat M02.02.02 | D15: 99 | E15: 0.1 | F15: 0.5 | G15: 0 | H15: 0 | I15: 0 | J15: 0 | K15: 0 | L15: 0.1 | M15: 0 | R15: 0.1 | S15: 0.5 | T15: 0.1 | U15: 1 | V15: 1 | W15: =(2*SUM(F15,L15,R15)+SUM(S15:V15))/(2*AREAS((F15,L15,R15))+COLUMNS(S15:V15)) -> 0.4 | X15: 0.04 | Y15: ei | Z15: ei | AA15: ei | AB15: ei | AC15: ei | AD15: ei | AE15: NT | AF15: tulkittu
A16: 25 | B16: varttunut taimikko; lehtomaista kangasta säästöpuuryhmiä | C16: Nuoret lehtomaiset kankaat M02.01.01 | D16: 99 | E16: 0.5 | F16: 0.3 | G16: 1 | H16: 1 | I16: 1 | J16: 0 | K16: 2 | L16: 0.6 | S16: 0.5 | T16: 0.1 | U16: 1 | V16: 0.5 | W16: =(2*SUM(F16,L16,R16)+SUM(S16:V16))/(2*AREAS((F16,L16,R16))+COLUMNS(S16:V16)) -> 0.39 | X16: 0.195 | Y16: ei | Z16: ei | AA16: ei | AB16: ei | AC16: ei | AD16: ei | AE16: VU | AF16: tulkittu kuvio (MV tieto)
A17: 26 | B17: Nuori kasvatusmetsikkö; tuoretta/lehtomaista kg | C17: Nuoret tuoreet kankaat M02.02.01 | D17: 99 | E17: 1.6 | F17: 0.4 | G17: 0 | H17: 0 | I17: 1 | J17: 0 | K17: 0 | L17: 0.2 | M17: 0 | O17: 0 | P17: 0 | Q17: 0 | R17: 0.1 | S17: 0.3 | T17: 0.1 | U17: 1 | V17: 0.8 | W17: =(2*SUM(F17,L17,R17)+SUM(S17:V17))/(2*AREAS((F17,L17,R17))+COLUMNS(S17:V17)) -> 0.36 | X17: 0.576 | Y17: ei | Z17: ei | AA17: ei | AB17: ei | AC17: ei | AD17: ei | AE17: VU
A18: 30 | B18: VMT; varttunut kasvatusmetsikkö | C18: Varttuneet havupuuvaltaiset tuoreet kankaat M02.02.02 | D18: 99 | E18: 0.1 | F18: 0.5 | G18: 0 | H18: 0 | I18: 1 | J18: 0 | K18: 1 | L18: 0.5 | M18: 0-5 | O18: 0 | P18: 0 | Q18: 0 | R18: 0.1 | W18: =(2*SUM(F18,L18,R18)+SUM(S18:V18))/(2*AREAS((F18,L18,R18))+COLUMNS(S18:V18)) -> 0.22 | X18: 0.022 | Y18: ei | Z18: ei | AA18: ei | AB18: ei | AC18: ei | AD18: ei | AE18: NT | AF18: tulkittu kuvio (MV tieto)
A19: 31 | B19: Varttunut koivutaimikko, tietojen mukaan kuusivaltainen, osin ojitettu, tod näk rehevää korpea ollut osin | C19: Nuoret lehtomaiset kankaat M02.01.01 | D19: 90 | E19: 3.9 | F19: 0.3 | G19: 0 | H19: 0 | I19: 0 | J19: 0 | K19: 1 | L19: 0.2 | M19: 0 | O19: 0 | P19: 0 | Q19: 0 | R19: 0.1 | S19: 0.1 | T19: 0.1 | U19: 0.5 | V19: 0.3 | W19: =(2*SUM(F19,L19,R19)+SUM(S19:V19))/(2*AREAS((F19,L19,R19))+COLUMNS(S19:V19)) -> 0.22 | X19: 0.858 | Y19: ei | Z19: ei | AA19: ei | AB19: ei | AC19: ei | AD19: ei | AE19: VU | AF19: Ollut rehevämpi kangas, ja pieneltä osin räme/korpi. Koivu vallitsee, seassa myös kuusi
A20: 34 | B20: VMT | C20: Varttuneet havupuuvaltaiset tuoreet kankaat M02.02.02 | D20: 100 | E20: 0.98 | F20: 0.5 | G20: 0 | H20: 0 | I20: 1 | J20: 0 | K20: 1 | L20: 0.5 | O20: 0 | P20: 0 | Q20: 0 | R20: 0.2 | S20: 0.7 | T20: 0.1 | U20: 1 | V20: 1 | W20: =(2*SUM(F20,L20,R20)+SUM(S20:V20))/(2*AREAS((F20,L20,R20))+COLUMNS(S20:V20)) -> 0.52 | X20: 0.5096 | Y20: ei | Z20: ei | AA20: ei | AB20: ei | AC20: ei | AD20: ei | AE20: NT
A21: 35 | B21: kastikkainen männylle viljelty ex OMT/VMT? | C21: Varttuneet havupuuvaltaiset tuoreet kankaat M02.02.02 | D21: 99 | E21: 2.4 | F21: 0.5 | G21: 0 | H21: 0 | I21: 1 | J21: 0 | K21: 1 | L21: 0.5 | M21: 0-5 | O21: 0 | P21: 0 | Q21: 0 | R21: 0.2 | S21: 0.6 | T21: 0.1 | U21: 1 | V21: 1 | W21: =(2*SUM(F21,L21,R21)+SUM(S21:V21))/(2*AREAS((F21,L21,R21))+COLUMNS(S21:V21)) -> 0.51 | X21: 1.224 | Y21: ei | Z21: ei | AA21: ei | AB21: ei | AC21: ei | AD21: ei | AE21: NT
A22: 36 | B22: Avohakattu ja osin ojitusmätästetty alue; osa ollut pienesti ehkä rehevää korpea, nyt muuttumaa | C22: Nuoret lehtomaiset kankaat M02.01.01 | D22: 85 | E22: 3.3 | F22: 0.1 | G22: 0 | H22: 0 | I22: 0 | J22: 0 | K22: 0 | L22: 0.1 | M22: 0 | O22: 0 | P22: 0 | Q22: 0 | R22: 0.1 | S22: 0.1 | T22: 0.1 | U22: 0.5 | V22: 0.1 | W22: =(2*SUM(F22,L22,R22)+SUM(S22:V22))/(2*AREAS((F22,L22,R22))+COLUMNS(S22:V22)) -> 0.14 | X22: 0.462 | Y22: ei | Z22: ei | AA22: ei | AB22: ei | AC22: ei | AD22: ei | AE22: VU | AF22: rehevämpi entinen kangas, ja vähäisesti räme/korpialuetta. Reunoilla näkyy myös hyvin tuoretta ojitusmätästystä (lähinnä kuusta istutettu)
A23: 38 | B23: VMT pieni talousmetsäkuvio | C23: Varttuneet havupuuvaltaiset tuoreet kankaat M02.02.02 | D23: 99 | E23: 0.2 | F23: 0.5 | G23: 0 | H23: 0 | I23: 0 | J23: 0 | K23: 1 | L23: 0.3 | M23: 0-5 | O23: 0 | P23: 0 | Q23: 0 | R23: 0.4 | S23: 0.8 | T23: 0.1 | U23: 1 | V23: 0.1 | W23: =(2*SUM(F23,L23,R23)+SUM(S23:V23))/(2*AREAS((F23,L23,R23))+COLUMNS(S23:V23)) -> 0.44 | X23: 0.088 | Y23: ei | Z23: ei | AA23: ei | AB23: ei | AC23: ei | AD23: ei | AE23: NT | AF23: sisältää pienen sääsöpuuryhmän josta tuuli kaatanut reunalta paljon kuusta
A24: 40 | B24: mustikkaturvekangas | C24: Mustikkaturvekangas | D24: 99 | E24: 6.5 | F24: 0.5 | G24: 1 | H24: 1 | I24: 1 | J24: 0 | K24: 1 | L24: 0.7 | M24: 0-5 | O24: 0 | P24: 0 | Q24: 0 | R24: 0.1 | S24: 0.8 | T24: 0.1 | U24: 1 | V24: 0.9 | W24: =(2*SUM(F24,L24,R24)+SUM(S24:V24))/(2*AREAS((F24,L24,R24))+COLUMNS(S24:V24)) -> 0.54 | X24: 3.51 | Y24: ei | Z24: ei | AA24: ei | AB24: ei | AC24: ei | AD24: ei
A25: 43 | B25: männylle (viljelty?) varttunut kasvatusmetsikkö, aiemmin harvennettu | C25: Varttuneet havupuuvaltaiset tuoreet kankaat M02.02.02 | D25: 99 | E25: 0.6 | F25: 0.5 | G25: 0 | H25: 0 | I25: 0 | J25: 0 | K25: 0 | L25: 0.1 | M25: 0 | O25: 0 | P25: 0 | Q25: 0 | R25: 0.1 | S25: 0.1 | T25: 0.1 | U25: 1 | V25: 1 | W25: =(2*SUM(F25,L25,R25)+SUM(S25:V25))/(2*AREAS((F25,L25,R25))+COLUMNS(S25:V25)) -> 0.36 | X25: 0.216 | Y25: ei | Z25: ei | AA25: ei | AB25: ei | AC25: ei | AD25: ei | AE25: NT | AF25: hakattu ja harvennustarpeessa oleva männylle tn viljelty kumpare (alun perin rehevämpää tyyppiä)
A26: 45 | B26: varttunut metsikkö; kastikkainen kuusikko-männikkö. Ollut tn rehevämpää metsää. | C26: Varttuneet havupuuvaltaiset tuoreet kankaat M02.02.02 | D26: 99 | E26: 1.9 | F26: 0.5 | G26: 0 | H26: 0 | I26: 1 | J26: 0 | K26: 1 | L26: 0.5 | M26: 0-5 | O26: 0 | P26: 0 | Q26: 0 | R26: 0.1 | S26: 0.4 | T26: 0.1 | U26: 1 | V26: 0.8 | W26: =(2*SUM(F26,L26,R26)+SUM(S26:V26))/(2*AREAS((F26,L26,R26))+COLUMNS(S26:V26)) -> 0.45 | X26: 0.855 | Y26: ei | Z26: ei | AA26: ei | AB26: ei | AC26: ei | AD26: ei | AE26: NT | AF26: todennäköistä kangasmaitikkaa runsaasti (poikkeuksellisen kuivuuden takia ruskettuneista tarkempi lajinmääritys vaikeaa)
A27: 46 | B27: koivutaimikko | C27: Nuoret lehtomaiset kankaat M02.01.01 | D27: 99 | E27: 1.6 | F27: 0.3 | G27: 0 | H27: 0 | I27: 0 | J27: 0 | K27: 1 | L27: 0.1 | M27: 0 | O27: 0 | P27: 0 | Q27: 0 | R27: 0.1 | S27: 0.4 | T27: 0.1 | U27: 1 | V27: 0.7 | W27: =(2*SUM(F27,L27,R27)+SUM(S27:V27))/(2*AREAS((F27,L27,R27))+COLUMNS(S27:V27)) -> 0.32 | X27: 0.512 | Y27: ei | Z27: ei | AA27: ei | AB27: ei | AC27: ei | AD27: ei | AE27: VU | AF27: koivutaimikko, jossa seassa myös mm. kuusta, entinen tuore/lehtomainen kangas
A28: 47 | B28: harvennettua kuusikkoreunusta | C28: Varttuneet havupuuvaltaiset lehtomaiset kankaat M02.01.02 | D28: 99 | E28: 0.1 | F28: 0.5 | G28: 0 | H28: 0 | I28: 0 | J28: 0 | K28: 1 | L28: 0.1 | M28: 0-5 | O28: 0 | P28: 0 | Q28: 0 | R28: 0.1 | S28: 0.4 | T28: 0.1 | U28: 1 | V28: 1 | W28: =(2*SUM(F28,L28,R28)+SUM(S28:V28))/(2*AREAS((F28,L28,R28))+COLUMNS(S28:V28)) -> 0.39 | X28: 0.039 | Y28: ei | Z28: ei | AA28: ei | AB28: ei | AC28: ei | AD28: ei | AE28: NT
A29: 49 | C29: M02.01.03 Vanhat havupuuvaltaiset lehtomaiset kankaat (OMT) | D29: 99 | E29: 1.5 | F29: 0.8 | G29: 2 | H29: 1 | I29: 1 | J29: 0 | K29: 1 | L29: 0.7 | M29: 5-10 | O29: 1 | P29: 1 | Q29: 1 | R29: 0.6 | S29: 0.8 | T29: 0.7 | U29: 1 | V29: 0.6 | W29: =(2*SUM(F29,L29,R29)+SUM(S29:V29))/(2*AREAS((F29,L29,R29))+COLUMNS(S29:V29)) -> 0.73 | X29: 1.095 | Y29: kyllä | Z29: boreaaliset luonnonmetsät (9010) | AA29: hyvä, poikkeama ihmistoiminnan aiheuttama | AB29: ei | AC29: ei | AD29: ei | AE29: EN | AF29: kuviolla laavukyhäelmä ja näyttää siltä että lahopuuta on tällä kuviolla vähemmän koska sitä on kerätty poltettavaksi, kuviolla myös hieman tihkuisuutta ja lehtoisuutta indikoiva pieni painauma, jossa mm. hentosaraa (NT). Kuviolta löytyy myös mm. kuusenkääpää
A30: 50 | C30: M02.01.03 Vanhat havupuuvaltaiset lehtomaiset kankaat (OMT) | D30: 99 | E30: 2.3 | F30: 0.9 | G30: 2 | H30: 2 | I30: 2 | J30: 0 | K30: 2 | L30: 0.9 | M30: 10-15 | O30: 2 | P30: 1 | Q30: 1 | R30: 0.7 | S30: 0.9 | T30: 0.8 | U30: 1 | V30: 0.9 | W30: =(2*SUM(F30,L30,R30)+SUM(S30:V30))/(2*AREAS((F30,L30,R30))+COLUMNS(S30:V30)) -> 0.78 | X30: 1.794 | Y30: kyllä | Z30: boreaaliset luonnonmetsät (9010) | AA30: hyvä, poikkeama ihmistoiminnan aiheuttama | AB30: ei | AC30: ei | AD30: ei | AE30: EN | AF30: runsaasti tuoretta lahopuuta, rytöjä paikoin
A31: 51 | B31: nuorempi kasvatuskoivikko, rauduskoivu (OMT) | C31: Nuoret lehtomaiset kankaat M02.01.01 | D31: 99 | E31: 1.2 | F31: 0.5 | G31: 0 | H31: 0 | I31: 0 | J31: 0 | K31: 2 | L31: 0.4 | M31: 0-5 | O31: 0 | P31: 0 | Q31: 0 | R31: 0.1 | S31: 0.5 | T31: 0.1 | U31: 1 | V31: 1 | W31: =(2*SUM(F31,L31,R31)+SUM(S31:V31))/(2*AREAS((F31,L31,R31))+COLUMNS(S31:V31)) -> 0.46 | X31: 0.552 | Y31: ei | Z31: ei | AA31: ei | AB31: ei | AC31: ei | AD31: ei | AE31: VU | AF31: Monilajinen rauduskoivukasvatusmetsä; alikasvoksena myös kuusi, mänty, harmaaleppä, vanhempi raita, mänty, haapa, pihlaja
A32: 52 | B32: hakkuuaukea (tuore tai lehtomainen kangas) | C32: Nuoret lehtomaiset kankaat M02.01.01 | D32: 99 | E32: 1.2 | F32: 0.1 | G32: 0 | H32: 0 | I32: 0 | J32: 0 | K32: 0 | L32: 0.1 | M32: 0 | O32: 0 | P32: 0 | Q32: 0 | R32: 0.1 | S32: 0.1 | T32: 0.1 | U32: 1 | V32: 0.4 | W32: =(2*SUM(F32,L32,R32)+SUM(S32:V32))/(2*AREAS((F32,L32,R32))+COLUMNS(S32:V32)) -> 0.22 | X32: 0.264 | Y32: ei | Z32: ei | AA32: ei | AB32: ei | AC32: ei | AD32: ei | AE32: VU
A33: 53 | B33: Aikoinaan harvennettu, heinittynyt uudistuskypsä ex-OMT | C33: Varttuneet havupuuvaltaiset lehtomaiset kankaat M02.01.02 | D33: 99 | E33: 0.7 | F33: 0.8 | G33: 1 | H33: 0 | I33: 1 | J33: 0 | K33: 1 | L33: 0.6 | M33: 0-5 | O33: 1 | P33: 1 | Q33: 0 | R33: 0.6 | S33: 0.5 | T33: 0.4 | U33: 1 | V33: 0.7 | W33: =(2*SUM(F33,L33,R33)+SUM(S33:V33))/(2*AREAS((F33,L33,R33))+COLUMNS(S33:V33)) -> 0.66 | X33: 0.462 | Y33: ei | Z33: ei | AA33: ei | AB33: ei | AC33: ei | AD33: ei | AE33: NT | AF33: Kuvion toisessa päässä runsaasti tuoretta lahopuuta, myrskyn kaatamia
A34: 55 | B34: Tuore kangas, varttunut taimikko | C34: Nuoret tuoreet kankaat M02.02.01 | D34: 99 | E34: 0.9 | F34: 0.3 | G34: 1 | H34: 0 | I34: 0 | J34: 0 | K34: 1 | L34: 0.3 | M34: 0 | O34: 0 | P34: 0 | Q34: 0 | R34: 0.1 | S34: 0.1 | T34: 0.1 | U34: 1 | V34: 0.7 | W34: =(2*SUM(F34,L34,R34)+SUM(S34:V34))/(2*AREAS((F34,L34,R34))+COLUMNS(S34:V34)) -> 0.33 | X34: 0.297 | Y34: ei | Z34: ei | AA34: ei | AB34: ei | AC34: ei | AD34: ei | AE34: VU | AF34: Tulkittu. Yli 1,3 m mäntytaimikko; myös ku, ko.
A35: 56 | B35: varttunut kasvatusmetsä, mäntyvaltainen | C35: Varttuneet havupuuvaltaiset lehtomaiset kankaat M02.01.02 | D35: 99 | E35: 2 | F35: 0.5 | G35: 0 | H35: 0 | I35: 0 | J35: 0 | K35: 1 | L35: 0.5 | M35: 0 | O35: 0 | P35: 0 | Q35: 0 | R35: 0.1 | S35: 0.5 | T35: 0.1 | U35: 1 | V35: 0.9 | W35: =(2*SUM(F35,L35,R35)+SUM(S35:V35))/(2*AREAS((F35,L35,R35))+COLUMNS(S35:V35)) -> 0.47 | X35: 0.94 | Y35: ei | Z35: ei | AA35: ei | AB35: ei | AC35: ei | AD35: ei | AE35: NT | AF35: tulkittu
A36: 57 | B36: varttunut ojitettu kasvatusmetsä (OMT), soistumia/muuttumia | C36: Varttuneet havupuuvaltaiset lehtomaiset kankaat M02.01.02 | D36: 99 | E36: 4.9 | F36: 0.5 | G36: 1 | H36: 1 | I36: 1 | J36: 0 | K36: 1 | L36: 0.6 | M36: 0-5 | O36: 0 | P36: 0 | Q36: 0 | R36: 0.1 | S36: 0.6 | T36: 0.1 | U36: 1 | V36: 0.6 | W36: =(2*SUM(F36,L36,R36)+SUM(S36:V36))/(2*AREAS((F36,L36,R36))+COLUMNS(S36:V36)) -> 0.47 | X36: 2.303 | Y36: ei | Z36: ei | AA36: ei | AB36: ei | AC36: ei | AD36: ei | AE36: NT | AF36: lähinnä kuusivaltainen, paikoin soistumaa, aika vasta harvennushakattu (epätasaisesti), vadelmaisia ajouria tiheästi, hakkuutähteitä paljon, myös pieniä runkoja,
A37: 58 | B37: varttunut kasvatuskuusikoivikko (OMT) | C37: Varttuneet havupuuvaltaiset lehtomaiset kankaat M02.01.02 | D37: 99 | E37: 2 | F37: 0.5 | G37: 0 | H37: 0 | I37: 1 | J37: 0 | K37: 1 | L37: 0.4 | M37: 0 | O37: 0 | P37: 0 | Q37: 0 | R37: 0.1 | S37: 0.1 | T37: 0.5 | U37: 1 | V37: 0.7 | W37: =(2*SUM(F37,L37,R37)+SUM(S37:V37))/(2*AREAS((F37,L37,R37))+COLUMNS(S37:V37)) -> 0.43 | X37: 0.86 | Y37: ei | Z37: ei | AA37: ei | AB37: ei | AC37: ei | AD37: ei | AE37: NT | AF37: Osin tulkittu. Monilajinen koivukasvatusmetsä myös kuusi, mänty (aihkejakin), harmaaleppä, mänty, haapa (myös isoa), pihlaja. H
A38: 59 | B38: Varttunut kuusivaltainen kasvatusmetsä, ojitettu, lähinnä ruohoturvekangasta sekä korpimuuttumaa. | C38: Ruohoturvekangas/korpimuuttuma | D38: 99 | E38: 0.9 | F38: 0.5 | G38: 1 | H38: 0 | I38: 1 | J38: 0 | K38: 1 | L38: 0.6 | M38: 0-5 | O38: 0 | P38: 0 | Q38: 0 | R38: 0.1 | S38: 0.6 | T38: 0.1 | U38: 1 | V38: 0.3 | W38: =(2*SUM(F38,L38,R38)+SUM(S38:V38))/(2*AREAS((F38,L38,R38))+COLUMNS(S38:V38)) -> 0.44 | X38: 0.396 | Y38: ei | Z38: ei | AA38: ei | AB38: ei | AC38: ei | AD38: ei | AF38: Vaihteleva kuvio, paikoin jätetty paljon hakkutähteitä, paikoin edustavampaa kasvillisuutta
A39: 60 | B39: Nuori kasvatusmetsikkö; tuoretta/lehtomaista kg | C39: Nuoret tuoreet kankaat M02.02.01 | D39: 99 | E39: 0.6 | F39: 0.5 | G39: 0 | H39: 0 | I39: 0 | J39: 0 | K39: 0 | L39: 0.1 | M39: 0 | O39: 0 | P39: 0 | Q39: 0 | R39: 0.1 | S39: 0.5 | T39: 0.1 | U39: 1 | V39: 0.8 | W39: =(2*SUM(F39,L39,R39)+SUM(S39:V39))/(2*AREAS((F39,L39,R39))+COLUMNS(S39:V39)) -> 0.38 | X39: 0.228 | Y39: ei | Z39: ei | AA39: ei | AB39: ei | AC39: ei | AD39: ei | AE39: VU | AF39: tulkittu
A40: 61 | B40: Nuori kasvatusmetsikkö, kuusivaltainen (OMT) | C40: Nuoret lehtomaiset kankaat M02.01.01 | D40: 99 | E40: 4.7 | F40: 0.5 | G40: 1 | H40: 1 | I40: 1 | J40: 0 | K40: 1 | L40: 0.6 | M40: 0 | O40: 0 | P40: 0 | Q40: 0 | R40: 0.1 | S40: 0.5 | T40: 0.1 | U40: 1 | V40: 0.9 | W40: =(2*SUM(F40,L40,R40)+SUM(S40:V40))/(2*AREAS((F40,L40,R40))+COLUMNS(S40:V40)) -> 0.49 | X40: 2.303 | Y40: ei | Z40: ei | AA40: ei | AB40: ei | AC40: ei | AD40: ei | AE40: VU | AF40: nuorta ja tiheää, heinittynyttä
A41: 62 | B41: heinittynyt hakkuutaimikko, koivukasvos, säästöpuuryhmiä | C41: Nuoret lehtomaiset kankaat M02.01.01 | D41: 90 | E41: 3.6 | F41: 0.2 | G41: 0 | H41: 0 | I41: 0 | J41: 0 | K41: 0 | L41: 0.1 | O41: 0 | P41: 0 | Q41: 0 | R41: 0.1 | S41: 0.1 | T41: 0.1 | U41: 1 | V41: 0.2 | W41: =(2*SUM(F41,L41,R41)+SUM(S41:V41))/(2*AREAS((F41,L41,R41))+COLUMNS(S41:V41)) -> 0.22 | X41: 0.792 | Y41: ei | Z41: ei | AA41: ei | AB41: ei | AC41: ei | AD41: ei | AE41: VU
A42: 63 | C42: Varttuneet havupuuvaltaiset lehtomaiset kankaat M02.01.02 | D42: 90 | E42: 1.5 | F42: 0.5 | G42: 0 | H42: 0 | I42: 0 | J42: 0 | K42: 1 | L42: 0.3 | O42: 0 | P42: 0 | Q42: 0 | R42: 0.1 | S42: 0.5 | T42: 0.1 | U42: 1 | V42: 0.8 | W42: =(2*SUM(F42,L42,R42)+SUM(S42:V42))/(2*AREAS((F42,L42,R42))+COLUMNS(S42:V42)) -> 0.42 | X42: 0.63 | Y42: ei | Z42: ei | AA42: ei | AB42: ei | AC42: ei | AD42: ei | AE42: NT
A43: 66 | B43: varttunut kasvatusmetsä, kuusivaltainen (OMT) | C43: Varttuneet havupuuvaltaiset lehtomaiset kankaat M02.01.02 | D43: 99 | E43: 1 | F43: 0.5 | G43: 1 | H43: 0 | I43: 1 | J43: 0 | K43: 0 | L43: 0.5 | M43: 0-5 | O43: 0 | P43: 0 | Q43: 0 | R43: 0.1 | S43: 0.6 | T43: 0.1 | U43: 1 | V43: 0.7 | W43: =(2*SUM(F43,L43,R43)+SUM(S43:V43))/(2*AREAS((F43,L43,R43))+COLUMNS(S43:V43)) -> 0.46 | X43: 0.46 | Y43: ei | Z43: ei | AA43: ei | AB43: ei | AC43: ei | AD43: ei | AE43: NT
A44: 68 | B44: paikoin soistunutta kangasta, harvennettu 2019 | C44: Varttuneet havupuuvaltaiset lehtomaiset kankaat M02.01.02 | D44: 95 | E44: 0.7 | F44: 0.5 | G44: 0 | H44: 0 | I44: 0 | J44: 0 | K44: 1 | L44: 0.1 | M44: 0 | R44: 0.1 | S44: 0.5 | T44: 0.1 | U44: 1 | V44: 0.8 | W44: =(2*SUM(F44,L44,R44)+SUM(S44:V44))/(2*AREAS((F44,L44,R44))+COLUMNS(S44:V44)) -> 0.38 | X44: 0.266 | Y44: ei | Z44: ei | AA44: ei | AB44: ei | AC44: ei | AD44: ei | AE44: NT | AF44: tulkittu. Harvennettu 2019
A45: 69 | B45: harvennettu 2019 | C45: Varttuneet havupuuvaltaiset lehtomaiset kankaat M02.01.02 | D45: 99 | E45: 1.9 | F45: 0.5 | G45: 0 | H45: 0 | I45: 0 | J45: 0 | K45: 1 | L45: 0.1 | M45: 0 | R45: 0.1 | S45: 0.5 | T45: 0.1 | U45: 1 | V45: 0.8 | W45: =(2*SUM(F45,L45,R45)+SUM(S45:V45))/(2*AREAS((F45,L45,R45))+COLUMNS(S45:V45)) -> 0.38 | X45: 0.722 | Y45: ei | Z45: ei | AA45: ei | AB45: ei | AC45: ei | AD45: ei | AE45: NT | AF45: tulkittu. Harvennettu 2019
A46: 70 | C46: Nuoret tuoreet kankaat M02.02.01 | D46: 99 | E46: 1.2 | F46: 0.5 | G46: 0 | H46: 0 | I46: 0 | J46: 0 | K46: 1 | L46: 0.3 | M46: 0 | R46: 0.1 | S46: 0.5 | T46: 0.1 | U46: 1 | V46: 0.8 | W46: =(2*SUM(F46,L46,R46)+SUM(S46:V46))/(2*AREAS((F46,L46,R46))+COLUMNS(S46:V46)) -> 0.42 | X46: 0.504 | Y46: ei | Z46: ei | AA46: ei | AB46: ei | AC46: ei | AD46: ei | AE46: VU | AF46: tulkittu
A47: 71 | C47: Varttuneet havupuuvaltaiset lehtomaiset kankaat M02.01.02 | D47: 99 | E47: 0.7 | F47: 0.5 | G47: 0 | H47: 0 | I47: 0 | J47: 0 | K47: 1 | L47: 0.3 | M47: 0 | R47: 0.1 | S47: 0.5 | T47: 0.1 | U47: 1 | V47: 0.8 | W47: =(2*SUM(F47,L47,R47)+SUM(S47:V47))/(2*AREAS((F47,L47,R47))+COLUMNS(S47:V47)) -> 0.42 | X47: 0.294 | Y47: ei | Z47: ei | AA47: ei | AB47: ei | AC47: ei | AD47: ei | AE47: NT | AF47: tulkittu
A48: 73 | C48: Nuoret lehtomaiset kankaat M02.01.01 | D48: 90 | E48: 0.6 | F48: 0.5 | G48: 0 | H48: 0 | I48: 0 | J48: 0 | K48: 1 | L48: 0.3 | M48: 0-5 | R48: 0.2 | S48: 0.5 | T48: 0.1 | U48: 1 | V48: 0.9 | W48: =(2*SUM(F48,L48,R48)+SUM(S48:V48))/(2*AREAS((F48,L48,R48))+COLUMNS(S48:V48)) -> 0.45 | X48: 0.27 | Y48: ei | Z48: ei | AA48: ei | AB48: ei | AC48: ei | AD48: ei | AE48: VU
A49: 74 | B49: soistumaa ja jätettyjä ylispuita | C49: Nuoret lehtomaiset kankaat M02.01.01 | D49: 95 | E49: 1.1 | F49: 0.5 | G49: 1 | H49: 1 | I49: 1 | J49: 0 | K49: 1 | L49: 0.6 | M49: 0 | R49: 0.1 | S49: 0.5 | T49: 0.1 | U49: 1 | V49: 0.9 | W49: =(2*SUM(F49,L49,R49)+SUM(S49:V49))/(2*AREAS((F49,L49,R49))+COLUMNS(S49:V49)) -> 0.49 | X49: 0.539 | Y49: ei | Z49: ei | AA49: ei | AB49: ei | AC49: ei | AD49: ei | AE49: VU | AF49: mv tietojen mukaan kuviolla pieni kosteikko, ei näy kartassa tai ilmakuvilla.
A50: 76 | B50: sisäreunalla joitakin isompia ylispuita; mäntyä | C50: Nuoret tuoreet kankaat M02.02.01 | D50: 99 | E50: 0.7 | F50: 0.5 | G50: 1 | H50: 0 | I50: 1 | J50: 0 | K50: 1 | L50: 0.5 | M50: 0 | R50: 0.1 | S50: 0.5 | T50: 0.1 | U50: 1 | V50: 0.9 | W50: =(2*SUM(F50,L50,R50)+SUM(S50:V50))/(2*AREAS((F50,L50,R50))+COLUMNS(S50:V50)) -> 0.47 | X50: 0.329 | Y50: ei | Z50: ei | AA50: ei | AB50: ei | AC50: ei | AD50: ei | AE50: VU
A51: 77 | B51: erilaisuutta kuviolla, ajouria. | C51: Varttuneet havupuuvaltaiset tuoreet kankaat M02.02.02 | D51: 90 | E51: 0.7 | F51: 0.5 | G51: 0 | H51: 0 | I51: 0 | J51: 0 | K51: 1 | L51: 0.3 | M51: 0-5 | R51: 0.1 | S51: 0.7 | T51: 0.1 | U51: 1 | V51: 0.5 | W51: =(2*SUM(F51,L51,R51)+SUM(S51:V51))/(2*AREAS((F51,L51,R51))+COLUMNS(S51:V51)) -> 0.41 | X51: 0.287 | Y51: ei | Z51: ei | AA51: ei | AB51: ei | AC51: ei | AD51: ei | AE51: NT
A52: 78 | C52: Nuoret lehtomaiset kankaat M02.01.01 | D52: 99 | E52: 0.5 | F52: 0.5 | G52: 0 | H52: 0 | I52: 0 | J52: 0 | K52: 1 | L52: 0.3 | M52: 0 | R52: 0.1 | S52: 0.5 | T52: 0.1 | U52: 1 | V52: 0.9 | W52: =(2*SUM(F52,L52,R52)+SUM(S52:V52))/(2*AREAS((F52,L52,R52))+COLUMNS(S52:V52)) -> 0.43 | X52: 0.215 | Y52: ei | Z52: ei | AA52: ei | AB52: ei | AC52: ei | AD52: ei | AE52: VU
A53: 79 | C53: Nuoret lehtomaiset kankaat M02.01.01 | D53: 99 | E53: 0.6 | F53: 0.5 | G53: 1 | H53: 1 | I53: 0 | J53: 0 | K53: 1 | L53: 0.6 | M53: 0 | R53: 0.1 | S53: 0.5 | T53: 0.1 | U53: 1 | V53: 0.9 | W53: =(2*SUM(F53,L53,R53)+SUM(S53:V53))/(2*AREAS((F53,L53,R53))+COLUMNS(S53:V53)) -> 0.49 | X53: 0.294 | Y53: ei | Z53: ei | AA53: ei | AB53: ei | AC53: ei | AD53: ei | AE53: VU
A54: 80 | B54: heinittynyt, harvennettu männikkö sekapuusto | C54: Varttuneet havupuuvaltaiset tuoreet kankaat M02.02.02 | D54: 99 | E54: 0.7 | F54: 0.5 | G54: 1 | H54: 0 | I54: 0 | J54: 0 | K54: 1 | L54: 0.4 | M54: 0 | O54: 0 | P54: 0 | Q54: 0 | R54: 0.1 | S54: 0.5 | T54: 0.2 | U54: 1 | V54: 1 | W54: =(2*SUM(F54,L54,R54)+SUM(S54:V54))/(2*AREAS((F54,L54,R54))+COLUMNS(S54:V54)) -> 0.47 | X54: 0.329 | Y54: ei | Z54: ei | AA54: ei | AB54: ei | AC54: ei | AD54: ei | AE54: NT
A55: 81 | B55: varttunut kasvatuskuusikko | C55: Varttuneet havupuuvaltaiset lehtomaiset kankaat M02.01.02 | D55: 99 | E55: 0.5 | F55: 0.5 | G55: 0 | H55: 0 | I55: 0 | J55: 0 | K55: 1 | L55: 0.4 | M55: 0 | O55: 0 | P55: 0 | Q55: 0 | R55: 0.1 | S55: 0.5 | T55: 0.1 | U55: 1 | V55: 0.8 | W55: =(2*SUM(F55,L55,R55)+SUM(S55:V55))/(2*AREAS((F55,L55,R55))+COLUMNS(S55:V55)) -> 0.44 | X55: 0.22 | Y55: ei | Z55: ei | AA55: ei | AB55: ei | AC55: ei | AD55: ei | AE55: NT | AF55: tulkittu
A56: 83 | B56: osin pieniä soistumia, ei suota, paljon jätettyä hakkuutähdettä, myös pieniä runkoja | C56: Varttuneet havupuuvaltaiset lehtomaiset kankaat M02.01.02 | D56: 90 | E56: 2.1 | F56: 0.5 | G56: 1 | H56: 1 | I56: 0 | J56: 0 | K56: 1 | L56: 0.5 | M56: 0-5 | R56: 0.1 | S56: 0.5 | T56: 0.1 | U56: 1 | V56: 0.5 | W56: =(2*SUM(F56,L56,R56)+SUM(S56:V56))/(2*AREAS((F56,L56,R56))+COLUMNS(S56:V56)) -> 0.43 | X56: 0.903 | Y56: ei | Z56: ei | AA56: ei | AB56: ei | AC56: ei | AD56: ei | AE56: NT
A57: 84 | B57: varttunut kuusimetsä, sekapuustoinen, epätasainen | C57: Varttuneet havupuuvaltaiset lehtomaiset kankaat M02.01.02 | D57: 99 | E57: 2 | F57: 0.5 | G57: 1 | H57: 0 | I57: 1 | J57: 0 | K57: 1 | L57: 0.5 | M57: 0-5 | O57: 0 | P57: 0 | Q57: 0 | R57: 0.2 | S57: 0.6 | T57: 0.1 | U57: 1 | V57: 0.6 | W57: =(2*SUM(F57,L57,R57)+SUM(S57:V57))/(2*AREAS((F57,L57,R57))+COLUMNS(S57:V57)) -> 0.47 | X57: 0.94 | Y57: ei | Z57: ei | AA57: ei | AB57: ei | AC57: ei | AD57: ei | AE57: NT | AF57: Tulkittu
A58: 85 | B58: varttunut kasvatusmetsä, VMT | C58: Varttuneet havupuuvaltaiset tuoreet kankaat M02.02.02 | D58: 99 | E58: 1.2 | F58: 0.5 | G58: 1 | H58: 0 | I58: 0 | J58: 0 | K58: 1 | L58: 0.5 | M58: 0-5 | O58: 0 | P58: 0 | Q58: 0 | R58: 0.1 | S58: 0.6 | T58: 0.1 | U58: 1 | V58: 0.9 | W58: =(2*SUM(F58,L58,R58)+SUM(S58:V58))/(2*AREAS((F58,L58,R58))+COLUMNS(S58:V58)) -> 0.48 | X58: 0.576 | Y58: ei | Z58: ei | AA58: ei | AB58: ei | AC58: ei | AD58: ei | AE58: NT | AF58: osin tulkittu
A59: 87 | B59: nuori, kuusivaltainen, harvennettu talousmetsä | C59: Nuoret tuoreet kankaat M02.02.01 | D59: 99 | E59: 0.8 | F59: 0.4 | G59: 0 | H59: 0 | I59: 1 | J59: 0 | K59: 0 | L59: 0.2 | M59: 0 | O59: 0 | P59: 0 | Q59: 0 | R59: 0.1 | S59: 0.5 | T59: 0.1 | U59: 1 | V59: 0.3 | W59: =(2*SUM(F59,L59,R59)+SUM(S59:V59))/(2*AREAS((F59,L59,R59))+COLUMNS(S59:V59)) -> 0.33 | X59: 0.264 | Y59: ei | Z59: ei | AA59: ei | AB59: ei | AC59: ei | AD59: ei | AE59: VU | AF59: Hiljattain harvennettu, paljon metsäkoneuria, pieniä risuja. Paikoin lehtomaisuutta (käenkaali, oravanmarja, lillukka). Hirviä liikkuu.
A60: 88 | B60: nuori, epätasaisesti käsitelty nuori lehtom kangas rajautuen ratavyöhykkeeseen | C60: Nuoret lehtomaiset kankaat M02.01.01 | D60: 90 | E60: 0.6 | F60: 0.5 | G60: 0 | H60: 1 | I60: 1 | J60: 0 | K60: 1 | L60: 0.7 | M60: 0 | O60: 0 | P60: 0 | Q60: 0 | R60: 0.1 | S60: 0.4 | T60: 0.1 | U60: 1 | V60: 0.4 | W60: =(2*SUM(F60,L60,R60)+SUM(S60:V60))/(2*AREAS((F60,L60,R60))+COLUMNS(S60:V60)) -> 0.45 | X60: 0.27 | Y60: ei | Z60: ei | AA60: ei | AB60: ei | AC60: ei | AD60: ei | AE60: VU | AF60: Rautatie lähellä, sen ympäristössä nuorta taimikkoa. Kuvio osin heinikoitunut, pieniä niittym. aukioita. Hirven makuupaikkoja ja jätöksiä.
A61: 89 | B61: nuori, mäntyvaltainen harvennettu talousmetsä | C61: Nuoret tuoreet kankaat M02.02.01 | D61: 90 | E61: 4.5 | F61: 0.5 | G61: 0 | H61: 1 | I61: 1 | J61: 0 | K61: 0 | L61: 0.4 | M61: 0 | O61: 0 | P61: 0 | Q61: 0 | R61: 0.1 | S61: 0.7 | T61: 0.1 | U61: 1 | V61: 0.5 | W61: =(2*SUM(F61,L61,R61)+SUM(S61:V61))/(2*AREAS((F61,L61,R61))+COLUMNS(S61:V61)) -> 0.43 | X61: 1.935 | Y61: ei | Z61: ei | AA61: ei | AB61: ei | AC61: ei | AD61: ei | AE61: VU | AF61: Valkolehdokkia (rauh) alueen etelälaidalla, missä vaihettuu lehtomaiseksi. Pyyn (VU) ja metson jätöksiä pienen kalliopaljastuman päällä. Runsaasti kangasmaitikkaa (kirjoverkkoperhonen IV).
A62: 90 | B62: nuori, kuusivaltainen, harvennettu talousmetsä | C62: Nuoret tuoreet kankaat M02.02.02 | D62: 70 | E62: 3.4 | F62: 0.4 | G62: 0 | H62: 0 | I62: 0 | J62: 0 | K62: 1 | L62: 0.3 | M62: 0 | N62: 0 | O62: 0 | P62: 0 | Q62: 0 | R62: 0.1 | S62: 0.4 | T62: 0.1 | U62: 1 | V62: 0.3 | W62: =(2*SUM(F62,L62,R62)+SUM(S62:V62))/(2*AREAS((F62,L62,R62))+COLUMNS(S62:V62)) -> 0.34 | X62: 1.156 | Y62: ei | Z62: ei | AA62: ei | AB62: ei | AC62: ei | AD62: ei | AE62: VU | AF62: Suurin osa kuviosta. Paljon risukasoja ja metsäkoneuria.
A63: 90 | B63: nuori, kuusivaltainen, harvennettu talousmetsä | C63: Nuoret lehtomaiset kankaat M02.01.01 | D63: 25 | E63: 1.2 | F63: 0.4 | G63: 0 | H63: 0 | I63: 0 | J63: 0 | K63: 1 | L63: 0.3 | M63: 0 | N63: 0 | O63: 0 | P63: 0 | Q63: 0 | R63: 0.1 | S63: 0.4 | T63: 0.1 | U63: 1 | V63: 0.3 | W63: =(2*SUM(F63,L63,R63)+SUM(S63:V63))/(2*AREAS((F63,L63,R63))+COLUMNS(S63:V63)) -> 0.34 | X63: 0.408 | Y63: ei | Z63: ei | AA63: ei | AB63: ei | AC63: ei | AD63: ei | AE63: VU | AF63: Rajautuu etelässä lehtoon, joka liito-oravalle sopivaa (varttuneita haapoja ym.).
A64: 92 | B64: Muutama järeä kuusi, hieman haapaa. OMT-tyyppi | C64: Varttuneet havupuuvaltaiset lehtomaiset kankaat M02.01.02 | D64: 100 | E64: 1.1 | F64: 0.7 | G64: 1 | H64: 1 | I64: 1 | J64: 0 | K64: 0 | L64: 0.7 | M64: 0 | N64: 0 | O64: 0 | P64: 0 | Q64: 0 | R64: 0.3 | S64: 1 | T64: 0.4 | U64: 1 | V64: 0.8 | W64: =(2*SUM(F64,L64,R64)+SUM(S64:V64))/(2*AREAS((F64,L64,R64))+COLUMNS(S64:V64)) -> 0.66 | X64: 0.726 | Y64: ei | Z64: boreaaliset luonnonmetsät 9010 | AA64: ei | AB64: ei | AC64: ei | AD64: ei | AE64: NT | AF64: Potentiaalinen liito-oravalle (IV). Palokärjen hakkuita. Lahopuupotentiaalia.
A65: 94 | B65: Tiheä, nuori, risukkoinen kuusikko | C65: Nuoret lehtomaiset kankaat M02.01.01 | D65: 100 | E65: 0.2 | F65: 0.4 | G65: 0 | H65: 0 | I65: 0 | J65: 0 | K65: 0 | L65: 0.2 | M65: 5 | N65: 0 | O65: 0 | P65: 0 | Q65: 0 | R65: 0.4 | S65: 0.2 | T65: 0.1 | U65: 1 | V65: 0.5 | W65: =(2*SUM(F65,L65,R65)+SUM(S65:V65))/(2*AREAS((F65,L65,R65))+COLUMNS(S65:V65)) -> 0.38 | X65: 0.076 | Y65: ei | Z65: ei | AA65: ei | AB65: ei | AC65: ei | AD65: ei | AE65: VU | AF65: Hyvin karikkeinen, kenttäkerroksessa vain muutamia metsäalvejuuria ja puna-ailakkeja.
A66: 95 | B66: Nuori, risukkoinen kuusikko, hieman pihlajaa, raitaa | C66: Nuoret lehtomaiset kankaat M02.01.02 | D66: 95 | E66: 0.2 | F66: 0.4 | G66: 0 | H66: 0 | I66: 0 | J66: 0 | K66: 1 | L66: 0.4 | M66: 5 | N66: 0 | O66: 0 | P66: 0 | Q66: 0 | R66: 0.4 | S66: 0.2 | T66: 0.1 | U66: 1 | V66: 0.5 | W66: =(2*SUM(F66,L66,R66)+SUM(S66:V66))/(2*AREAS((F66,L66,R66))+COLUMNS(S66:V66)) -> 0.42 | X66: 0.084 | Y66: ei | Z66: ei | AA66: ei | AB66: ei | AC66: ei | AD66: ei | AE66: VU | AF66: Kuin edellinen, ei niin tiheä. Molemmissa kuusiriukua jättetty lahoamaan.
A67: 96 | B67: Nuori, kuusivaltainen lehtomainen kangas, mahd lehtokorpimuuttuma. | C67: Nuoret lehtomaiset kankaat M02.01.03 | D67: 90 | E67: 0.6 | F67: 0.5 | G67: 0 | H67: 0 | I67: 0 | J67: 0 | K67: 1 | L67: 0.5 | M67: 0 | N67: 0 | O67: 0 | P67: 0 | Q67: 1 | R67: 0.4 | S67: 0.4 | T67: 0.1 | U67: 1 | V67: 0.5 | W67: =(2*SUM(F67,L67,R67)+SUM(S67:V67))/(2*AREAS((F67,L67,R67))+COLUMNS(S67:V67)) -> 0.48 | X67: 0.288 | Y67: ei | Z67: ei | AA67: ei | AB67: ei | AC67: ei | AD67: ei | AE67: VU | AF67: Mahdollisesti kuivunutta lehtokorpea osin
A68: 97 | B68: Nuori, kuusivaltainen lehtomainen kangas, talous | C68: Nuoret lehtomaiset kankaat M02.01.04 | D68: 75 | E68: 1.6 | F68: 0.4 | G68: 0 | H68: 0 | I68: 1 | J68: 0 | K68: 1 | L68: 0.5 | M68: 0 | N68: 0 | O68: 0 | P68: 0 | Q68: 0 | R68: 0.2 | S68: 0.6 | T68: 0.1 | U68: 1 | V68: 0.7 | W68: =(2*SUM(F68,L68,R68)+SUM(S68:V68))/(2*AREAS((F68,L68,R68))+COLUMNS(S68:V68)) -> 0.46 | X68: 0.736 | Y68: ei | Z68: ei | AA68: ei | AB68: ei | AC68: ei | AD68: ei | AE68: VU | AF68: Runsaasti oravanmarjaa, käenkaalia, myös mustikkaa. Vaihettuu pohjoiseen tuoreeksi.
A69: 97 | B69: Nuori, kuusivaltainen turvekangas | D69: 25 | E69: 0.5 | F69: 0.4 | G69: 0 | H69: 0 | I69: 1 | J69: 0 | K69: 1 | L69: 0.5 | M69: 0 | N69: 0 | O69: 0 | P69: 0 | Q69: 0 | R69: 0.2 | S69: 0.6 | T69: 0.1 | U69: 1 | V69: 0.6 | W69: =(2*SUM(F69,L69,R69)+SUM(S69:V69))/(2*AREAS((F69,L69,R69))+COLUMNS(S69:V69)) -> 0.45 | X69: 0.225 | Y69: ei | Z69: ei | AA69: ei | AB69: ei | AC69: ei | AD69: ei | AF69: Kuvion itäosa ojitettua entistä korpea, kuivunut turvekankaaksi. Puusto muun kuvion kaltainen.
A70: 98 | B70: Nuori, osin kuusivaltainen tuore kangas reunavyöhykkeessä | C70: Nuoret tuoreet kankaat M02.02.02 | D70: 98 | E70: 0.8 | F70: 0.5 | G70: 1 | H70: 1 | I70: 1 | J70: 0 | K70: 1 | L70: 0.7 | M70: 0 | N70: 0 | O70: 0 | P70: 1 | Q70: 0 | R70: 0.4 | S70: 0.8 | T70: 0.1 | U70: 1 | V70: 0.6 | W70: =(2*SUM(F70,L70,R70)+SUM(S70:V70))/(2*AREAS((F70,L70,R70))+COLUMNS(S70:V70)) -> 0.57 | X70: 0.456 | Y70: ei | Z70: ei | AA70: ei | AB70: ei | AC70: ei | AD70: ei | AE70: VU | AF70: Yksittäinen järeä kelo kuvioiden 97 ja 98 rajalla. Pohjoisreunalla aukkoisempi, varttuneempaa puustoa, mm. rauduskoivuja ja runsaasti nuorta lehtipuuta (ha lep, pih, koi). Rajautuu rata-alueeseen.
A71: 100 | B71: Varttunut, kuusivaltainen tuore kangas, myös mä, koi, haapa | C71: Varttuneet havupuuvaltaiset tuoreet kankaat M02.02.02 | D71: 80 | E71: 1.84 | F71: 0.8 | G71: 1 | H71: 1 | I71: 1 | J71: 0 | K71: 1 | L71: 0.8 | M71: 0 | N71: 0 | O71: 1 | P71: 0 | Q71: 0 | R71: 0.5 | S71: 0.9 | T71: 0.6 | U71: 1 | V71: 0.8 | W71: =(2*SUM(F71,L71,R71)+SUM(S71:V71))/(2*AREAS((F71,L71,R71))+COLUMNS(S71:V71)) -> 0.75 | X71: 1.38 | Y71: kyllä | Z71: boreaaliset luonnonmetsät 9010 | AA71: hyvä | AB71: ei | AC71: ei | AD71: ei | AE71: NT | AF71: Ojituksia, pohja paikoin rahkainen, paikoin painunut. Ollut ehkä osin korpi. METSO-pontentiaalia, varsinkin jos saa kehittyä rauhassa; puusto järeähköä (30-40 cm rinnank.) ja monilajista. Eteläosissa myös varttunutta haapaa: kuvio liito-oravalle sopivaa habitaattia.
A72: 101 | B72: Nuori, havupuuvaltainen tuore kangas | C72: Nuoret tuoreet kankaat M02.02.02 | D72: 99 | E72: 0.2 | F72: 0.5 | G72: 1 | H72: 1 | I72: 0 | J72: 0 | K72: 1 | L72: 0.6 | M72: 0 | N72: 0 | O72: 0 | P72: 0 | Q72: 0 | R72: 0.1 | S72: 0.7 | T72: 0.3 | U72: 1 | V72: 0.5 | W72: =(2*SUM(F72,L72,R72)+SUM(S72:V72))/(2*AREAS((F72,L72,R72))+COLUMNS(S72:V72)) -> 0.49 | X72: 0.098 | Y72: ei | Z72: ei | AA72: ei | AB72: ei | AC72: ei | AD72: ei | AE72: VU | AF72: Muistiinpanot puutteelliset
A73: 103 | B73: Nuori, kuusivaltainen lehtomainen kangas | C73: Nuoret lehtomaiset kankaat M02.01.04 | D73: 99 | E73: 0.5 | F73: 0.6 | G73: 1 | H73: 1 | I73: 1 | J73: 0 | K73: 1 | L73: 0.8 | M73: 4 | N73: 0 | O73: 0 | P73: 0 | Q73: 0 | R73: 0.4 | S73: 0.5 | T73: 0.5 | U73: 1 | V73: 0.7 | W73: =(2*SUM(F73,L73,R73)+SUM(S73:V73))/(2*AREAS((F73,L73,R73))+COLUMNS(S73:V73)) -> 0.63 | X73: =(PRODUCT(E73,W73)) -> 0.315 | Y73: ei | Z73: ei | AA73: ei | AB73: ei | AC73: ei | AD73: ei | AE73: VU | AF73: Järeitä mäntyjä, koivua ja raitaa seassa. Kynsi ja kerrossammal, oravanmarja runsas, mustikka, kielo, lillukka, metsätähti, kultapiisku, käenkaali
A74: 104 | B74: Varttunut, sekapuustoinen lehtomainen osin kuivunut, ojitettu | C74: M02.02.04 Varttuneet lehtipuuvaltaiset lehtomaiset ja tuoreet kankaat | D74: 50 | E74: 0.9 | F74: 0.8 | G74: 1 | H74: 1 | I74: 1 | J74: 0 | K74: 1 | L74: 0.8 | M74: 0 | N74: 0 | O74: 1 | P74: 0 | Q74: 1 | R74: 0.7 | S74: 0.7 | T74: 0.7 | U74: 1 | V74: 0.6 | W74: =(2*SUM(F74,L74,R74)+SUM(S74:V74))/(2*AREAS((F74,L74,R74))+COLUMNS(S74:V74)) -> 0.76 | X74: 0.684 | Y74: kyllä | Z74: ei | AA74: ei | AB74: ei | AC74: ei | AD74: ei | AE74: VU | AF74: Kuviolla ojitus, joka on kuivattanut (saniais)korven. Lähinnä lehtomaista kangasta nyt. Toinenpuoli kuviota kuivaa, keskiravinteista lehtoa. Koko kuviota ehdotettu jo aiemmin METSO-kohteeksi. Varttunutta lehtipuuta runsaasti, myös haapaa. Liito-oravalle soveltuvaa ja aiempia havaintoja tiedossa.
A75: 105 | B75: Varttunut, kuusivaltainen tuore kangas, myös mä, koi | C75: Varttuneet havupuuvaltaiset tuoreet kankaat M02.02.03 | D75: 100 | E75: 1.9 | F75: 0.7 | G75: 1 | H75: 0 | I75: 1 | J75: 0 | K75: 1 | L75: 0.8 | M75: 0 | N75: 0 | O75: 1 | P75: 1 | Q75: 1 | R75: 0.7 | S75: 1 | T75: 0.5 | U75: 1 | V75: 0.9 | W75: =(2*SUM(F75,L75,R75)+SUM(S75:V75))/(2*AREAS((F75,L75,R75))+COLUMNS(S75:V75)) -> 0.78 | X75: 1.482 | Y75: Kyllä | Z75: ei | AA75: ei | AB75: ei | AC75: ei | AD75: ei | AE75: NT | AF75: Potentiaalia METSO-kohteeksi, mikäli saa kehittyä rauhassa. Korkea lahopuupotentiaali. Suurin osa puustosta lähes järeää. Soveltuu liito-oravalle, kookkaita kuusia ja koivuja, lähellä sopivia ruokailualueita.
A76: 106 | B76: Varttunut, harvennettu koivuvaltainen lehtomainen kangas | C76: M02.02.04 Varttuneet lehtipuuvaltaiset lehtomaiset ja tuoreet kankaat | D76: 40 | E76: 0.2 | F76: 0.7 | G76: 1 | H76: 1 | I76: 1 | J76: 0 | K76: 1 | L76: 0.8 | M76: 0 | N76: 0 | O76: 0 | P76: 1 | Q76: 1 | R76: 0.5 | S76: 0.9 | T76: 0.5 | U76: 1 | V76: 0.7 | W76: =(2*SUM(F76,L76,R76)+SUM(S76:V76))/(2*AREAS((F76,L76,R76))+COLUMNS(S76:V76)) -> 0.71 | X76: 0.142 | Y76: ei | Z76: ei | AA76: ei | AB76: ei | AC76: ei | AD76: ei | AE76: VU | AF76: Koivuvaltainen, ku, mä, ha, joitain järeitä, harvennettu. Alikasvoksena paikoin runsaasti kuusta ja haapaa. Liiturihavainto 2015, soveltuu yhä lajille. Loput kuviosta lehtoa.
A77: 107 | B77: Varttunut, harvennettu sekapuustoinen tuore kangas | C77: M02.02.04 Varttuneet lehtipuuvaltaiset lehtomaiset ja tuoreet kankaat | D77: 100 | E77: 0.5 | F77: 0.7 | G77: 1 | H77: 1 | I77: 1 | J77: 0 | K77: 1 | L77: 0.8 | M77: 0 | N77: 0 | O77: 0 | P77: 0 | Q77: 1 | R77: 0.4 | S77: 1 | T77: 0.5 | U77: 1 | V77: 0.7 | W77: =(2*SUM(F77,L77,R77)+SUM(S77:V77))/(2*AREAS((F77,L77,R77))+COLUMNS(S77:V77)) -> 0.7 | X77: 0.35 | Y77: ei | Z77: ei | AA77: ei | AB77: ei | AC77: ei | AD77: ei | AE77: VU | AF77: Niukasti koivuvaltainen, myös ku, mä, ha, vielä järeitäkin puita, harvennettu. Alikasvoksena runsaasti pihlajaa, haapaa. Liiturihavaintoja 2013, soveltuu yhä lajille.
A78: 109 | B78: Koivuvaltainen, lehtomainen kasvatusmetsä | C78: M02.01.04 Nuoret lehtomaiset kankaat | D78: 90 | E78: 2.2 | F78: 0.5 | G78: 1 | H78: 1 | I78: 0 | J78: 0 | K78: 1 | L78: 0.6 | O78: 0 | P78: 0 | Q78: 0 | R78: 0.2 | S78: 0.8 | T78: 0.5 | U78: 1 | V78: 0.7 | W78: =(2*SUM(F78,L78,R78)+SUM(S78:V78))/(2*AREAS((F78,L78,R78))+COLUMNS(S78:V78)) -> 0.56 | X78: 1.232 | Y78: ei | Z78: ei | AA78: ei | AB78: ei | AC78: ei | AD78: ei | AE78: VU | AF78: Maasto vaihtelee kuivasta kosteampaan. Soistumia( vettä ja rahkasammalia, korpikastikkaa, kiiltopajua) kuvion 108 rajalla vanhan talopaikan pohoispuolella. Talopaikan luota mahdollisesti noro kivien alla rinnettä alas pohjoiseen.
A79: 119 | B79: Varttunut, sekapuustoinen, lehdoksi vaihettuva kangas | C79: M02.02.04 Varttuneet lehtipuuvaltaiset lehtomaiset ja tuoreet kankaat | D79: 95 | E79: 0.5 | F79: 0.7 | G79: 1 | H79: 1 | I79: 2 | J79: 0 | K79: 2 | L79: 0.9 | O79: 0 | P79: 0 | Q79: 0 | R79: 0.2 | S79: 0.9 | T79: 0.5 | U79: 0.9 | V79: 0.9 | W79: =(2*SUM(F79,L79,R79)+SUM(S79:V79))/(2*AREAS((F79,L79,R79))+COLUMNS(S79:V79)) -> 0.68 | X79: 0.34 | Y79: ei | Z79: ei | AA79: ei | AB79: ei | AC79: ei | AD79: ei | AE79: VU | AF79: Pohjoisosa tuoretta kangasta, vaihettuu etelään lehtomaiseksi kankaaksi ja s-rajalla lehdoksi (näsiä, lehtokuusama). Joistain hyvinkin järeitä puita ja toisaalta runsaasti nuorta lehtipuuta. Kuviolla vanha kiviaita. Itäpuolen rinne erinomaisen hyvin liito-oravalle sopivaa järeäpuustoista metsää.
A80: 124 | B80: Kuusivaltainen, edustava vanha metsä OMT | C80: M02.01.03 Vanhat havupuuvaltaiset lehtomaiset kankaat | D80: 90 | E80: 4.5 | F80: 1 | G80: 2 | H80: 2 | I80: 2 | J80: 0 | K80: 1 | L80: 0.9 | O80: 1 | P80: 1 | Q80: 1 | R80: 0.9 | S80: 1 | T80: 1 | U80: 1 | V80: 1 | W80: =(2*SUM(F80,L80,R80)+SUM(S80:V80))/(2*AREAS((F80,L80,R80))+COLUMNS(S80:V80)) -> 0.96 | X80: 4.32 | Y80: Kyllä | Z80: boreaaliset luonnonmetsät 9010 | AA80: Erinomainen | AB80: ei, viereinen kuvio 122 metsälakikohde | AC80: ei, viereinen kuvio 123 vesilakikohde | AD80: ei | AE80: EN | AF80: Erittäin edustava kohde, jo aiemmin havaittu täyttävän METSO-kriteerit, liittyy vesi- ja metsälakikohteisiin (122 ja 123), muodostavat yhdessä merkittävän, monimuotoisen kokonaisuuden. Valtapuu järeä kuusi, myös järeitä mäntyjä ja haapoja. Aiempia liito-oravahavaintoja, kolopuita. Runsaasti järeää lahopuuta. Lepakoile sopivaa (vieressä vielä mm. Korpelan hevoslaidun ja niittymäinen peltoaukea.)
A81: 126 | B81: Kuusivaltainen varttunut ja vanhempi metsä OMT | C81: Varttuneet havupuuvaltaiset tuoreet kankaat M02.02.03 | D81: 90 | E81: 1.7 | F81: 0.9 | G81: 1 | H81: 2 | I81: 2 | J81: 0 | K81: 1 | L81: 0.8 | O81: 1 | P81: 1 | Q81: 1 | R81: 0.7 | S81: 0.9 | T81: 0.7 | U81: 1 | V81: 0.9 | W81: =(2*SUM(F81,L81,R81)+SUM(S81:V81))/(2*AREAS((F81,L81,R81))+COLUMNS(S81:V81)) -> 0.83 | X81: 1.411 | Y81: Kyllä | Z81: boreaaliset luonnonmetsät 9010 | AA81: hyvä | AB81: ei | AC81: ei | AD81: ei | AE81: NT | AF81: Hyvä lahopuupotentiaali, kookasta haapaa ojalla, joka palautumassa luonontilaisen noron kaltaiseksi. Kuvion itäpuolella vähemmän lahopuuta, järeitä kuusia.
A82: 129 | B82: Varttunut talousmetsä | C82: Varttuneet havupuuvaltaiset tuoreet kankaat M02.02.04 | D82: 100 | E82: 1.5 | F82: 0.7 | G82: 1 | H82: 1 | I82: 1 | J82: 0 | K82: 1 | L82: 0.8 | O82: 0 | P82: 0 | Q82: 0 | R82: 0.2 | S82: 0.9 | T82: 0.4 | U82: 1 | V82: 0.9 | W82: =(2*SUM(F82,L82,R82)+SUM(S82:V82))/(2*AREAS((F82,L82,R82))+COLUMNS(S82:V82)) -> 0.66 | X82: 0.99 | Y82: ei | Z82: ei | AA82: ei | AB82: ei | AC82: ei | AD82: ei | AE82: NT | AF82: Puutteelliset muistiinpanot: "Muistuttaa kuviota 126, mutta ei juuri lehtipuita eikä lahopuuta, kun taas kataja runsas. Talousmetsäksi edustava".
A83: 135 | B83: Varttunut talouskoivikko | C83: M02.02.04 Varttuneet lehtipuuvaltaiset lehtomaiset ja tuoreet kankaat | D83: 100 | E83: 1.8 | F83: 0.5 | G83: 0 | H83: 0 | I83: 0 | J83: 0 | K83: 1 | L83: 0.4 | O83: 0 | P83: 0 | Q83: 0 | R83: 0.1 | S83: 0.5 | T83: 0.1 | U83: 1 | V83: 0.7 | W83: =(2*SUM(F83,L83,R83)+SUM(S83:V83))/(2*AREAS((F83,L83,R83))+COLUMNS(S83:V83)) -> 0.43 | X83: 0.774 | Y83: ei | Z83: ei | AA83: ei | AB83: ei | AC83: ei | AD83: ei | AE83: VU | AF83: Heinikoitunut (kastikkaa), 2 latvuskerrosta ko, ku, valkolehdokki
A84: 136 | B84: Avara talouskoivikko | C84: M02.02.04 Varttuneet lehtipuuvaltaiset lehtomaiset ja tuoreet kankaat | D84: 99 | E84: 0.4 | F84: 0.5 | G84: 0 | H84: 0 | I84: 0 | J84: 0 | K84: 0 | L84: 0.2 | O84: 0 | P84: 0 | Q84: 0 | R84: 0.1 | S84: 0.3 | T84: 0.1 | U84: 0.8 | V84: 0.5 | W84: =(2*SUM(F84,L84,R84)+SUM(S84:V84))/(2*AREAS((F84,L84,R84))+COLUMNS(S84:V84)) -> 0.33 | X84: 0.132 | Y84: ei | Z84: ei | AA84: ei | AB84: ei | AC84: ei | AD84: ei | AE84: VU | AF84: Heinikoitunut, pihan ja tien reunavaikutusta
A85: 137 | B85: Havupuuvaltainen nuori talousmetsä | C85: M02.02.01 Nuoret tuoreet kankaat | D85: 90 | E85: 1.7 | F85: 0.4 | G85: 0 | H85: 0 | I85: 1 | J85: 0 | K85: 1 | L85: 0.5 | O85: 0 | P85: 0 | Q85: 0 | R85: 0.1 | S85: 0.7 | T85: 0.1 | U85: 1 | V85: 0.7 | W85: =(2*SUM(F85,L85,R85)+SUM(S85:V85))/(2*AREAS((F85,L85,R85))+COLUMNS(S85:V85)) -> 0.45 | X85: 0.765 | Y85: ei | Z85: ei | AA85: ei | AB85: ei | AC85: ei | AD85: ei | AE85: VU | AF85: Kuvion poikki kulkee pihatie rantaan, pohjoisosa tulkittu
A86: 138 | B86: Ojitettu räme | C86: Mustikkaturvekangas | D86: 100 | E86: 1.3 | F86: 0.7 | G86: 1 | H86: 1 | I86: 1 | J86: 0 | K86: 1 | L86: 0.5 | M86: 0-5 | R86: 0.2 | S86: 0.6 | T86: 0.2 | U86: 1 | V86: 0.6 | W86: =(2*SUM(F86,L86,R86)+SUM(S86:V86))/(2*AREAS((F86,L86,R86))+COLUMNS(S86:V86)) -> 0.52 | X86: 0.676 | Y86: ei | Z86: ei | AA86: ei | AB86: ei | AC86: ei | AD86: ei | AF86: Valtapuusto ojituksen seurauksena venähtänyttä mäntyä. Kuvion keskellä pieni uimaranta ja rantaan johtava pihatie. Kuvion pohjoisosa tulkittu. Lounaiskulmalla rannassa vielä rämettä.
A87: 141 | B87: Ojitettu talouskuusikko | C87: Peltoheitto, jolla kasvatuskuusikkoa | D87: 95 | E87: 2.1 | F87: 0.5 | G87: 0 | H87: 0 | I87: 0 | J87: 0 | K87: 1 | L87: 0.3 | O87: 0 | P87: 0 | Q87: 0 | R87: 0.1 | S87: 0.3 | T87: 0.1 | U87: 1 | V87: 0.5 | W87: =(2*SUM(F87,L87,R87)+SUM(S87:V87))/(2*AREAS((F87,L87,R87))+COLUMNS(S87:V87)) -> 0.37 | X87: 0.777 | Y87: ei | Z87: ei | AA87: ei | AB87: ei | AC87: ei | AD87: ei | AF87: Kasvatuskuusikko entisellä pellolla. Kenttäkerros hyvin niukka.
A88: 142 | B88: Kasvatusmetsätaimikko, ojitettu, ku valtainen | C88: M02.02.01 Nuoret tuoreet kankaat | D88: 99 | E88: 1.2 | F88: 0.2 | G88: 0 | H88: 0 | I88: 0 | J88: 0 | K88: 0 | L88: 0.1 | O88: 0 | P88: 0 | Q88: 0 | R88: 0.1 | S88: 0.5 | T88: 0.1 | U88: 1 | V88: 0.5 | W88: =(2*SUM(F88,L88,R88)+SUM(S88:V88))/(2*AREAS((F88,L88,R88))+COLUMNS(S88:V88)) -> 0.29 | X88: 0.348 | Y88: ei | Z88: ei | AA88: ei | AB88: ei | AC88: ei | AD88: ei | AE88: NT | AF88: Nuori kasvatusmetsätaimikko ojitetulla avohakkuualueella. Tulkittu
A89: 143 | B89: Kasvatusmetsätaimikko,ojitettu, ku valtainen | C89: M02.01.04 Nuoret lehtomaiset kankaat | D89: 99 | E89: 0.4 | F89: 0.4 | G89: 1 | H89: 0 | I89: 0 | J89: 0 | K89: 1 | L89: 0.4 | O89: 0 | P89: 0 | Q89: 0 | R89: 0.2 | S89: 0.6 | T89: 0.2 | U89: 1 | V89: 0.5 | W89: =(2*SUM(F89,L89,R89)+SUM(S89:V89))/(2*AREAS((F89,L89,R89))+COLUMNS(S89:V89)) -> 0.43 | X89: 0.172 | Y89: ei | Z89: ei | AA89: ei | AB89: ei | AC89: ei | AD89: ei | AE89: NT | AF89: Nuori kasvatusmetsä, ojitettu, osin sekapuustoinen. Tulkittu
A90: 144 | B90: Ku valtainen ojitettu kasvatusmetsä | C90: M02.02.01 Nuoret tuoreet kankaat | D90: 90 | E90: 0.6 | F90: 0.5 | G90: 1 | H90: 0 | I90: 0 | J90: 0 | K90: 1 | L90: 0.5 | O90: 0 | P90: 0 | Q90: 0 | R90: 0.3 | S90: 0.6 | T90: 0.2 | U90: 1 | V90: 0.5 | W90: =(2*SUM(F90,L90,R90)+SUM(S90:V90))/(2*AREAS((F90,L90,R90))+COLUMNS(S90:V90)) -> 0.49 | X90: 0.294 | Y90: ei | Z90: ei | AA90: ei | AB90: ei | AC90: ei | AD90: ei | AE90: NT | AF90: Itäosa mahdollisesti korpimuuttumaa.Tulkittu.
A91: 145 | B91: Ojitettu räme | C91: Puolukkaturvekangas | D91: 95 | E91: 1.2 | F91: 0.6 | G91: 1 | H91: 1 | I91: 1 | J91: 0 | K91: 1 | L91: 0.7 | M91: 0-5 | R91: 0.2 | S91: 0.6 | T91: 0.3 | U91: 1 | V91: 0.6 | W91: =(2*SUM(F91,L91,R91)+SUM(S91:V91))/(2*AREAS((F91,L91,R91))+COLUMNS(S91:V91)) -> 0.55 | X91: 0.66 | Y91: ei | Z91: ei | AA91: ei | AB91: ei | AC91: ei | AD91: ei
A92: 146 | B92: Ojitettu luhtainen ja ruohoinen hieskoivukorpi | C92: Turvekangas | D92: 15 | E92: 0.7 | F92: 0.4 | G92: 1 | H92: 1 | I92: 0 | J92: 0 | K92: 1 | L92: 0.6 | O92: 0 | P92: 1 | Q92: 1 | R92: 0.6 | S92: 0.4 | T92: 0.1 | U92: 1 | V92: 0.8 | W92: =(2*SUM(F92,L92,R92)+SUM(S92:V92))/(2*AREAS((F92,L92,R92))+COLUMNS(S92:V92)) -> 0.55 | X92: 0.385 | Y92: kyllä | Z92: ei | AA92: ei | AB92: kyllä | AC92: ei | AD92: ei | AF92: Korvapuron Ylimmäiseen Korvalampeen laskeva suistoalue kuviolla. Osa arvokkaasta suokokonaisuudesta muuttunut ojitusten vuoksi turvekankaaksi, vaihettuu sarakorveksi. Ennallistamiskelpoinen. Loput kuviosta arvokasta rantasuota.
A93: 148 | B93: ku valt kasvatusmetsä | C93: M02.02.01 Nuoret tuoreet kankaat | D93: 99 | E93: 0.3 | F93: 0.4 | G93: 0 | H93: 0 | I93: 1 | J93: 0 | K93: 1 | L93: 0.4 | O93: 0 | P93: 0 | Q93: 0 | R93: 0.2 | S93: 0.6 | T93: 0.1 | U93: 1 | V93: 0.6 | W93: =(2*SUM(F93,L93,R93)+SUM(S93:V93))/(2*AREAS((F93,L93,R93))+COLUMNS(S93:V93)) -> 0.43 | X93: 0.129 | Y93: ei | Z93: ei | AA93: ei | AB93: ei | AC93: ei | AD93: ei | AE93: VU | AF93: tulkittu
A94: 149 | B94: ku valt kasvatusmetsä | C94: M02.02.01 Nuoret tuoreet kankaat | D94: 99 | E94: 0.4 | F94: 0.4 | G94: 0 | H94: 0 | I94: 1 | J94: 0 | K94: 1 | L94: 0.4 | O94: 0 | P94: 0 | Q94: 0 | R94: 0.2 | S94: 0.6 | T94: 0.1 | U94: 1 | V94: 0.6 | W94: =(2*SUM(F94,L94,R94)+SUM(S94:V94))/(2*AREAS((F94,L94,R94))+COLUMNS(S94:V94)) -> 0.43 | X94: 0.172 | Y94: ei | Z94: ei | AA94: ei | AB94: ei | AC94: ei | AD94: ei | AE94: VU | AF94: tulkittu
A95: 150 | B95: ojitettu räme | C95: Turvekangas (puolukka, mustikka) | D95: 100 | E95: 0.4 | F95: 0.5 | G95: 1 | H95: 1 | I95: 1 | J95: 0 | K95: 1 | L95: 0.7 | M95: 0-5 | R95: 0.2 | S95: 0.5 | T95: 0.2 | U95: 1 | V95: 0.6 | W95: =(2*SUM(F95,L95,R95)+SUM(S95:V95))/(2*AREAS((F95,L95,R95))+COLUMNS(S95:V95)) -> 0.51 | X95: 0.204 | Y95: ei | Z95: ei | AA95: ei | AB95: ei | AC95: ei | AD95: ei | AF95: Tuoreen kankaan lajistoa, kuivunut räme. Puusto erirakenteinen, monimuotoinen, osin varttunut.
A96: 152 | B96: ku valtainen sekapuustoinen puronvarsimetsä | C96: Varttuneet havupuuvaltaiset tuoreet kankaat M02.02.04 | D96: 99 | E96: 0.2 | F96: 0.8 | G96: 2 | H96: 2 | I96: 1 | J96: 0 | K96: 1 | L96: 0.9 | O96: 1 | P96: 1 | Q96: 1 | R96: 0.7 | S96: 0.9 | T96: 0.5 | U96: 1 | V96: 0.5 | W96: =(2*SUM(F96,L96,R96)+SUM(S96:V96))/(2*AREAS((F96,L96,R96))+COLUMNS(S96:V96)) -> 0.77 | X96: 0.154 | Y96: kyllä | Z96: ei | AA96: ei | AB96: kyllä | AC96: ei | AD96: ei | AE96: NT | AF96: Potentiaalia METSOon varsinkin puron länsirannan metsällä. Kohde 151 Korvapuro kuviolla.
A97: 154 | B97: ku valtainen kasvatusmetsä | C97: Varttuneet havupuuvaltaiset tuoreet kankaat M02.02.05 | D97: 95 | E97: 1.8 | F97: 0.7 | G97: 1 | H97: 1 | I97: 0 | J97: 0 | K97: 1 | L97: 0.6 | O97: 0 | P97: 0 | Q97: 0 | R97: 0.3 | S97: 0.8 | T97: 0.4 | U97: 1 | V97: 0.5 | W97: =(2*SUM(F97,L97,R97)+SUM(S97:V97))/(2*AREAS((F97,L97,R97))+COLUMNS(S97:V97)) -> 0.59 | X97: 1.062 | Y97: ei | Z97: ei | AA97: ei | AB97: ei | AC97: ei | AD97: ei | AE97: NT | AF97: Osa kuviosta mustikkaturvekangasta, ojitus kuivattanut aiemmin korpiset alueet. Valtapuusto noin 70 vuotiasta.
A98: 155 | B98: mä valtainen kasvatusmetsä | C98: Varttuneet havupuuvaltaiset tuoreet kankaat M02.02.06 | D98: 100 | E98: 1.3 | F98: 0.6 | G98: 1 | H98: 0 | I98: 0 | J98: 0 | K98: 1 | L98: 0.5 | O98: 0 | P98: 0 | Q98: 0 | R98: 0.1 | S98: 0.6 | T98: 0.1 | U98: 1 | V98: 0.7 | W98: =(2*SUM(F98,L98,R98)+SUM(S98:V98))/(2*AREAS((F98,L98,R98))+COLUMNS(S98:V98)) -> 0.48 | X98: 0.624 | Y98: ei | Z98: ei | AA98: ei | AB98: ei | AC98: ei | AD98: ei | AE98: NT | AF98: Harvahko, metsäkastikka runsas
A99: 156 | B99: tiheä, koi, pi valtainen rinnemetsä | C99: Nuoret lehtomaiset kankaat M02.01.04 | D99: 100 | E99: 1.2 | F99: 0.5 | G99: 1 | H99: 1 | I99: 1 | J99: 0 | K99: 2 | L99: 0.8 | O99: 0 | P99: 0 | Q99: 1 | R99: 0.5 | S99: 0.9 | T99: 0.1 | U99: 1 | V99: 0.9 | W99: =(2*SUM(F99,L99,R99)+SUM(S99:V99))/(2*AREAS((F99,L99,R99))+COLUMNS(S99:V99)) -> 0.65 | X99: 0.78 | Y99: ei | Z99: ei | AA99: ei | AB99: ei | AC99: ei | AD99: ei | AE99: VU | AF99: Kuusikoituva, tiheä. Oravanmarja runsas, tähtitalvikkia.
A100: 157 | B100: kostea sekapuustoinen rinnemetsä notkelmassa | C100: M02.01.02 Varttuneet havupuuvaltaiset lehtomaiset kankaat | D100: 95 | E100: 0.4 | F100: 0.7 | G100: 1 | H100: 2 | I100: 1 | J100: 0 | K100: 2 | L100: 0.9 | O100: 0 | P100: 0 | Q100: 0 | R100: 0.5 | S100: 0.9 | T100: 0.4 | U100: 1 | V100: 0.7 | W100: =(2*SUM(F100,L100,R100)+SUM(S100:V100))/(2*AREAS((F100,L100,R100))+COLUMNS(S100:V100)) -> 0.72 | X100: 0.288 | Y100: ei | Z100: ei | AA100: ei | AB100: ei | AC100: ei | AD100: ei | AE100: NT | AF100: Kuviolla tihkupintainen lähde ja noro (169). Molemmat ihmisen muokkaamia, rengaskaivo jolta letku, norouoma suoristettu aikoinaan ojaksi, palautuva?.
A101: 159 | B101: Kastikoitunut lehtipuuvaltainen nuori metsä | C101: Nuoret lehtomaiset kankaat M02.01.04 | D101: 100 | E101: 0.9 | F101: 0.5 | G101: 1 | H101: 1 | I101: 1 | J101: 0 | K101: 2 | L101: 0.7 | O101: 0 | P101: 0 | Q101: 0 | R101: 0.2 | S101: 0.5 | T101: 0.2 | U101: 0.5 | V101: 0.6 | W101: =(2*SUM(F101,L101,R101)+SUM(S101:V101))/(2*AREAS((F101,L101,R101))+COLUMNS(S101:V101)) -> 0.46 | X101: 0.414 | Y101: ei | Z101: ei | AA101: ei | AB101: ei | AC101: ei | AD101: ei | AE101: VU | AF101: Runsaasti nuorta pi, koi, siemenpuina varttunutta mä harvakseltaan, aukkoinen, kärrypolku-uria, metsäkastikka runsas.Lupiini, puistolemmikki. Itäreunalla vanha kiviaita ja kivikasa.
A102: 160 | B102: Lehtipuuvaltainen nuori lehtom kangas | C102: Nuoret lehtomaiset kankaat M02.01.05 | D102: 95 | E102: 1 | F102: 0.5 | G102: 1 | H102: 1 | I102: 1 | J102: 0 | K102: 2 | L102: 0.7 | O102: 0 | P102: 0 | Q102: 0 | R102: 0.2 | S102: 0.5 | T102: 0.2 | U102: 0.8 | V102: 0.7 | W102: =(2*SUM(F102,L102,R102)+SUM(S102:V102))/(2*AREAS((F102,L102,R102))+COLUMNS(S102:V102)) -> 0.5 | X102: 0.5 | Z102: ei | AA102: ei | AB102: ei | AC102: ei | AD102: ei | AE102: VU | AF102: Osin tulkittu. Sekapuustoinen, runsaasti nuorta lehtipuuta. Vanha kivikasa E-kulmalla.
A103: 161 | B103: Koivuvaltainen nuorehko kasvatusmetsä | C103: M02.02.04 Varttuneet lehtipuuvaltaiset lehtomaiset ja tuoreet kankaat | D103: 90 | E103: 1.7 | F103: 0.5 | G103: 1 | H103: 1 | I103: 0 | J103: 0 | K103: 1 | L103: 0.6 | O103: 0 | P103: 0 | Q103: 0 | R103: 0.1 | S103: 0.3 | T103: 0.1 | U103: 0.4 | V103: 0.6 | W103: =(2*SUM(F103,L103,R103)+SUM(S103:V103))/(2*AREAS((F103,L103,R103))+COLUMNS(S103:V103)) -> 0.38 | X103: 0.646 | Y103: ei | Z103: ei | AA103: ei | AB103: ei | AC103: ei | AD103: ei | AE103: VU | AF103: Entisellä pellolla, kenttäkerroksen kasvillisuus muistuttaa rehevän niityn kasvillisuutta. Lupiiinia, puistolemmikkiä.
A104: 162 | B104: Ku valtainen kasvatusmetsä | C104: M02.01.02 Varttuneet havupuuvaltaiset lehtomaiset kankaat | D104: 99 | E104: 0.7 | F104: 0.5 | G104: 1 | H104: 0 | I104: 0 | J104: 0 | K104: 0 | L104: 0.2 | O104: 0 | P104: 0 | Q104: 0 | R104: 0.1 | S104: 0.2 | T104: 0.1 | U104: 0.7 | V104: 0.7 | W104: =(2*SUM(F104,L104,R104)+SUM(S104:V104))/(2*AREAS((F104,L104,R104))+COLUMNS(S104:V104)) -> 0.33 | X104: 0.231 | Y104: ei | Z104: ei | AA104: ei | AB104: ei | AC104: ei | AD104: ei | AE104: NT | AF104: Entisellä pellolla, tulkittu.
A105: 163 | B105: Lehtipuuvaltainen kasvatusmetsä | C105: Nuoret lehtomaiset kankaat M02.01.05 | D105: 99 | E105: 0.4 | F105: 0.5 | G105: 1 | H105: 1 | I105: 1 | J105: 0 | K105: 1 | L105: 0.8 | R105: 0.2 | S105: 0.7 | T105: 0.1 | U105: 0.9 | V105: 0.7 | W105: =(2*SUM(F105,L105,R105)+SUM(S105:V105))/(2*AREAS((F105,L105,R105))+COLUMNS(S105:V105)) -> 0.54 | X105: 0.216 | Y105: ei | Z105: ei | AA105: ei | AB105: ei | AC105: ei | AD105: ei | AE105: VU | AF105: Tulkittu.
A106: 164 | B106: Havupuuvaltainen kasvatusmetsä | C106: Varttuneet havupuuvaltaiset tuoreet kankaat M02.02.06 | D106: 99 | E106: 0.5 | F106: 0.6 | G106: 1 | H106: 1 | I106: 0 | J106: 0 | K106: 1 | L106: 0.7 | O106: 0 | P106: 0 | Q106: 0 | R106: 0.2 | S106: 0.7 | T106: 0.3 | U106: 0.9 | V106: 0.7 | W106: =(2*SUM(F106,L106,R106)+SUM(S106:V106))/(2*AREAS((F106,L106,R106))+COLUMNS(S106:V106)) -> 0.56 | X106: 0.28 | Y106: ei | Z106: ei | AA106: ei | AB106: ei | AC106: ei | AD106: ei | AE106: NT | AF106: Tulkittu.
A107: 165 | B107: Sekapuustoinen kasvatusmetsä | C107: M02.02.01 Nuoret tuoreet kankaat | D107: 99 | E107: 0.3 | F107: 0.5 | G107: 1 | H107: 1 | I107: 1 | J107: 0 | K107: 2 | L107: 0.8 | O107: 0 | P107: 0 | Q107: 1 | R107: 0.4 | S107: 0.7 | T107: 0.1 | U107: 0.9 | V107: 0.7 | W107: =(2*SUM(F107,L107,R107)+SUM(S107:V107))/(2*AREAS((F107,L107,R107))+COLUMNS(S107:V107)) -> 0.58 | X107: 0.174 | Y107: ei | Z107: ei | AA107: ei | AB107: ei | AC107: ei | AD107: ei | AE107: VU | AF107: Tulkittu.
A108: 166 | B108: Varttunut ku valtainen kangas | C108: Varttuneet havupuuvaltaiset tuoreet kankaat M02.02.06 | D108: 99 | E108: 1 | F108: 0.7 | G108: 1 | H108: 1 | I108: 1 | J108: 0 | K108: 1 | L108: 0.8 | R108: 0.5 | S108: 0.8 | T108: 0.6 | U108: 0.9 | V108: 0.8 | W108: =(2*SUM(F108,L108,R108)+SUM(S108:V108))/(2*AREAS((F108,L108,R108))+COLUMNS(S108:V108)) -> 0.71 | X108: 0.71 | Y108: ei | Z108: ei | AA108: ei | AB108: ei | AC108: ei | AD108: ei | AE108: NT | AF108: Tulkittu.
A109: 167 | B109: Harvennettu lehtipuuvaltainen kasvatusmetsä | C109: Nuoret lehtomaiset kankaat M02.01.05 | D109: 99 | E109: 0.5 | F109: 0.5 | G109: 0 | H109: 0 | I109: 0 | J109: 0 | K109: 1 | L109: 0.3 | O109: 0 | P109: 0 | Q109: 0 | R109: 0.1 | S109: 0.2 | T109: 0.1 | U109: 0.5 | V109: 0.6 | W109: =(2*SUM(F109,L109,R109)+SUM(S109:V109))/(2*AREAS((F109,L109,R109))+COLUMNS(S109:V109)) -> 0.32 | X109: 0.16 | Y109: ei | Z109: ei | AA109: ei | AB109: ei | AC109: ei | AD109: ei | AE109: VU | AF109: Tulkittu.
A110: 168 | B110: Havupuuvaltainen kasvatusmetsä | C110: Varttuneet havupuuvaltaiset tuoreet kankaat M02.02.06 | D110: 100 | E110: 1.9 | F110: 0.6 | G110: 1 | H110: 1 | I110: 1 | J110: 0 | K110: 1 | L110: 0.8 | O110: 0 | P110: 0 | Q110: 1 | R110: 0.5 | S110: 1 | T110: 0.2 | U110: 1 | V110: 0.8 | W110: =(2*SUM(F110,L110,R110)+SUM(S110:V110))/(2*AREAS((F110,L110,R110))+COLUMNS(S110:V110)) -> 0.68 | X110: 1.292 | Y110: ei | Z110: ei | AA110: ei | AB110: ei | AC110: ei | AD110: ei | AE110: NT | AF110: Osin mänty-, osin kuusivaltainen
A111: 169 | B111: Taimikko | C111: M02.02.01 Nuoret tuoreet kankaat | D111: 100 | E111: 0.6 | F111: 0.3 | G111: 0 | H111: 0 | I111: 1 | J111: 0 | K111: 1 | L111: 0.5 | M111: 0 | O111: 0 | P111: 0 | Q111: 0 | R111: 0.1 | S111: 0.9 | T111: 0.1 | U111: 1 | V111: 0.7 | W111: =(2*SUM(F111,L111,R111)+SUM(S111:V111))/(2*AREAS((F111,L111,R111))+COLUMNS(S111:V111)) -> 0.45 | X111: 0.27 | Y111: ei | Z111: ei | AA111: ei | AB111: ei | AC111: ei | AD111: ei | AE111: VU | AF111: Alle 10-vuotias avohakkuulle noussut taimikko, ku, koi
A112: 172 | B112: Havupuuvaltainen kasvatusmetsä | C112: Varttuneet havupuuvaltaiset tuoreet kankaat M02.02.06 | D112: 100 | E112: 3.1 | F112: 0.6 | G112: 1 | H112: 1 | I112: 1 | J112: 0 | K112: 1 | L112: 0.7 | O112: 0 | P112: 0 | Q112: 1 | R112: 0.4 | S112: 0.9 | T112: 0.2 | U112: 1 | V112: 0.8 | W112: =(2*SUM(F112,L112,R112)+SUM(S112:V112))/(2*AREAS((F112,L112,R112))+COLUMNS(S112:V112)) -> 0.63 | X112: 1.953 | Y112: ei | Z112: ei | AA112: ei | AB112: ei | AC112: ei | AD112: ei | AE112: NT | AF112: Yli 60-vuotiasta, mä ja ku valtaista kangasta, myös koi runsas
A113: 173 | B113: Ojitettu ku valtainen kasvatusmetsä | C113: Varttuneet havupuuvaltaiset tuoreet kankaat M02.02.06 | D113: 98 | E113: 3.3 | F113: 0.6 | G113: 1 | H113: 1 | I113: 1 | J113: 0 | K113: 1 | L113: 0.6 | O113: 0 | P113: 0 | Q113: 0 | R113: 0.2 | S113: 0.7 | T113: 0.2 | U113: 1 | V113: 0.6 | W113: =(2*SUM(F113,L113,R113)+SUM(S113:V113))/(2*AREAS((F113,L113,R113))+COLUMNS(S113:V113)) -> 0.53 | X113: 1.749 | Y113: ei | Z113: ei | AA113: ei | AB113: ei | AC113: ei | AD113: ei | AE113: NT | AF113: Ojitukset kuivattaneet korpimaisia osia mustikkaturvekankaan suuntaan.
A114: 174 | B114: Ku valtainen kasvatusmetsä | C114: M02.02.01 Nuoret tuoreet kankaat | D114: 99 | E114: 1.8 | F114: 0.5 | G114: 0 | H114: 0 | I114: 1 | J114: 0 | K114: 1 | L114: 0.4 | O114: 0 | P114: 0 | Q114: 0 | R114: 0.1 | S114: 0.8 | T114: 0.1 | U114: 1 | V114: 0.7 | W114: =(2*SUM(F114,L114,R114)+SUM(S114:V114))/(2*AREAS((F114,L114,R114))+COLUMNS(S114:V114)) -> 0.46 | X114: 0.828 | Y114: ei | Z114: ei | AA114: ei | AB114: ei | AC114: ei | AD114: ei | AE114: VU
A115: 175 | B115: Lehtomainen metsälaikku | C115: M02.01.02 Varttuneet havupuuvaltaiset lehtomaiset kankaat | D115: 90 | E115: 0.2 | F115: 0.6 | G115: 1 | H115: 1 | I115: 1 | J115: 0 | K115: 1 | L115: 0.6 | O115: 0 | P115: 0 | Q115: 0 | R115: 0.2 | S115: 0.8 | T115: 0.2 | U115: 1 | V115: 0.8 | W115: =(2*SUM(F115,L115,R115)+SUM(S115:V115))/(2*AREAS((F115,L115,R115))+COLUMNS(S115:V115)) -> 0.56 | X115: 0.112 | Y115: ei | Z115: ei | AA115: ei | AB115: ei | AC115: ei | AD115: ei | AE115: NT | AF115: Tulkittu. Metsäkeskuksen metsävaratiedoista poiketen kosteusindeksi, tai maastokartta eivät viittaa soistumaan.
A116: 176 | B116: Ku valtainen kasvatusmetsä | C116: Varttuneet havupuuvaltaiset tuoreet kankaat M02.02.06 | D116: 90 | E116: 0.3 | F116: 0.6 | G116: 1 | H116: 1 | I116: 1 | J116: 0 | K116: 1 | L116: 0.6 | O116: 0 | P116: 0 | Q116: 0 | R116: 0.2 | S116: 0.7 | T116: 0.2 | U116: 1 | V116: 0.7 | W116: =(2*SUM(F116,L116,R116)+SUM(S116:V116))/(2*AREAS((F116,L116,R116))+COLUMNS(S116:V116)) -> 0.54 | X116: 0.162 | Y116: ei | Z116: ei | AA116: ei | AB116: ei | AC116: ei | AD116: ei | AE116: NT | AF116: Tulkittu. Metsäkeskuksen kosteusindeksi viittaa soistumaan, ojitettu alempaa selvitysalueen ulkopuolella.
A117: 177 | B117: Ku valtainen varttunutta vanhempi metsälaikku | C117: Varttuneet havupuuvaltaiset tuoreet kankaat M02.02.07 | D117: 90 | E117: 0.5 | F117: 0.8 | G117: 1 | H117: 1 | I117: 1 | J117: 0 | K117: 1 | L117: 0.8 | R117: 0.6 | S117: 0.8 | T117: 0.7 | U117: 1 | V117: 0.9 | W117: =(2*SUM(F117,L117,R117)+SUM(S117:V117))/(2*AREAS((F117,L117,R117))+COLUMNS(S117:V117)) -> 0.78 | X117: 0.39 | Y117: ei | Z117: ei | AA117: ei | AB117: ei | AC117: ei | AD117: ei | AE117: NT | AF117: Tulkittu. Ikänsä puolesta potentiaalinen METSO-kohde, varsinkin jos korpisuutta, lahopuuta, tai lehtomaisuutta. Kosteusindeksin perusteella voi olla soistumaa. Ympäröivillä kuvioilla kuitenkin ojituksia.
A118: 178 | B118: Mä valtainen ojitettu kangas | C118: Varttuneet havupuuvaltaiset tuoreet kankaat M02.02.08 | D118: 80 | E118: 0.56 | F118: 0.6 | G118: 1 | H118: 1 | I118: 1 | J118: 0 | K118: 1 | L118: 0.7 | O118: 0 | P118: 0 | Q118: 0 | R118: 0.2 | S118: 0.7 | T118: 0.1 | U118: 1 | V118: 0.7 | W118: =(2*SUM(F118,L118,R118)+SUM(S118:V118))/(2*AREAS((F118,L118,R118))+COLUMNS(S118:V118)) -> 0.55 | X118: 0.308 | Y118: ei | Z118: ei | AA118: ei | AB118: ei | AC118: ei | AD118: ei | AE118: NT | AF118: Osa kuviosta rantavyöhykkeen vaihettumisrämettä, potentiaalinen METSO-kohde? Koska vain 20 % rämettä, paikkatietoon talletettu kangas
A119: 181 | B119: Havupuuvaltainen ojitettu kangas | C119: Varttuneet havupuuvaltaiset tuoreet kankaat M02.02.09 | D119: 99 | E119: 0.4 | F119: 0.5 | G119: 1 | H119: 1 | I119: 1 | J119: 0 | K119: 1 | L119: 0.7 | O119: 0 | P119: 0 | Q119: 1 | R119: 0.6 | S119: 0.9 | T119: 0.1 | U119: 1 | V119: 0.6 | W119: =(2*SUM(F119,L119,R119)+SUM(S119:V119))/(2*AREAS((F119,L119,R119))+COLUMNS(S119:V119)) -> 0.62 | X119: 0.248 | Y119: ei | Z119: ei | AA119: ei | AB119: ei | AC119: ei | AD119: ei | AE119: NT | AF119: Voisi kehittyä monimuotoiseksi METSO-kohteeksi yhdessä kuvioiden 170, 171, 177 , 178 ja 179 kanssa.
A120: 182 | B120: Taimikko hakkuuaukiolla | C120: M02.02.01 Nuoret tuoreet kankaat | D120: 100 | E120: 0.3 | F120: 0.3 | G120: 0 | H120: 0 | I120: 1 | J120: 0 | K120: 1 | L120: 0.5 | O120: 0 | P120: 0 | Q120: 0 | R120: 0.1 | S120: 0.8 | T120: 0.1 | U120: 1 | V120: 0.6 | W120: =(2*SUM(F120,L120,R120)+SUM(S120:V120))/(2*AREAS((F120,L120,R120))+COLUMNS(S120:V120)) -> 0.43 | X120: 0.129 | Y120: ei | Z120: ei | AA120: ei | AB120: ei | AC120: ei | AD120: ei | AE120: NT | AF120: Ojitettu ympäriltä, s-reunalla hapaa ja lahopuuta.
A121: 184 | B121: Harvennettu reunusmetsä | C121: Nuoret lehtomaiset kankaat M02.01.05 | D121: 90 | E121: 0.6 | F121: 0.5 | G121: 1 | H121: 0 | I121: 0 | J121: 0 | K121: 1 | L121: 0.5 | O121: 0 | P121: 0 | Q121: 1 | R121: 0.2 | S121: 0.4 | T121: 0.3 | U121: 0.8 | V121: 0.3 | W121: =(2*SUM(F121,L121,R121)+SUM(S121:V121))/(2*AREAS((F121,L121,R121))+COLUMNS(S121:V121)) -> 0.42 | X121: 0.252 | Y121: ei | Z121: ei | AA121: ei | AB121: ei | AC121: ei | AD121: ei | AE121: VU | AF121: Harvennettu hiljan reippaasti, paljon reunavaikutusta (piha-alue, pelto, tie).
A122: 186 | B122: Aukkoinen sekametsä | C122: Nuoret lehtomaiset kankaat M02.01.06 | D122: 90 | E122: 1.9 | F122: 0.4 | G122: 1 | H122: 1 | I122: 1 | J122: 0 | K122: 1 | L122: 0.7 | O122: 0 | P122: 0 | Q122: 1 | R122: 0.3 | S122: 0.4 | T122: 0.1 | U122: 0.7 | V122: 0.7 | W122: =(2*SUM(F122,L122,R122)+SUM(S122:V122))/(2*AREAS((F122,L122,R122))+COLUMNS(S122:V122)) -> 0.47 | X122: 0.893 | Y122: ei | Z122: ei | AA122: ei | AB122: ei | AC122: ei | AD122: ei | AE122: VU | AF122: Osin vanhaa peltoa, niittymäistä kasvillisuutta aukkopaikoissa, jokunen lupiini. Muutama lehtoisa tiheikkö, joissa vanhempaa puustoa ja tu, hale, osin taas lähempänä tuoreen kankaan kasvillisuutta. Aukkohakattu, rau koi, ku valtalajit, mä, hale, rai, tu.
A123: 187 | B123: Tiheä nuori kasvatusmetsä | C123: M02.02.01 Nuoret tuoreet kankaat | D123: 95 | E123: 1.1 | F123: 0.4 | G123: 0 | H123: 0 | I123: 1 | J123: 0 | K123: 1 | L123: 0.5 | O123: 0 | P123: 0 | Q123: 1 | R123: 0.2 | S123: 0.9 | T123: 0.1 | U123: 0.9 | V123: 0.9 | W123: =(2*SUM(F123,L123,R123)+SUM(S123:V123))/(2*AREAS((F123,L123,R123))+COLUMNS(S123:V123)) -> 0.5 | X123: 0.55 | Y123: ei | Z123: ei | AA123: ei | AB123: ei | AC123: ei | AD123: ei | AE123: VU | AF123: Vaihettuu etelässä lehtomaiseksi. Koi, ku, (mä, pi, hale). Vanha kiviaita kaakkoisrajalla?
A124: 192 | B124: Yli satavuotias ku valtainen kangas | C124: Varttuneet havupuuvaltaiset tuoreet kankaat M02.02.08 | D124: 100 | E124: 1.5 | F124: 0.9 | G124: 2 | H124: 2 | I124: 1 | J124: 0 | K124: 1 | L124: 0.9 | O124: 1 | P124: 1 | Q124: 1 | R124: 0.8 | S124: 1 | T124: 0.8 | U124: 1 | V124: 1 | W124: =(2*SUM(F124,L124,R124)+SUM(S124:V124))/(2*AREAS((F124,L124,R124))+COLUMNS(S124:V124)) -> 0.9 | X124: 1.35 | Y124: kyllä | Z124: boreaaliset luonnonmetsät 9010 | AA124: hyvä | AB124: ei | AC124: ei | AD124: ei | AE124: NT | AF124: Edustava, lahopuusta noin puolet pystylahoa, jatkumo olemassa. Ku, mä, koi, pi. Yövilkkaa."Metsän vanhuudella tarkoitetaan pääsääntöisesti sitä, että metsän vallitseva puusto on vähintään metsätaloudellisen uudistusiän saavuttanutta." (Airaksinen & Karttunen 2001)
A125: 194 | B125: Varttunut mä valtainen kasvatusmetsä | C125: Varttuneet havupuuvaltaiset tuoreet kankaat M02.02.08 | D125: 95 | E125: 1.6 | F125: 0.6 | G125: 1 | H125: 1 | I125: 0 | J125: 0 | K125: 1 | L125: 0.6 | O125: 0 | P125: 1 | Q125: 0 | R125: 0.4 | S125: 1 | T125: 0.3 | U125: 1 | V125: 0.9 | W125: =(2*SUM(F125,L125,R125)+SUM(S125:V125))/(2*AREAS((F125,L125,R125))+COLUMNS(S125:V125)) -> 0.64 | X125: 1.024 | Y125: ei | Z125: ei | AA125: ei | AB125: ei | AC125: ei | AD125: ei | AE125: NT | AF125: kuvion halki kulkee kärrypolku w-e suunnassa, kataja runsas pensaskerroksessa, vanha hirvitorni
A126: 195 | B126: Ojitetun suon ja kankaan mosaiikki | C126: Varttuneet havupuuvaltaiset tuoreet kankaat M02.02.09 | D126: 50 | E126: 4.2 | F126: 0.6 | G126: 2 | H126: 1 | I126: 1 | J126: 0 | K126: 1 | L126: 0.7 | O126: 0 | P126: 1 | Q126: 0 | R126: 0.4 | S126: 1 | T126: 0.3 | U126: 1 | V126: 0.6 | W126: =(2*SUM(F126,L126,R126)+SUM(S126:V126))/(2*AREAS((F126,L126,R126))+COLUMNS(S126:V126)) -> 0.63 | X126: 2.646 | Y126: ei | Z126: ei | AA126: ei | AB126: ei | AC126: ei | AD126: ei | AE126: NT | AF126: Pyypoikue alueen etelälaidalla.
A127: 197 | B127: Nuori tiheä kasvatusmetsä | C127: M02.02.01 Nuoret tuoreet kankaat | D127: 100 | E127: 0.9 | F127: 0.5 | G127: 1 | H127: 0 | I127: 0 | J127: 0 | K127: 1 | L127: 0.5 | O127: 0 | P127: 0 | Q127: 0 | R127: 0.2 | S127: 0.8 | T127: 0.1 | U127: 1 | V127: 0.8 | W127: =(2*SUM(F127,L127,R127)+SUM(S127:V127))/(2*AREAS((F127,L127,R127))+COLUMNS(S127:V127)) -> 0.51 | X127: 0.459 | Y127: ei | Z127: ei | AA127: ei | AB127: ei | AC127: ei | AD127: ei | AE127: VU | AF127: Koivuvaltainen, nuori kuusikko tiheää, tasarakenteinen
A128: 198 | B128: Hakkuuaukea (taimikko alle 1 m) | C128: M02.02.01 Nuoret tuoreet kankaat | D128: 100 | E128: 2 | F128: 0.2 | G128: 0 | H128: 0 | I128: 0 | J128: 0 | K128: 1 | L128: 0.3 | M128: 0 | R128: 0.1 | S128: 0.9 | T128: 0.1 | U128: 1 | V128: 0.5 | W128: =(2*SUM(F128,L128,R128)+SUM(S128:V128))/(2*AREAS((F128,L128,R128))+COLUMNS(S128:V128)) -> 0.37 | X128: 0.74 | Y128: ei | Z128: ei | AA128: ei | AB128: ei | AC128: ei | AD128: ei | AE128: VU | AF128: Koi, ku, muutamia mä siemenpuina. Vadelmikkoa.Avohakkuu, jonka länsilaidalla ollut pieni soistuma. Suokasvillisuutta vielä hieman jäljellä naapurikuviolla 199.
A129: 199 | B129: Ikääntynyt ku valtainen kasvatusmetsä | C129: M02.02.09 Varttuneet havupuuvaltaiset tuoreet kankaat | D129: 100 | E129: 1.1 | F129: 0.8 | G129: 2 | H129: 2 | I129: 1 | J129: 0 | K129: 1 | L129: 0.8 | M129: 0-5 | O129: 1 | P129: 0 | Q129: 1 | R129: 0.6 | S129: 1 | T129: 0.7 | U129: 1 | V129: 0.9 | W129: =(2*SUM(F129,L129,R129)+SUM(S129:V129))/(2*AREAS((F129,L129,R129))+COLUMNS(S129:V129)) -> 0.8 | X129: 0.88 | Y129: ei | Z129: 9010 | AA129: ei merkittävä | AB129: ei | AC129: ei | AD129: ei | AE129: NT | AF129: Järeitä kuusia, kilpikaarnamäntyjä ja muutamia vanhoja koivuja. Erirakenteinen, hyvää lahopuupotentiaalia. Paikoin rahkainen. Vieressä avohakkuu.
A130: 200 | B130: Nuori osin soistunut kasvatusmetsä | C130: M02.02.01 Nuoret tuoreet kankaat | D130: 85 | E130: 0.3 | F130: 0.5 | G130: 1 | H130: 1 | I130: 1 | J130: 0 | K130: 1 | L130: 0.7 | M130: 0-5 | R130: 0.3 | S130: 0.7 | T130: 0.1 | U130: 1 | V130: 0.6 | W130: =(2*SUM(F130,L130,R130)+SUM(S130:V130))/(2*AREAS((F130,L130,R130))+COLUMNS(S130:V130)) -> 0.54 | X130: 0.162 | Y130: ei | Z130: ei | AA130: ei | AB130: ei | AC130: ei | AD130: ei | AE130: VU | AF130: Osin tiheikköinen, osin harsittu hakkuulle kulkevan uran luota. Kuviolla myös puustoista suota.
A131: 201 | B131: Mä valtainen ojitettu kangas | C131: M02.02.09 Varttuneet havupuuvaltaiset tuoreet kankaat | D131: 100 | E131: 0.4 | F131: 0.6 | G131: 1 | H131: 1 | I131: 1 | J131: 0 | K131: 1 | L131: 0.7 | M131: 0-5 | R131: 0.3 | S131: 0.7 | T131: 0.3 | U131: 1 | V131: 0.6 | W131: =(2*SUM(F131,L131,R131)+SUM(S131:V131))/(2*AREAS((F131,L131,R131))+COLUMNS(S131:V131)) -> 0.58 | X131: 0.232 | Y131: ei | Z131: ei | AA131: ei | AB131: ei | AC131: ei | AD131: ei | AE131: NT | AF131: Ojitus kuivattanut, mustikkakangasta
A132: 202 | B132: Mä valtainen ojitettu kangas | C132: M02.02.09 Varttuneet havupuuvaltaiset tuoreet kankaat | D132: 80 | E132: 1.3 | F132: 0.5 | G132: 1 | H132: 1 | I132: 1 | J132: 0 | K132: 1 | L132: 0.7 | M132: 0-5 | R132: 0.3 | S132: 0.8 | T132: 0.2 | U132: 1 | V132: 0.6 | W132: =(2*SUM(F132,L132,R132)+SUM(S132:V132))/(2*AREAS((F132,L132,R132))+COLUMNS(S132:V132)) -> 0.56 | X132: 0.728 | Y132: ei | Z132: ei | AA132: ei | AB132: ei | AC132: ei | AD132: ei | AE132: NT | AF132: Ojitus kuivattanut, mustikka- ja puolukkakangasta, paikoin korpimuuttumaa.
A133: 203 | B133: Ku valtainen kangas ojitettu | C133: M02.02.09 Varttuneet havupuuvaltaiset tuoreet kankaat | D133: 40 | E133: 1.3 | F133: 0.6 | G133: 1 | H133: 1 | I133: 1 | J133: 0 | K133: 1 | L133: 0.7 | M133: 0-5 | R133: 0.3 | S133: 0.8 | T133: 0.4 | U133: 1 | V133: 0.9 | W133: =(2*SUM(F133,L133,R133)+SUM(S133:V133))/(2*AREAS((F133,L133,R133))+COLUMNS(S133:V133)) -> 0.63 | X133: 0.819 | Y133: ei | Z133: ei | AA133: ei | AB133: ei | AC133: ei | AD133: ei | AE133: NT | AF133: Ojitus kuivattanut korpiset osat.
A134: 205 | B134: Ku valtainen ikääntynyt kangas | C134: M02.02.09 Varttuneet havupuuvaltaiset tuoreet kankaat | D134: 95 | E134: 4.8 | F134: 0.8 | G134: 2 | H134: 2 | I134: 1 | J134: 0 | K134: 1 | L134: 0.8 | M134: 0-5 | R134: 0.6 | S134: 1 | T134: 0.7 | U134: 1 | V134: 0.9 | W134: =(2*SUM(F134,L134,R134)+SUM(S134:V134))/(2*AREAS((F134,L134,R134))+COLUMNS(S134:V134)) -> 0.8 | X134: 3.84 | Y134: kyllä | Z134: Luonnonmetsät(9010) | AA134: hyvä | AB134: ei | AC134: ei | AD134: ei | AE134: NT | AF134: Puusto yli 80-vuotiasta, osin järeää. Muutamia vanhoja koivuja, mäntyjä. Rajautuu kuvion 204 mustikkakangaskorpeen. Lahopuuta vielä vähän, mutta potentiaalia on.
A135: 206 | B135: Mä valtainen kangas | C135: M02.02.09 Varttuneet havupuuvaltaiset tuoreet kankaat | D135: 99 | E135: 1.3 | F135: 0.6 | G135: 1 | H135: 1 | I135: 1 | J135: 0 | K135: 0 | L135: 0.7 | M135: 0-5 | R135: 0.3 | S135: 0.8 | T135: 0.3 | U135: 1 | V135: 0.9 | W135: =(2*SUM(F135,L135,R135)+SUM(S135:V135))/(2*AREAS((F135,L135,R135))+COLUMNS(S135:V135)) -> 0.62 | X135: 0.806 | Y135: ei | Z135: ei | AA135: ei | AB135: ei | AC135: ei | AD135: ei | AE135: NT | AF135: Tulkittu
A136: 207 | B136: Nuori tasarakenteinen talouskuusikko | C136: M02.02.01 Nuoret tuoreet kankaat | D136: 100 | E136: 0.3 | F136: 0.4 | G136: 0 | H136: 0 | I136: 0 | J136: 0 | K136: 0 | L136: 0.2 | M136: 0-5 | R136: 0.1 | S136: 0.7 | T136: 0.1 | U136: 1 | V136: 0.8 | W136: =(2*SUM(F136,L136,R136)+SUM(S136:V136))/(2*AREAS((F136,L136,R136))+COLUMNS(S136:V136)) -> 0.4 | X136: 0.12 | Y136: ei | Z136: ei | AA136: ei | AB136: ei | AC136: ei | AD136: ei | AE136: VU | AF136: Tulkittu
A137: 208 | B137: Varttunut talouskuusikko | C137: M02.02.09 Varttuneet havupuuvaltaiset tuoreet kankaat | D137: 80 | E137: 0.8 | F137: 0.7 | G137: 1 | H137: 1 | I137: 0 | J137: 0 | K137: 0 | L137: 0.4 | M137: 0-5 | R137: 0.1 | S137: 0.5 | T137: 0.5 | U137: 1 | V137: 0.6 | W137: =(2*SUM(F137,L137,R137)+SUM(S137:V137))/(2*AREAS((F137,L137,R137))+COLUMNS(S137:V137)) -> 0.5 | X137: 0.4 | Y137: ei | Z137: ei | AA137: ei | AB137: ei | AC137: ei | AD137: ei | AE137: NT | AF137: Osa kuviosta mustikkaturvekangasta, ojitettu. Kenttäkerros pitkälti vaatimaton, varpuja vähän, runsaasti kantoja, ollut tiheä aiemmin.
A138: 209 | B138: Laaja avohakkuu | C138: M02.02.01 Nuoret tuoreet kankaat | D138: 100 | E138: 14.9 | F138: 0.1 | G138: 0 | H138: 0 | I138: 0 | J138: 0 | K138: 1 | L138: 0.2 | M138: 0 | R138: 0.1 | S138: 0.4 | T138: 0.1 | U138: 1 | V138: 0.6 | W138: =(2*SUM(F138,L138,R138)+SUM(S138:V138))/(2*AREAS((F138,L138,R138))+COLUMNS(S138:V138)) -> 0.29 | X138: 4.321 | Y138: ei | Z138: ei | AA138: ei | AB138: ei | AC138: ei | AD138: ei | AE138: VU | AF138: Itäosa hakattu aiemmin, siellä pieni taimikko, länsiosa metsälauhavainiota. Muutamia siemenpuita, mä, koi
A139: 210 | B139: Tiheä kasvatusmetsä | C139: M02.02.01 Nuoret tuoreet kankaat | D139: 100 | E139: 0.9 | F139: 0.4 | G139: 0 | H139: 0 | I139: 0 | J139: 0 | K139: 1 | L139: 0.3 | M139: 0 | R139: 0.1 | S139: 0.7 | T139: 0.1 | U139: 1 | V139: 0.8 | W139: =(2*SUM(F139,L139,R139)+SUM(S139:V139))/(2*AREAS((F139,L139,R139))+COLUMNS(S139:V139)) -> 0.42 | X139: 0.378 | Y139: ei | Z139: ei | AA139: ei | AB139: ei | AC139: ei | AD139: ei | AE139: VU | AF139: Vain reunoilta sekapuustoinen mä, koi, pi, ku, sisäosissa pelkkä kuusi
A140: 212 | B140: Havupuuvaltainen ojitettu kangas | C140: M02.02.09 Varttuneet havupuuvaltaiset tuoreet kankaat | D140: 99 | E140: 1.7 | F140: 0.6 | G140: 1 | H140: 1 | I140: 0 | J140: 0 | K140: 1 | L140: 0.6 | M140: 0-5 | R140: 0.3 | S140: 0.9 | T140: 0.2 | U140: 1 | V140: 0.6 | W140: =(2*SUM(F140,L140,R140)+SUM(S140:V140))/(2*AREAS((F140,L140,R140))+COLUMNS(S140:V140)) -> 0.57 | X140: 0.969 | Y140: ei | Z140: ei | AA140: ei | AB140: ei | AC140: ei | AD140: ei | AE140: NT | AF140: Ojitettu, harvahkopuustoinen, kantoja, ei juuri lahopuuta, osin mä osin ku valtainen.
A141: 213 | B141: Taimikko hakkuuaukiolla | C141: M02.02.01 Nuoret tuoreet kankaat | D141: 100 | E141: 2.9 | F141: 0.3 | G141: 0 | H141: 0 | I141: 0 | J141: 0 | K141: 1 | L141: 0.3 | M141: 0 | R141: 0.1 | S141: 0.9 | T141: 0.1 | U141: 1 | V141: 0.7 | W141: =(2*SUM(F141,L141,R141)+SUM(S141:V141))/(2*AREAS((F141,L141,R141))+COLUMNS(S141:V141)) -> 0.41 | X141: =(PRODUCT(E141,W141)) -> 1.189 | Y141: ei | Z141: ei | AA141: ei | AB141: ei | AC141: ei | AD141: ei | AE141: VU | AF141: Alle 15 vuotiasta koi, ku avohakkuulla
A142: 214 | B142: Ku valtainen sekapuustoinen kasvatusmetsä | C142: M02.02.09 Varttuneet havupuuvaltaiset tuoreet kankaat | D142: 90 | E142: 1.6 | F142: 0.6 | G142: 1 | H142: 1 | I142: 0 | J142: 0 | K142: 2 | L142: 0.7 | M142: 0 | R142: 0.1 | S142: 1 | T142: 0.1 | U142: 1 | V142: 0.9 | W142: =(2*SUM(F142,L142,R142)+SUM(S142:V142))/(2*AREAS((F142,L142,R142))+COLUMNS(S142:V142)) -> 0.58 | X142: 0.928 | Y142: ei | Z142: ei | AA142: ei | AB142: ei | AC142: ei | AD142: ei | AE142: NT | AF142: Kuvion 193 metsäkortekorpi jatkuu tällä kuviolla pienen painanteen kohdalla. Metsäkorte, korpikastikka, metsäalvejuuri, okarahkasammal, korpikarhunsammal, muut rahkasammalet. Soistuma ei näy maastokartalla. Oijittamaton. Muu kuvio kasvatusmetsää, ku, koi, mä, pi, rai.
A143: 215 | B143: Nuori kasvatusmännikkö | C143: M02.02.01 Nuoret tuoreet kankaat | D143: 95 | E143: 1.4 | F143: 0.5 | G143: 0 | H143: 0 | I143: 0 | J143: 0 | K143: 1 | L143: 0.2 | M143: 0 | R143: 0.1 | S143: 0.3 | T143: 0.1 | U143: 1 | V143: 0.8 | W143: =(2*SUM(F143,L143,R143)+SUM(S143:V143))/(2*AREAS((F143,L143,R143))+COLUMNS(S143:V143)) -> 0.38 | X143: 0.532 | Y143: ei | Z143: ei | AA143: ei | AB143: ei | AC143: ei | AD143: ei | AE143: VU | AF143: Tasarakenteinen, kastikoitunut talousmännikkö. Kuvion itärajalla pieni kuvio varttunutta tiheää kuusikkoa.
A144: 216 | B144: Nuori kasvatuskuusikko | C144: M02.02.01 Nuoret tuoreet kankaat | D144: 95 | E144: 4.8 | F144: 0.5 | G144: 1 | H144: 0 | I144: 0 | J144: 0 | K144: 1 | L144: 0.3 | M144: 0 | R144: 0.1 | S144: 0.5 | T144: 0.2 | U144: 1 | V144: 0.6 | W144: =(2*SUM(F144,L144,R144)+SUM(S144:V144))/(2*AREAS((F144,L144,R144))+COLUMNS(S144:V144)) -> 0.41 | X144: 1.968 | Y144: ei | Z144: ei | AA144: ei | AB144: ei | AC144: ei | AD144: ei | AE144: VU | AF144: Laaja, vaihteleva kuvio, paikoin mä valtainen, osin kenttäkerros lajistoltaan tyypillisempi, paljon koneuria ym, siemenpuina järeitä mäntyjä.
A145: 217 | B145: Hakkuuaukio | C145: Turvekangas | D145: 100 | E145: 0.4 | F145: 0.2 | G145: 0 | H145: 0 | I145: 0 | J145: 0 | K145: 1 | L145: 0.2 | M145: 0 | R145: 0.1 | S145: 0.6 | T145: 0.1 | U145: 1 | V145: 0.6 | W145: =(2*SUM(F145,L145,R145)+SUM(S145:V145))/(2*AREAS((F145,L145,R145))+COLUMNS(S145:V145)) -> 0.33 | X145: 0.132 | Y145: ei | Z145: ei | AA145: ei | AB145: ei | AC145: ei | AD145: ei | AF145: Noin 10-vuotiasta taimikkoa, ku, koi, mä
A146: 218 | B146: Tasainen talouskuusikko entisellä pellolla | C146: Turvekangas, hieman korpilajistoa | D146: 100 | E146: 1.2 | F146: 0.5 | G146: 0 | H146: 0 | I146: 0 | J146: 0 | K146: 1 | L146: 0.2 | M146: 0 | R146: 0.1 | S146: 0.3 | T146: 0.1 | U146: 1 | V146: 0.6 | W146: =(2*SUM(F146,L146,R146)+SUM(S146:V146))/(2*AREAS((F146,L146,R146))+COLUMNS(S146:V146)) -> 0.36 | X146: 0.432 | Y146: ei | Z146: ei | AA146: ei | AB146: ei | AC146: ei | AD146: ei | AF146: Niityn ja korven kasvillisuutta osin harvassa kenttäkerroksessa, ei oikei mikään LuTu. Turvekankaita muistuttaa.
A147: 220 | B147: Ojitettu räme | C147: Turvekangas | D147: 100 | E147: 0.3 | F147: 0.7 | G147: 1 | H147: 1 | I147: 1 | J147: 0 | K147: 1 | L147: 0.7 | M147: 0-5 | R147: 0.1 | S147: 0.4 | T147: 0.2 | U147: 1 | V147: 0.9 | W147: =(2*SUM(F147,L147,R147)+SUM(S147:V147))/(2*AREAS((F147,L147,R147))+COLUMNS(S147:V147)) -> 0.55 | X147: 0.165 | Y147: ei | Z147: ei | AA147: ei | AB147: ei | AC147: ei | AD147: ei | AF147: Pallopäärahkasammalta, puusto erirakenteinen.
A148: 221 | B148: Nuori talouskuusikko | C148: M02.01.05 Nuoret lehtomaiset kankaat | D148: 99 | E148: 3.8 | F148: 0.5 | G148: 0 | H148: 0 | I148: 0 | J148: 0 | K148: 1 | L148: 0.2 | M148: 0-5 | R148: 0.2 | S148: 0.5 | T148: 0.1 | U148: 1 | V148: 0.6 | W148: =(2*SUM(F148,L148,R148)+SUM(S148:V148))/(2*AREAS((F148,L148,R148))+COLUMNS(S148:V148)) -> 0.4 | X148: 1.52 | Y148: ei | Z148: ei | AA148: ei | AB148: ei | AC148: ei | AD148: ei | AE148: VU | AF148: Hyvin tasarakenteinen
A149: 222 | B149: Nuori harva talousmetsä | C149: M02.01.05 Nuoret lehtomaiset kankaat | D149: 100 | E149: 0.3 | F149: 0.4 | G149: 1 | H149: 0 | I149: 0 | J149: 0 | K149: 1 | L149: 0.3 | M149: 0 | R149: 0.1 | S149: 0.4 | T149: 0.1 | U149: 1 | V149: 0.6 | W149: =(2*SUM(F149,L149,R149)+SUM(S149:V149))/(2*AREAS((F149,L149,R149))+COLUMNS(S149:V149)) -> 0.37 | X149: 0.111 | Y149: ei | Z149: ei | AA149: ei | AB149: ei | AC149: ei | AD149: ei | AE149: VU | AF149: Niittymäistä kasvillisuutta aukkopaikoissa
A150: 223 | B150: Avohakkuulle nousut taimikko | C150: M02.02.01 Nuoret tuoreet kankaat | D150: 100 | E150: 0.1 | F150: 0.2 | G150: 0 | H150: 0 | I150: 0 | J150: 0 | K150: 1 | L150: 0.2 | M150: 0 | R150: 0.1 | S150: 0.7 | T150: 0.1 | U150: 1 | V150: 0.6 | W150: =(2*SUM(F150,L150,R150)+SUM(S150:V150))/(2*AREAS((F150,L150,R150))+COLUMNS(S150:V150)) -> 0.34 | X150: 0.034 | Y150: ei | Z150: ei | AA150: ei | AB150: ei | AC150: ei | AD150: ei | AE150: VU | AF150: Ojitettu
A151: 224 | B151: Varttunut ku valtainen kangas | C151: M02.02.09 Varttuneet havupuuvaltaiset tuoreet kankaat | D151: 99 | E151: 0.2 | F151: 0.6 | G151: 1 | H151: 1 | I151: 0 | J151: 0 | K151: 1 | L151: 0.7 | M151: 0.5 | R151: 0.2 | S151: 0.7 | T151: 0.2 | U151: 1 | V151: 0.6 | W151: =(2*SUM(F151,L151,R151)+SUM(S151:V151))/(2*AREAS((F151,L151,R151))+COLUMNS(S151:V151)) -> 0.55 | X151: 0.11 | Y151: ei | Z151: ei | AA151: ei | AB151: ei | AC151: ei | AD151: ei | AE151: NT | AF151: Oja
A152: 225 | B152: Tasainen talouskuusikko | C152: M02.02.01 Nuoret tuoreet kankaat | D152: 99 | E152: 3 | F152: 0.5 | G152: 0 | H152: 0 | I152: 0 | J152: 0 | K152: 1 | L152: 0.2 | M152: 0-5 | R152: 0.2 | S152: 0.5 | T152: 0.1 | U152: 1 | V152: 0.6 | W152: =(2*SUM(F152,L152,R152)+SUM(S152:V152))/(2*AREAS((F152,L152,R152))+COLUMNS(S152:V152)) -> 0.4 | X152: 1.2 | Y152: ei | Z152: ei | AA152: ei | AB152: ei | AC152: ei | AD152: ei | AE152: VU | AF152: Oja, itärajalla vanhaa kiviaitaa
A153: 227 | B153: Kasvatuskoivikkoa entisellä pellolla | C153: M02.01.05 Nuoret lehtomaiset kankaat | D153: 85 | E153: 0.3 | F153: 0.5 | G153: 1 | H153: 1 | I153: 1 | J153: 0 | K153: 2 | L153: 0.7 | M153: 0-5 | R153: 0.2 | S153: 0.6 | T153: 0.3 | U153: 1 | V153: 0.6 | W153: =(2*SUM(F153,L153,R153)+SUM(S153:V153))/(2*AREAS((F153,L153,R153))+COLUMNS(S153:V153)) -> 0.53 | X153: 0.159 | Y153: ei | Z153: ei | AA153: ei | AB153: ei | AC153: ei | AD153: ei | AE153: VU | AF153: Vanhoja kiviaitoja, entistä peltoa, niittyaukeita, aidanseipäitä ym. Puoliksi kasvatuskoivikkoa, puoliksi sekapuustoista.
A154: 228 | B154: Avohakkuu, ojitettu entinen pelto | C154: Kostean niityn kasvillisuutta | D154: 100 | E154: 0.9 | F154: 0.2 | G154: 0 | H154: 0 | I154: 0 | J154: 0 | K154: 2 | L154: 0.4 | M154: 0-5 | R154: 0.3 | S154: 0.2 | T154: 0.3 | U154: 1 | V154: 0.6 | W154: =(2*SUM(F154,L154,R154)+SUM(S154:V154))/(2*AREAS((F154,L154,R154))+COLUMNS(S154:V154)) -> 0.39 | X154: 0.351 | Y154: ei | Z154: ei | AA154: ei | AB154: ei | AC154: ei | AD154: ei | AF154: Avohakkuulle noussut kostean niityn kasvillisuutta, pajupensaita ja puuntaimia. Ojitettu. Viitisen v sitten hakattu ilm. kasvatuskoivikko. Vanhaa peltoa. Vanhojen kiviaitojen reunustama, aitojen luona varttunutta lehtipuustoa ja kuusia. Outoja vesikuoppia hakkuulla, hyvin vaikeakulkuinen. Erikoinen, ei LuTu eikä RyTy.
A155: 229 | B155: Hakkuulle noussut nuori taimikko | C155: M02.01.05 Nuoret lehtomaiset kankaat | D155: 100 | E155: 0.6 | F155: 0.2 | G155: 0 | H155: 0 | I155: 0 | J155: 0 | K155: 1 | L155: 0.2 | M155: 0-5 | R155: 0.1 | S155: 0.4 | T155: 0.1 | U155: 0.9 | V155: 0.6 | W155: =(2*SUM(F155,L155,R155)+SUM(S155:V155))/(2*AREAS((F155,L155,R155))+COLUMNS(S155:V155)) -> 0.3 | X155: 0.18 | Y155: ei | Z155: ei | AA155: ei | AB155: ei | AC155: ei | AD155: ei | AE155: VU | AF155: Ei luontotyyppi. Tulkittu.
A156: 230 | B156: Ikääntynyt ku valtainen kangas | C156: M02.02.09 Varttuneet havupuuvaltaiset tuoreet kankaat | D156: 100 | E156: 0.4 | F156: 0.7 | G156: 1 | H156: 1 | I156: 1 | J156: 0 | K156: 1 | L156: 0.8 | M156: 0-5 | R156: 0.5 | S156: 1 | T156: 0.5 | U156: 1 | V156: 1 | W156: =(2*SUM(F156,L156,R156)+SUM(S156:V156))/(2*AREAS((F156,L156,R156))+COLUMNS(S156:V156)) -> 0.75 | X156: 0.3 | Y156: ei | Z156: ei | AA156: ei | AB156: ei | AC156: ei | AD156: ei | AE156: NT | AF156: Lounaisrajaa pitkin kulkee vanha kiviaita. Luonnontila hyvä, ei erityispiirteitä. Märkiä , rahkasammaleisia onkaloita paikoin pohjalla.
A157: 231 | B157: Vanhojen kiviaitojen ympäröimä ku valtainen metsä | C157: M02.01.05 Nuoret lehtomaiset kankaat | D157: 95 | E157: 1.4 | F157: 0.4 | G157: 1 | H157: 1 | I157: 1 | J157: 0 | K157: 1 | L157: 0.7 | M157: 0-5 | R157: 0.2 | S157: 0.9 | T157: 0.2 | U157: 1 | V157: 1 | W157: =(2*SUM(F157,L157,R157)+SUM(S157:V157))/(2*AREAS((F157,L157,R157))+COLUMNS(S157:V157)) -> 0.57 | X157: 0.798 | Y157: ei | Z157: ei | AA157: ei | AB157: ei | AC157: ei | AD157: ei | AE157: VU | AF157: Kaakkoiskulmall akostean niityn kasvillisuutta ja reunalla oja. Vanhat kiviaidat reunustavat kuviota, ei ole ollut peltoa ainakaan 75 vuoteen, mahdollisesti ollut joskus hakamaa, tai metsälaidun? Pohjoiskulmalla suuri kiviröykkiö.
A158: 232 | B158: Hakkuuaukio | C158: M02.01.05 Nuoret lehtomaiset kankaat | D158: 100 | E158: 1.3 | F158: 0.1 | G158: 0 | H158: 0 | I158: 0 | J158: 0 | K158: 1 | L158: 0.2 | M158: 0 | R158: 0.1 | S158: 0.6 | T158: 0.1 | U158: 0.4 | V158: 0.5 | W158: =(2*SUM(F158,L158,R158)+SUM(S158:V158))/(2*AREAS((F158,L158,R158))+COLUMNS(S158:V158)) -> 0.24 | X158: 0.312 | Y158: ei | Z158: ei | AA158: ei | AB158: ei | AC158: ei | AD158: ei | AE158: VU | AF158: Hakkuuaukio, kasvatusmetsä kaadettu hiljan, pieni taimikko ale 5 v, lehtipuut, ku, vadelma, niittykasveja, komealupiinia, oja keskellä, vanhaa peltoa.
A159: 233 | B159: Nuorehko kasvatuskuusikko | C159: M02.01.05 Nuoret lehtomaiset kankaat | D159: 99 | E159: 1.1 | F159: 0.5 | G159: 0 | H159: 0 | I159: 0 | J159: 0 | K159: 0 | L159: 0.1 | M159: 0 | R159: 0.1 | S159: 0.4 | T159: 0.1 | U159: 0.3 | V159: 0.5 | W159: =(2*SUM(F159,L159,R159)+SUM(S159:V159))/(2*AREAS((F159,L159,R159))+COLUMNS(S159:V159)) -> 0.27 | X159: 0.297 | Y159: ei | Z159: ei | AA159: ei | AB159: ei | AC159: ei | AD159: ei | AE159: VU | AF159: Tasarakenteinen, harvennettu talouskuusikko entisellä pellolla. Lajisto muuttunutta, komealupiini leviämässä voimallisesti naapurikuviolta 134. Oja kuvion halki.
A160: 234 | B160: Lupiinin valtaama kasvatuskoivikko | C160: M02.01.05 Nuoret lehtomaiset kankaat | D160: 100 | E160: 1 | F160: 0.5 | G160: 1 | H160: 0 | I160: 0 | J160: 0 | K160: 1 | L160: 0.5 | M160: 0 | R160: 0.1 | S160: 0.2 | T160: 0.1 | U160: 0.1 | V160: 0.6 | W160: =(2*SUM(F160,L160,R160)+SUM(S160:V160))/(2*AREAS((F160,L160,R160))+COLUMNS(S160:V160)) -> 0.32 | X160: 0.32 | Y160: ei | Z160: ei | AA160: ei | AB160: ei | AC160: ei | AD160: ei | AE160: VU | AF160: Tasarakenteinen, koi, ku, komealupiinin valtaama, myös tuoreen lehdon ja tuoreen niityn kasvillisuutta, ukonkelloa. Vanhaa peltoa.
A161: 235 | B161: Ihmisvaikutteinen lehtipuuvaltainen metsäalue | C161: M02.02.04 Varttuneet lehtipuuvaltaiset lehtomaiset ja tuoreet kankaat | D161: 99 | E161: 0.6 | F161: 0.5 | G161: 1 | H161: 1 | I161: 1 | J161: 0 | K161: 2 | L161: 0.8 | M161: 0-5 | R161: 0.3 | S161: 0.4 | T161: 0.3 | U161: 0.3 | V161: 0.5 | W161: =(2*SUM(F161,L161,R161)+SUM(S161:V161))/(2*AREAS((F161,L161,R161))+COLUMNS(S161:V161)) -> 0.47 | X161: 0.282 | Y161: ei | Z161: ei | AA161: ei | AB161: ei | AC161: ei | AD161: ei | AE161: VU | AF161: Osin vanhaa peltoa, entisen pellon rajalla vanha kiviaita. Erilaista metalliromua ja muuta sekalaista jätettä. Kuviolla ollut mahdollisetsi kaksi latoa. Lupiini leviämässä.
A162: 236 | B162: Nuori ku valtainen kasvatusmetsä | C162: M02.01.05 Nuoret lehtomaiset kankaat | D162: 90 | E162: 3.1 | F162: 0.4 | G162: 1 | H162: 0 | I162: 1 | J162: 0 | K162: 1 | L162: 0.6 | M162: 0-5 | R162: 0.2 | S162: 0.7 | T162: 0.2 | U162: 0.9 | V162: 0.5 | W162: =(2*SUM(F162,L162,R162)+SUM(S162:V162))/(2*AREAS((F162,L162,R162))+COLUMNS(S162:V162)) -> 0.47 | X162: 1.457 | Y162: ei | Z162: ei | AA162: ei | AB162: ei | AC162: ei | AD162: ei | AE162: VU | AF162: Ihmistoimintaa, myös roskaantumista.
A163: 237 | B163: Nuorehko koivuvaltainen kasvatusmetsä | C163: M02.02.04 Varttuneet lehtipuuvaltaiset lehtomaiset ja tuoreet kankaat | D163: 100 | E163: 1.1 | F163: 0.5 | G163: 1 | H163: 1 | I163: 0 | J163: 0 | K163: 1 | L163: 0.7 | M163: 0 | R163: 0.1 | S163: 0.7 | T163: 0.1 | U163: 0.9 | V163: 0.7 | W163: =(2*SUM(F163,L163,R163)+SUM(S163:V163))/(2*AREAS((F163,L163,R163))+COLUMNS(S163:V163)) -> 0.5 | X163: 0.55 | Y163: ei | Z163: ei | AA163: ei | AB163: ei | AC163: ei | AD163: ei | AE163: VU | AF163: Hiljan harvennettu, heinikoitumista, uria
A164: 238 | B164: Nuorehko sekapuustoinen metsä | C164: M02.02.04 Varttuneet lehtipuuvaltaiset lehtomaiset ja tuoreet kankaat | D164: 100 | E164: 0.2 | F164: 0.5 | G164: 1 | H164: 1 | I164: 1 | J164: 0 | K164: 1 | L164: 0.7 | M164: 0-5 | R164: 0.2 | S164: 0.7 | T164: 0.1 | U164: 1 | V164: 0.7 | W164: =(2*SUM(F164,L164,R164)+SUM(S164:V164))/(2*AREAS((F164,L164,R164))+COLUMNS(S164:V164)) -> 0.53 | X164: 0.106 | Y164: ei | Z164: ei | AA164: ei | AB164: ei | AC164: ei | AD164: ei | AE164: VU | AF164: Vanhoja uria, kuusettuva, metsäkastikka runsas.
A165: 239 | B165: Harvennettu mäntykangas mönkkäriurilla | C165: M02.02.04 Varttuneet lehtipuuvaltaiset lehtomaiset ja tuoreet kankaat | D165: 90 | E165: 2.5 | F165: 0.6 | G165: 1 | H165: 1 | I165: 0 | J165: 0 | K165: 1 | L165: 0.7 | M165: 0-5 | R165: 0.2 | S165: 0.6 | T165: 0.2 | U165: 1 | V165: 0.5 | W165: =(2*SUM(F165,L165,R165)+SUM(S165:V165))/(2*AREAS((F165,L165,R165))+COLUMNS(S165:V165)) -> 0.53 | X165: 1.325 | Y165: ei | Z165: ei | AA165: ei | AB165: ei | AC165: ei | AD165: ei | AE165: NT | AF165: Harvapuustoinen, kastikoitunut, vaihettuu alarinteessä luonnontilaisemmaksi ja ku valtaiseksi. Mönkkäriura kiemurtelee kuviolla. Korvaharjun tieltä tehty sepelitiesilmukka kuviolle. Kuuluu kaupungin kartoituksessa METSO-alueisiin
A166: 243 | B166: Nuori taimikko hakkuulla | C166: M02.02.01 Nuoret tuoreet kankaat | D166: 100 | E166: 6.3 | F166: 0.3 | G166: 0 | H166: 0 | I166: 0 | J166: 0 | K166: 1 | L166: 0.3 | M166: 0 | R166: 0.1 | S166: 0.9 | T166: 0.1 | U166: 0.6 | V166: 0.7 | W166: =(2*SUM(F166,L166,R166)+SUM(S166:V166))/(2*AREAS((F166,L166,R166))+COLUMNS(S166:V166)) -> 0.37 | X166: 2.331 | Y166: ei | Z166: ei | AA166: ei | AB166: ei | AC166: ei | AD166: ei | AE166: VU | AF166: Hieman komealupiinia
A167: 247 | B167: Harva nuori ku valtainen metsä | C167: M02.01.05 Nuoret lehtomaiset kankaat | D167: 99 | E167: 0.7 | F167: 0.4 | G167: 0 | H167: 0 | I167: 1 | J167: 0 | K167: 1 | L167: 0.5 | M167: 0 | R167: 0.1 | S167: 0.7 | T167: 0.1 | U167: 1 | V167: 0.7 | W167: =(2*SUM(F167,L167,R167)+SUM(S167:V167))/(2*AREAS((F167,L167,R167))+COLUMNS(S167:V167)) -> 0.45 | X167: 0.315 | Y167: ei | Z167: ei | AA167: ei | AB167: ei | AC167: ei | AD167: ei | AE167: VU | AF167: Tulkittu. Vanha peltosaareke.
A168: 248 | B168: Harva reunavaikutteinen metsikkö | C168: M02.01.02 Varttuneet havupuuvaltaiset lehtomaiset kankaat | D168: 95 | E168: 0.5 | F168: 0.7 | G168: 1 | H168: 1 | I168: 1 | J168: 0 | K168: 1 | L168: 0.7 | M168: 0-5 | R168: 0.5 | S168: 0.7 | T168: 0.6 | U168: 0.9 | V168: 0.4 | W168: =(2*SUM(F168,L168,R168)+SUM(S168:V168))/(2*AREAS((F168,L168,R168))+COLUMNS(S168:V168)) -> 0.64 | X168: 0.32 | Y168: ei | Z168: Luonnonmetsät (9010) | AA168: ei merkittävä | AB168: ei | AC168: ei | AD168: ei | AE168: NT | AF168: Roskaantumista, reunavaikutusta
A169: 253 | B169: Mä valtainen rinnemetsä | C169: M02.02.09 Varttuneet havupuuvaltaiset tuoreet kankaat | D169: 100 | E169: 0.5 | F169: 0.5 | G169: 1 | H169: 1 | I169: 0 | J169: 0 | K169: 1 | L169: 0.6 | M169: 0-5 | R169: 0.2 | S169: 0.7 | T169: 0.2 | U169: 1 | V169: 0.9 | W169: =(2*SUM(F169,L169,R169)+SUM(S169:V169))/(2*AREAS((F169,L169,R169))+COLUMNS(S169:V169)) -> 0.54 | X169: 0.27 | Y169: ei | Z169: ei | AA169: ei | AB169: ei | AC169: ei | AD169: ei | AE169: NT | AF169: Harvennettu.
A170: 256 | B170: Koi valtainen kasvatusmetsä | C170: M02.02.01 Nuoret tuoreet kankaat | D170: 98 | E170: 2.8 | F170: 0.5 | G170: 1 | H170: 0 | I170: 0 | J170: 0 | K170: 1 | L170: 0.4 | M170: 0 | R170: 0.2 | S170: 0.7 | T170: 0.3 | U170: 1 | V170: 0.6 | W170: =(2*SUM(F170,L170,R170)+SUM(S170:V170))/(2*AREAS((F170,L170,R170))+COLUMNS(S170:V170)) -> 0.48 | X170: 1.344 | Y170: ei | Z170: ei | AA170: ei | AB170: ei | AC170: ei | AD170: ei | AE170: VU | AF170: Avara, harvennettu. Itäkulmalla norouoma, eli mahdollinen vesilakikohde!
A171: 259 | B171: Ku valt harvennettu kasvatusmetsä | C171: M02.01.02 Varttuneet havupuuvaltaiset lehtomaiset kankaat | D171: 100 | E171: 0.5 | F171: 0.6 | G171: 1 | H171: 1 | I171: 0 | J171: 0 | K171: 1 | L171: 0.6 | M171: 0-5 | R171: 0.2 | S171: 0.7 | T171: 0.3 | U171: 1 | V171: 0.6 | W171: =(2*SUM(F171,L171,R171)+SUM(S171:V171))/(2*AREAS((F171,L171,R171))+COLUMNS(S171:V171)) -> 0.54 | X171: 0.27 | Y171: ei | Z171: ei | AA171: ei | AB171: ei | AC171: ei | AD171: ei | AE171: NT | AF171: reunavaikutusta
A172: 260 | B172: Lehtipuuvaltainen tiheä metsä | C172: M02.01.01 Nuoret lehtomaiset kankaat | D172: 99 | E172: 1.2 | F172: 0.5 | G172: 1 | H172: 1 | I172: 0 | J172: 0 | K172: 1 | L172: 0.6 | M172: 0-5 | R172: 0.2 | S172: 0.7 | T172: 0.1 | U172: 1 | V172: 0.7 | W172: =(2*SUM(F172,L172,R172)+SUM(S172:V172))/(2*AREAS((F172,L172,R172))+COLUMNS(S172:V172)) -> 0.51 | X172: 0.612 | Y172: ei | Z172: ei | AA172: ei | AB172: ei | AC172: ei | AD172: ei | AE172: VU | AF172: Tulkittu
A173: 262 | B173: Tiheä talouskuusikko | C173: M02.02.01 Nuoret tuoreet kankaat | D173: 99 | E173: 1.5 | F173: 0.4 | G173: 0 | H173: 0 | I173: 0 | J173: 0 | K173: 1 | L173: 0.3 | M173: 0-5 | R173: 0.1 | S173: 0.5 | T173: 0.2 | U173: 1 | V173: 0.5 | W173: =(2*SUM(F173,L173,R173)+SUM(S173:V173))/(2*AREAS((F173,L173,R173))+COLUMNS(S173:V173)) -> 0.38 | X173: 0.57 | Y173: ei | Z173: ei | AA173: ei | AB173: ei | AC173: ei | AD173: ei | AE173: VU | AF173: Ojitettu, kuivunut, harva kenttäkerros
A174: 263 | B174: Tiheä talouskuusikko | C174: M02.02.01 Nuoret tuoreet kankaat | D174: 99 | E174: 0.6 | F174: 0.4 | G174: 1 | H174: 0 | I174: 0 | J174: 0 | K174: 1 | L174: 0.4 | M174: 0-5 | R174: 0.2 | S174: 0.8 | T174: 0.2 | U174: 1 | V174: 0.9 | W174: =(2*SUM(F174,L174,R174)+SUM(S174:V174))/(2*AREAS((F174,L174,R174))+COLUMNS(S174:V174)) -> 0.49 | X174: 0.294 | Y174: ei | Z174: ei | AA174: ei | AB174: ei | AC174: ei | AD174: ei | AE174: VU | AF174: Tulkittu
A175: 264 | B175: Harvapuustoinen kangas | C175: M02.02.09 Varttuneet havupuuvaltaiset tuoreet kankaat | D175: 100 | E175: 3.2 | F175: 0.6 | G175: 1 | H175: 1 | I175: 1 | J175: 0 | K175: 1 | L175: 0.8 | M175: 0-5 | R175: 0.3 | S175: 1 | T175: 0.2 | U175: 1 | V175: 1 | W175: =(2*SUM(F175,L175,R175)+SUM(S175:V175))/(2*AREAS((F175,L175,R175))+COLUMNS(S175:V175)) -> 0.66 | X175: 2.112 | Y175: ei | Z175: ei | AA175: ei | AB175: ei | AC175: ei | AD175: ei | AE175: NT | AF175: kataja runsas, valkolehdokkia
A176: 265 | B176: Pihan reuna-alue | C176: M02.01.02 Varttuneet havupuuvaltaiset lehtomaiset kankaat | D176: 98 | E176: 1.5 | F176: 0.7 | G176: 1 | H176: 1 | I176: 1 | J176: 0 | K176: 1 | L176: 0.8 | M176: 0-5 | R176: 0.2 | S176: 0.6 | T176: 0.5 | U176: 0.8 | V176: 0.3 | W176: =(2*SUM(F176,L176,R176)+SUM(S176:V176))/(2*AREAS((F176,L176,R176))+COLUMNS(S176:V176)) -> 0.56 | X176: 0.84 | Y176: ei | Z176: ei | AA176: ei | AB176: ei | AC176: ei | AD176: ei | AE176: NT | AF176: Piha-alueen reunalla, paljon autunromuja ja muuta roskaa.
A177: 266 | B177: Talousmetsä | C177: M02.02.09 Varttuneet havupuuvaltaiset tuoreet kankaat | D177: 99 | E177: 1.4 | F177: 0.5 | G177: 1 | H177: 1 | I177: 0 | J177: 0 | K177: 1 | L177: 0.6 | M177: 0-5 | R177: 0.2 | S177: 0.9 | T177: 0.2 | U177: 1 | V177: 0.9 | W177: =(2*SUM(F177,L177,R177)+SUM(S177:V177))/(2*AREAS((F177,L177,R177))+COLUMNS(S177:V177)) -> 0.56 | X177: 0.784 | Y177: ei | Z177: ei | AA177: ei | AB177: ei | AC177: ei | AD177: ei | AE177: NT | AF177: Tulkittu. Puuston ikä ja lajisuhteet vaihetelevat, N-osa nuorempaa.
A178: 267 | B178: Hakkuu | C178: M02.01.01 Nuoret lehtomaiset kankaat | D178: 85 | E178: 1.3 | F178: 0.1 | G178: 0 | H178: 0 | I178: 0 | J178: 0 | K178: 1 | L178: 0.2 | M178: 0-5 | R178: 0.3 | S178: 0.5 | T178: 0.2 | U178: 1 | V178: 0.4 | W178: =(2*SUM(F178,L178,R178)+SUM(S178:V178))/(2*AREAS((F178,L178,R178))+COLUMNS(S178:V178)) -> 0.33 | X178: 0.429 | Y178: ei | Z178: ei | AA178: ei | AB178: ei | AC178: ei | AD178: ei | AE178: NT | AF178: Tuore hakkuu, siemenpuut varttuneita mä, ha. Kuviolla ollut myös todennäköisesti lehtokorpea. Kuviolla noro/oja, jonka uoma ei suurelta osin ole enää luonnontilainen.
A179: 268 | B179: Ku valtainen rinne | C179: M02.01.02 Varttuneet havupuuvaltaiset lehtomaiset kankaat | D179: 98 | E179: 0.7 | F179: 0.7 | G179: 2 | H179: 1 | I179: 1 | J179: 0 | K179: 2 | L179: 0.8 | M179: 0-5 | R179: 0.5 | S179: 0.9 | T179: 0.7 | U179: 1 | V179: 0.8 | W179: =(2*SUM(F179,L179,R179)+SUM(S179:V179))/(2*AREAS((F179,L179,R179))+COLUMNS(S179:V179)) -> 0.74 | X179: 0.518 | Y179: kyllä | Z179: ei | AA179: ei | AB179: ei | AC179: ei | AD179: ei | AE179: NT | AF179: Metso 3-luokka, vieressä METE, VL ja METSO-kohde
A180: 270 | B180: Ku valtainen talousmetsä | C180: M02.01.02 Varttuneet havupuuvaltaiset lehtomaiset kankaat | D180: 98 | E180: 0.9 | F180: 0.5 | G180: 0 | H180: 0 | I180: 0 | J180: 0 | K180: 1 | L180: 0.2 | M180: 0-5 | R180: 0.2 | S180: 0.5 | T180: 0.1 | U180: 1 | V180: 0.8 | W180: =(2*SUM(F180,L180,R180)+SUM(S180:V180))/(2*AREAS((F180,L180,R180))+COLUMNS(S180:V180)) -> 0.42 | X180: 0.378 | Y180: ei | Z180: ei | AA180: ei | AB180: ei | AC180: ei | AD180: ei | AE180: NT
A181: 271 | B181: Harvennettu mä valtainen talousmetsä | C181: M02.02.09 Varttuneet havupuuvaltaiset tuoreet kankaat | D181: 99 | E181: 1.7 | F181: 0.7 | G181: 1 | H181: 0 | I181: 0 | J181: 0 | K181: 1 | L181: 0.5 | M181: 0-5 | R181: 0.2 | S181: 1 | T181: 0.3 | U181: 1 | V181: 0.9 | W181: =(2*SUM(F181,L181,R181)+SUM(S181:V181))/(2*AREAS((F181,L181,R181))+COLUMNS(S181:V181)) -> 0.6 | X181: 1.02 | Y181: ei | Z181: ei | AA181: ei | AB181: ei | AC181: ei | AD181: ei | AE181: NT
A182: 272 | B182: Harvennettu mä valtainen talousmetsä | C182: M02.03 Kuivahkot kankaat | D182: 65 | E182: 1.2 | F182: 0.7 | G182: 1 | H182: 1 | I182: 0 | J182: 0 | K182: 1 | L182: 0.6 | M182: 0-5 | R182: 0.3 | S182: 0.9 | T182: 0.1 | U182: 1 | V182: 0.8 | W182: =(2*SUM(F182,L182,R182)+SUM(S182:V182))/(2*AREAS((F182,L182,R182))+COLUMNS(S182:V182)) -> 0.6 | X182: 0.72 | Y182: ei | Z182: ei | AA182: ei | AB182: ei | AC182: ei | AD182: ei | AE182: EN | AF182: Kuvion lounaisosa tuoretta MT-kangasta.
A183: 272 | B183: Harvennettu mä valtainen talousmetsä | C183: M02.02.09 Varttuneet havupuuvaltaiset tuoreet kankaat | D183: 35 | E183: 1.2 | F183: 0.7 | G183: 1 | H183: 1 | I183: 0 | J183: 0 | K183: 1 | L183: 0.6 | M183: 0-5 | R183: 0.2 | S183: 1 | T183: 0.2 | U183: 1 | V183: 0.9 | W183: =(2*SUM(F183,L183,R183)+SUM(S183:V183))/(2*AREAS((F183,L183,R183))+COLUMNS(S183:V183)) -> 0.61 | X183: 0.732 | Y183: ei | Z183: ei | AA183: ei | AB183: ei | AC183: ei | AD183: ei | AE183: NT | AF183: Kuvion koillisosa kuivahkoa VT-kangasta
A184: 273 | B184: Nuori ku valt taimikko avohakkuulla | C184: M02.01.01 Nuoret lehtomaiset kankaat | D184: 100 | E184: 3.3 | F184: 0.3 | G184: 0 | H184: 0 | I184: 0 | J184: 0 | K184: 1 | L184: 0.4 | M184: 0-5 | R184: 0.1 | S184: 0.9 | T184: 0.1 | U184: 1 | V184: 0.9 | W184: =(2*SUM(F184,L184,R184)+SUM(S184:V184))/(2*AREAS((F184,L184,R184))+COLUMNS(S184:V184)) -> 0.45 | X184: 1.485 | Y184: ei | Z184: ei | AA184: ei | AB184: ei | AC184: ei | AD184: ei | AE184: VU
A185: 274 | B185: Avohakkuu | C185: M02.02.01 Nuoret tuoreet kankaat | D185: 100 | E185: 1.3 | F185: 0.1 | G185: 0 | H185: 0 | I185: 0 | J185: 0 | K185: 0 | L185: 0.1 | M185: 0-5 | R185: 0.3 | S185: 0.3 | T185: 0.1 | U185: 1 | V185: 0.6 | W185: =(2*SUM(F185,L185,R185)+SUM(S185:V185))/(2*AREAS((F185,L185,R185))+COLUMNS(S185:V185)) -> 0.3 | X185: 0.39 | Y185: ei | Z185: ei | AA185: ei | AB185: ei | AC185: ei | AD185: ei | AE185: VU | AF185: metsälauhavainio hakkuulla, siemenpuina mä, ko
A186: 275 | B186: Harvennettu talousmetsä | C186: M02.02.01 Nuoret tuoreet kankaat | D186: 100 | E186: 5.3 | F186: 0.4 | G186: 0 | H186: 0 | I186: 0 | J186: 0 | K186: 1 | L186: 0.3 | M186: 0-5 | R186: 0.3 | S186: 0.7 | T186: 0.1 | U186: 1 | V186: 0.8 | W186: =(2*SUM(F186,L186,R186)+SUM(S186:V186))/(2*AREAS((F186,L186,R186))+COLUMNS(S186:V186)) -> 0.46 | X186: 2.438 | Y186: ei | Z186: ei | AA186: ei | AB186: ei | AC186: ei | AD186: ei | AE186: VU | AF186: havupuuvaltainen
A187: 276 | B187: Nuori ja tiheä | C187: M02.02.01 Nuoret tuoreet kankaat | D187: 98 | E187: 3.7 | F187: 0.4 | G187: 0 | H187: 0 | I187: 1 | J187: 0 | K187: 1 | L187: 0.5 | M187: 0-5 | R187: 0.2 | S187: 0.9 | T187: 0.2 | U187: 1 | V187: 0.9 | W187: =(2*SUM(F187,L187,R187)+SUM(S187:V187))/(2*AREAS((F187,L187,R187))+COLUMNS(S187:V187)) -> 0.52 | X187: 1.924 | Y187: ei | Z187: ei | AA187: ei | AB187: ei | AC187: ei | AD187: ei | AE187: VU
A188: 277 | B188: Tiheä taimikko | C188: M02.01.01 Nuoret lehtomaiset kankaat | D188: 98 | E188: 2.1 | F188: 0.3 | G188: 1 | H188: 0 | I188: 1 | J188: 0 | K188: 1 | L188: 0.6 | M188: 0-5 | R188: 0.2 | S188: 0.9 | T188: 0.2 | U188: 1 | V188: 0.9 | W188: =(2*SUM(F188,L188,R188)+SUM(S188:V188))/(2*AREAS((F188,L188,R188))+COLUMNS(S188:V188)) -> 0.52 | X188: 1.092 | Y188: ei | Z188: ei | AA188: ei | AB188: ei | AC188: ei | AD188: ei | AE188: VU
A189: 278 | B189: Talousmetsä | C189: M02.01.01 Nuoret lehtomaiset kankaat | D189: 98 | E189: 0.6 | F189: 0.4 | G189: 1 | H189: 0 | I189: 1 | J189: 0 | K189: 1 | L189: 0.6 | M189: 0-5 | R189: 0.1 | S189: 0.8 | T189: 0.1 | U189: 1 | V189: 1 | W189: =(2*SUM(F189,L189,R189)+SUM(S189:V189))/(2*AREAS((F189,L189,R189))+COLUMNS(S189:V189)) -> 0.51 | X189: 0.306 | Y189: ei | Z189: ei | AA189: ei | AB189: ei | AC189: ei | AD189: ei | AE189: VU
A190: 279 | B190: Harva talousmetsä | C190: M02.02.09 Varttuneet havupuuvaltaiset tuoreet kankaat | D190: 100 | E190: 0.9 | F190: 0.6 | G190: 1 | H190: 0 | I190: 0 | J190: 0 | K190: 1 | L190: 0.5 | M190: 0-5 | R190: 0.2 | S190: 0.8 | T190: 0.2 | U190: 1 | V190: 0.8 | W190: =(2*SUM(F190,L190,R190)+SUM(S190:V190))/(2*AREAS((F190,L190,R190))+COLUMNS(S190:V190)) -> 0.54 | X190: 0.486 | Y190: ei | Z190: ei | AA190: ei | AB190: ei | AC190: ei | AD190: ei | AE190: NT
A191: 280 | B191: Taimikko avohakkuulla | C191: M02.02.01 Nuoret tuoreet kankaat | D191: 90 | E191: 2.8 | F191: 0.3 | G191: 1 | H191: 0 | I191: 1 | J191: 0 | K191: 1 | L191: 0.6 | M191: 0-5 | R191: 0.2 | S191: 0.9 | T191: 0.2 | U191: 1 | V191: 0.8 | W191: =(2*SUM(F191,L191,R191)+SUM(S191:V191))/(2*AREAS((F191,L191,R191))+COLUMNS(S191:V191)) -> 0.51 | X191: 1.428 | Y191: ei | Z191: ei | AA191: ei | AB191: ei | AC191: ei | AD191: ei | AE191: VU
A192: 281 | C192: M02.02.01 Nuoret tuoreet kankaat | D192: 99 | E192: 2 | F192: 0.5 | G192: 1 | H192: 0 | I192: 1 | J192: 0 | K192: 1 | L192: 0.6 | M192: 0-5 | R192: 0.2 | S192: 0.9 | T192: 0.2 | U192: 1 | V192: 0.9 | W192: =(2*SUM(F192,L192,R192)+SUM(S192:V192))/(2*AREAS((F192,L192,R192))+COLUMNS(S192:V192)) -> 0.56 | X192: 1.12 | Y192: ei | Z192: ei | AA192: ei | AB192: ei | AC192: ei | AD192: ei | AE192: VU | AF192: Tulkittu
A193: 282 | B193: Osin mä osin ku valtainen | C193: M02.02.09 Varttuneet havupuuvaltaiset tuoreet kankaat | D193: 99 | E193: 2.3 | F193: 0.7 | G193: 2 | H193: 1 | I193: 1 | J193: 0 | K193: 1 | L193: 0.8 | M193: 0-5 | R193: 0.4 | S193: 1 | T193: 0.7 | U193: 1 | V193: 1 | W193: =(2*SUM(F193,L193,R193)+SUM(S193:V193))/(2*AREAS((F193,L193,R193))+COLUMNS(S193:V193)) -> 0.75 | X193: 1.725 | Y193: ei | Z193: ei | AA193: ei | AB193: ei | AC193: ei | AD193: ei | AE193: NT | AF193: Luonnontilaisemmaksi kehittyessään METSO-potentiaalia
A194: 285 | B194: Ku valtainen metsä kaatopaikan vieressä | C194: M02.01.03 Vanhat havupuuvaltaiset lehtomaiset kankaat | D194: 90 | E194: 1.7 | F194: 1 | G194: 1 | H194: 1 | I194: 1 | J194: 0 | K194: 1 | L194: 0.8 | O194: 1 | P194: 1 | R194: 0.7 | S194: 1 | T194: 0.9 | U194: 1 | V194: 0.7 | W194: =(2*SUM(F194,L194,R194)+SUM(S194:V194))/(2*AREAS((F194,L194,R194))+COLUMNS(S194:V194)) -> 0.86 | X194: 1.462 | Y194: kyllä | Z194: Luonnonmetsät (9010) | AA194: hyvä | AB194: ei | AC194: ei | AD194: ei | AE194: EN | AF194: Puusto järeää, ku, ha. Viettää kohti Korvapuroa ja vaihettuu lehtokorveksi. Vieressä kaatopaikka-alue, roskaantumista.
A195: 287 | B195: Ku valtainen metsä kaatopaikan vieressä | C195: M02.01.01 Nuoret lehtomaiset kankaat | D195: 90 | E195: 0.4 | F195: 0.5 | G195: 1 | H195: 0 | I195: 0 | J195: 0 | K195: 1 | L195: 0.6 | R195: 0.3 | S195: 0.8 | T195: 0.2 | U195: 0.9 | V195: 0.6 | W195: =(2*SUM(F195,L195,R195)+SUM(S195:V195))/(2*AREAS((F195,L195,R195))+COLUMNS(S195:V195)) -> 0.53 | X195: 0.212 | Y195: ei | Z195: ei | AA195: ei | AB195: ei | AC195: ei | AD195: ei | AE195: VU | AF195: Tulkittu
A196: 288 | B196: Heinälamminojaan rajautuva pieni metsäkuvio | C196: M02.02.09 Varttuneet havupuuvaltaiset tuoreet kankaat | D196: 70 | E196: 0.4 | F196: 0.7 | G196: 2 | H196: 1 | I196: 2 | J196: 0 | K196: 2 | L196: 0.8 | M196: 0-5 | R196: 0.3 | S196: 0.7 | T196: 0.5 | U196: 0.4 | V196: 0.6 | W196: =(2*SUM(F196,L196,R196)+SUM(S196:V196))/(2*AREAS((F196,L196,R196))+COLUMNS(S196:V196)) -> 0.58 | X196: 0.232 | Y196: kyllä | Z196: ei | AA196: ei | AB196: kyllä | AC196: ei | AD196: ei | AE196: NT | AF196: Osin tulkittu. Puusto osin ikääntynttä kuusikkoa, osin nuorta lehtipuuta, ha, koi, rai. Länsikulma kulttuurilehtoa, runsaasti jättipalsamia. Pienpetopyydys metsässä. Roskaantumista, kaatopaikan vieressä. Rajautuu luonnontilaisen kaltaiseen Heinälamminojaan.
A197: 294 | B197: Iäkästä kuusikkoa, kuviolla noro | C197: M02.01.02 Varttuneet havupuuvaltaiset lehtomaiset kankaat | D197: 90 | E197: 0.9 | F197: 0.9 | G197: 2 | H197: 1 | I197: 1 | J197: 0 | K197: 1 | L197: 0.9 | O197: 1 | P197: 1 | Q197: 1 | R197: 0.7 | S197: 1 | T197: 1 | U197: 1 | V197: 0.9 | W197: =(2*SUM(F197,L197,R197)+SUM(S197:V197))/(2*AREAS((F197,L197,R197))+COLUMNS(S197:V197)) -> 0.89 | X197: 0.801 | Y197: kyllä | Z197: Luonnonmetsät (9010) | AA197: hyvä | AB197: kyllä | AC197: kyllä | AD197: ei | AE197: NT | AF197: Kuviolla noro(293) ja pienialainen metsäkortekorpi, sekä metsittyvä kärrytie
A198: 295 | B198: Järeää puustoa, paikoin haapaa | C198: M02.01.03 Vanhat havupuuvaltaiset lehtomaiset kankaat | D198: 90 | E198: 4.5 | F198: 1 | G198: 2 | H198: 2 | I198: 1 | J198: 0 | K198: 1 | L198: 0.9 | O198: 2 | P198: 2 | Q198: 1 | R198: 0.9 | S198: 1 | T198: 1 | U198: 1 | V198: 0.7 | W198: =(2*SUM(F198,L198,R198)+SUM(S198:V198))/(2*AREAS((F198,L198,R198))+COLUMNS(S198:V198)) -> 0.93 | X198: 4.185 | Y198: kyllä | Z198: Luonnonmetsät (9010) | AA198: hyvä | AB198: ei | AC198: ei | AD198: ei | AE198: EN | AF198: Korkealle mäelle nouseva vanha, arvokas metsäkuvio. Myös vanhoja koivuja ja paikoin haapaa. Vähän roskia (kaatopaikka) ja mönkijän uria. Louhoksen reunalla heinikoitumista.
A199: 296 | B199: Pohjoisrinne, järeää lahopuuta | C199: M02.01.03 Vanhat havupuuvaltaiset lehtomaiset kankaat | D199: 85 | E199: 5.3 | F199: 1 | G199: 2 | H199: 1 | I199: 1 | J199: 0 | K199: 1 | L199: 0.8 | O199: 1 | P199: 2 | Q199: 1 | R199: 1 | S199: 0.8 | T199: 1 | U199: 0.9 | V199: 0.7 | W199: =(2*SUM(F199,L199,R199)+SUM(S199:V199))/(2*AREAS((F199,L199,R199))+COLUMNS(S199:V199)) -> 0.9 | X199: 4.77 | Y199: kyllä | Z199: Luonnonmetsät (9010) | AA199: hyvä | AB199: ei | AC199: ei | AD199: ei | AE199: EN | AF199: Mönkijäuria, louhoksen reunaa, hieman roskia. Metsäkastikka, vadelma ja metsäalvejuuri runsaita. Paikoin terttuseljaa. Aukkopaikkoja, ei tarpeeksi kaatunutta puuta ollakseen luontaisia? Paikoin kosteaa, korpiorvokkia. Järeää kuusilahoa erityisen paljon.
A200: 299 | B200: Iäkäs talousmetsä | C200: M02.02.09 Varttuneet havupuuvaltaiset tuoreet kankaat | D200: 95 | E200: 1.1 | F200: 0.9 | G200: 2 | H200: 1 | I200: 2 | J200: 0 | K200: 1 | L200: 0.8 | O200: 1 | P200: 1 | Q200: 1 | R200: 0.6 | S200: 0.9 | T200: 0.7 | U200: 1 | V200: 0.7 | W200: =(2*SUM(F200,L200,R200)+SUM(S200:V200))/(2*AREAS((F200,L200,R200))+COLUMNS(S200:V200)) -> 0.79 | X200: 0.869 | Y200: kyllä | Z200: Luonnonmetsät (9010) | AA200: merkittävä | AB200: ei | AC200: ei | AD200: ei | AE200: NT | AF200: Rajautuu ojitettuun Heiniojan uomaosuuteen ja korpimuuttumaan. Kuviolla pieni jyrkänne ja rinteen alla haapaa. Lahopuuta vielä niukalti, mutta hyvää potentiaalia.
A201: 301 | B201: Osin soistunut | C201: M02.01.03 Vanhat havupuuvaltaiset lehtomaiset kankaat | D201: 70 | E201: 3.4 | F201: 1 | G201: 2 | H201: 2 | I201: 1 | J201: 0 | K201: 1 | L201: 0.8 | M201: 0-5 | R201: 0.5 | S201: 1 | T201: 0.9 | U201: 1 | V201: 0.5 | W201: =(2*SUM(F201,L201,R201)+SUM(S201:V201))/(2*AREAS((F201,L201,R201))+COLUMNS(S201:V201)) -> 0.8 | X201: 2.72 | Y201: kyllä | Z201: Luonnonmetsät (9010) | AA201: merkittävä | AB201: ei | AC201: lounaiskulmalla noro | AD201: ei | AE201: EN | AF201: Kuviolla todennäköisesti myös vesitaloudeltaan luonnotilaisen kaltaista korpea, koko kuviota ei ehditty käydä läpi maastossa. Lounaiskulma tulee norolle. Roskaantumista, uria ja ojituksia. Etelärajaa pitkin vanha kiviaita.
A202: 302 | B202: Entistä peltoa noron varressa | C202: M02.01.03 Vanhat havupuuvaltaiset lehtomaiset kankaat | D202: 99 | E202: 1 | F202: 0.5 | G202: 1 | H202: 1 | I202: 1 | J202: 0 | K202: 1 | L202: 0.7 | M202: 0-5 | R202: 0.2 | S202: 0.8 | T202: 0.2 | U202: 0.9 | V202: 0.5 | W202: =(2*SUM(F202,L202,R202)+SUM(S202:V202))/(2*AREAS((F202,L202,R202))+COLUMNS(S202:V202)) -> 0.52 | X202: 0.52 | Y202: ei | Z202: ei | AA202: ei | AB202: osin, rajautuu noroon | AC202: rajautuu noroon | AD202: ei | AE202: NT | AF202: Vanhalla pellolla lehtomaista metsää, pohjoisrajalla vanha kiviaita, länsirajalla luonnontilaisen kaltainen noro.
... 98 more rows

Sheet Kosteat lehdot
A1: 8.3.2a. Kosteat lehdot
E3: 1 | F3: 2 | G3: 3 | H3: 4 | I3: 5 | J3: 6 | K3: 7 | L3: 8
A4: Mittarit | E4: Kehitysluokka | F4: Luontotyypille ominaisten puuston rakennepiirteiden esiintyminen: eri-ikäisyys, latvuskerroksellisuus, satunnainen tilajakauma, palojäljet, monilajisuus | G4: Luontotyypille ominainen lahopuun määrä3 ja rakennepiirteet: jatkumo, järeä lahopuu, monilajisuus | H4: Kasvillisuuden (putkilokasvit ja/tai jäkälät ja/tai sammalet) edustavuus: lajisto ja kasvillisuuden rakenne (runsaus, peittävyys, lajien/lajiryhmien runsaussuhteet | I4: Järeiden puiden määrä | J4: Haitalliset vieraskavilajit | K4: Muu ihmisvaikutus | L4: Vesitalous
A5: Mittarin suhteellinen painokerroin | E5: 2 | F5: 2 | G5: 2 | H5: 2 | I5: 1 | J5: 1 | K5: 1 | L5: 1
B7: Tee tarvitatessa usempi rivi samalle kuviolle, jos useita kosteiden lehtojen luontotyyppejä!
A8: Kuvionro | B8: LuTu-luontotyyppi (koodi) | C8: LuTu-tyypin % kuviosta | D8: Kuvion pinta-ala, ha | E8: Mittarin arvo (0,1 -1,0) | F8: Mittarin arvo (0,1 -1,0) | G8: Mittarin arvo (0,1 -1,0) | H8: Mittarin arvo (0,1 -1,0) | I8: Mittarin arvo (0,1 -1,0) | J8: Mittarin arvo (0,1 -1,0) | K8: Mittarin arvo (0,1 -1,0) | M8: Luonnonarvovastaavuus | N8: Luonnonarvohehtaarit | O8: METSO kohde | P8: NATURA-tyyppi | Q8: Natura-edustavuusluokka | R8: mete | S8: vesilakikohde | T8: LSL 64-65 § kohde | U8: Uhex | V8: Muuta
A9: 1 | B9: M01.02.06 Kostea runsasravinteinen lehto | C9: 70 | D9: 2.6 | E9: 0.6 | F9: 0.6 | G9: 0.4 | H9: 0.9 | I9: 0.7 | J9: 1 | K9: 0.1 | L9: 0.7 | M9: =(2*SUM(E9:H9)+SUM(I9:L9))/(2*COLUMNS(E9:H9)+COLUMNS(I9:L9)) -> 0.625 | N9: =(PRODUCT(D9,M9)) -> 1.625 | O9: ei | P9: Lehdot (9050) | Q9: hyvä, poikkeama ihmistoiminnan aiheuttama | R9: ei | S9: ei | T9: ei | U9: VU | V9: Paljon vanhoja kasattuja kiviröykkiöitä: Vanha kaskimetsä tai rautakautinen hautalehto
A10: 3 | B10: M01.02.06 Kostea runsasravinteinen lehto | C10: 70 | D10: 0.8 | E10: 0.3 | F10: 0.1 | G10: 0.1 | H10: 0.1 | I10: 0.1 | J10: 1 | K10: 0.6 | L10: 0.4 | M10: 0.275 | N10: 0.22 | O10: ei | P10: Lehdot (9050) | Q10: ei merkittävä, poikkeama ihmistoiminnan aiheuttama | R10: ei | S10: ei | T10: ei | U10: VU | V10: ilmakuvassa vv 1949 tiheästi sarkaojia, jotka nyt jo pääosin tukkeutuneet
A11: 8 | B11: M01.02.05 Kostea keskiravinteinen lehto | C11: 70 | D11: 3.6 | E11: 0.5 | F11: 0.7 | G11: 0.3 | H11: 0.7 | I11: 0.4 | J11: 0.9 | K11: 1 | L11: 0.9 | M11: 0.6333333333 | N11: 2.28 | O11: ei | P11: Lehdot (9050) | Q11: merkittävä, poikkeama ihmistoiminnan aiheuttama | R11: ei | S11: ei | T11: ei | U11: NT | V11: sammalista mm. ruusukesammal löytyy selkeiltä lehto-osioilta, runsaasti saniaisia mm. soreahiirenporrasta. Jyrkkiä kivikkorapautumia notkelmassakin. Jyrkänteet liittyvät tähän kuvioon.
A12: 16 | B12: M01.02.05 Kostea keskiravinteinen lehto | C12: yli 50 | D12: 11 | E12: 0.5 | F12: 0.4 | G12: 0.1 | H12: 0.6 | I12: 0.3 | J12: 0.8 | K12: 0.7 | L12: 0.5 | M12: =(2*SUM(E12:H12)+SUM(I12:L12))/(2*COLUMNS(E12:H12)+COLUMNS(I12:L12)) -> 0.4583333333 | N12: =(PRODUCT(D12,M12)) -> 5.041666667 | O12: ei | P12: Lehdot (9050) | Q12: ei merkittävä, poikkeama ihmistoiminnan aiheuttama | R12: ei | S12: ei | T12: ei | U12: NT | V12: talousmetsänä, paljon koivua, kenttäkerroksen lajistossa monin paikoin hyvin luontotyypin kasvillisuutta, ei ojia.
A13: 18 | B13: M01.02.05 Kostea keskiravinteinen lehto | C13: 80 | D13: 0.8 | E13: 0.6 | F13: 0.5 | G13: 0.3 | H13: 0.6 | I13: 0.5 | J13: 0.5 | K13: 0.7 | L13: 0.9 | M13: 0.55 | N13: 0.44 | O13: ei | P13: Lehdot (9050) | Q13: ei merkittävä, poikkeama ihmistoiminnan aiheuttama | R13: ei | S13: ei | T13: ei | U13: NT | V13: terttuselja-puskia muutama
A14: 21 | B14: M01.02.05 Kostea keskiravinteinen lehto | C14: 70 | D14: 5.2 | E14: 0.5 | F14: 0.3 | G14: 0.3 | H14: 0.5 | I14: 0.2 | J14: 0.5 | K14: 0.7 | L14: 0.7 | M14: 0.4416666667 | N14: 2.296666667 | O14: ei | P14: Lehdot (9050) | Q14: ei merkittävä, poikkeama ihmistoiminnan aiheuttama | R14: ei | S14: ei | T14: ei | U14: NT | V14: terttuselja-puskia muutama
A15: 24 | B15: M01.02.05 Kostea keskiravinteinen lehto | C15: 80 | D15: 0.5 | E15: 0.3 | F15: 0.3 | G15: 0.1 | H15: 0.4 | I15: 0.2 | J15: 0.9 | K15: 0.7 | L15: 0.3 | M15: 0.3583333333 | N15: 0.1791666667 | O15: ei | P15: Lehdot (9050) | Q15: ei merkittävä, poikkeama ihmistoiminnan aiheuttama | R15: ei | S15: ei | T15: ei | U15: NT
A16: 67 | B16: M01.02.05 Kostea keskiravinteinen lehto | C16: 30 | D16: 1.14 | E16: 0.8 | F16: 0.9 | G16: 0.8 | H16: 0.9 | I16: 0.8 | J16: 1 | K16: 0.9 | L16: 0.9 | M16: 0.8666666667 | N16: 0.988 | O16: kyllä | P16: Lehdot (9050) | Q16: Hyvä, poikkeama ihmistoiminnan aiheuttama | R16: ei | S16: ei | T16: ei | U16: NT | V16: Noronvarsilehdossa osana isompaa kuviota (tuoreet keskiravinteiset lehdot), paikoin mosaiikkimaisesti
A17: 82 | B17: M01.02.05 Kostea keskiravinteinen lehto | C17: 90 | D17: 4.1 | E17: 0.6 | F17: 0.5 | G17: 0.7 | H17: 0.9 | I17: 0.1 | J17: 1 | K17: 0.9 | L17: 0.7 | M17: 0.675 | N17: 2.7675 | O17: ei | P17: Lehdot (9050) | Q17: merkittävä, poikkeama ihmistoiminnan aiheuttama | R17: ei | S17: ei | T17: ei | U17: NT | V17: Hyvä kehitettävä kohde (esim ekologinen kompensaatio) paljon jätettyjä isoja tuulenkaatoja, myös maapuuta ja keloja (monilajista), soistumaa, muutamia ojia, puusto hiukan vanhempaa ja monipuolisempaa kuin muissa varttuneissa kuuusikoissa (myös raitaa löytyy), pieni ala tuoretta kesirav lehtoa
A18: 99 | B18: Turvelehto/kostea keskiravainteinen lehto M01.02.05 | C18: 10 | D18: 2 | E18: 0.6 | F18: 0.7 | G18: 0.3 | H18: 0.5 | I18: 0.4 | J18: 1 | K18: 0.5 | L18: 0.3 | M18: 0.5333333333 | N18: 1.066666667 | O18: ei | P18: ei | Q18: ei | R18: ei | S18: ei | T18: ei | U18: NT | V18: Keskellä kuviota kulkee syvä ja suora oja, jota koneella hiljan paranneltu, vain kuvion N-päässä vielä kosteaa lehtoa. Puusto vanhempaa ja monimuotoisempaa kuvion s-päässä. Ojan vedet tulevat etelästä mm. Tervalammesta ja virtaavat Purolan ohi kuvioille 110 ja 111 luonnontilaisen kaltaiseen uomajaksoon. Liito-orava -alueita ympärillä.
A19: 110 | B19: M01.02.05 Kostea keskiravinteinen lehto | C19: 70 | D19: 0.9 | E19: 0.6 | F19: 0.7 | G19: 0.7 | H19: 0.9 | I19: 0.2 | J19: 1 | K19: 0.8 | L19: 0.8 | M19: 0.7166666667 | N19: 0.645 | O19: kyllä | P19: Lehdot (9050) | Q19: hyvä, poikkeama ihmistoiminnan aiheuttama | R19: kyllä | S19: ei | T19: ei | U19: NT | V19: Kuviolla luonnontilaisen kaltainen noro (111, vesilakikohde). Pikkuvelholehteä. Hajuheinälle ja liito-oravalle potentiaalista elinympäristöä.
A20: 110 | B20: M01.02.06 Kostea runsasravinteinen lehto | C20: 30 | D20: 0.4 | E20: 0.6 | F20: 0.7 | G20: 0.7 | H20: 1 | I20: 0.2 | J20: 1 | K20: 0.8 | L20: 0.8 | M20: 0.7333333333 | N20: 0.2933333333 | O20: kyllä | P20: Lehdot (9050) | Q20: hyvä, poikkeama ihmistoiminnan aiheuttama | R20: kyllä | S20: ei | T20: ei | U20: VU | V20: Kuviolla luonnontilaisen kaltainen noro (111, vesilakikohde). Kotkansiipilehtoa, pikkuvelholehteä.
A21: 112 | B21: M01.02.05 Kostea keskiravinteinen lehto | C21: 70 | D21: 0.5 | E21: 1 | F21: 0.9 | G21: 1 | H21: 0.9 | I21: 0.9 | J21: 1 | K21: 0.9 | L21: 0.9 | M21: 0.9416666667 | N21: 0.4708333333 | O21: kyllä | P21: Lehdot (9050) | Q21: erinomainen | R21: kyllä | S21: ei | T21: ei | U21: NT | V21: Kuviolla luonnontilaisen kaltainen noro (111, vesilakikohde). Osa kuviosta runsasravinteisempaa kotkansiipilehtoa ja osa lehtomaista kangasta. Hajuheinälle, liito-oravalle ja lepakoille potentiaalista elinympäristöä. Runsaasti aiempia liito-oravahavaintoja.
A22: 128 | B22: Ei LuTu eikä RYTY, umpeenkasvava vanha pelto, muuttumassa kosteaksi lehdoksi. | C22: 0 | D22: 1.5 | E22: 0.3 | F22: 0.5 | G22: 0.1 | H22: 0.7 | I22: 0.1 | J22: 1 | K22: 0.6 | L22: 0.8 | M22: 0.475 | N22: 0.7125 | O22: ei | P22: ei | Q22: ei | R22: ei | S22: ei | T22: ei | V22: Entiselle pellolle noussut kostean suurruohoniityn kasvillisuutta, pajukkoa ja nuorta puustoa. Kasvamassa umpeen. Maaperä saraturvetta. Puoliavoin ympäristö, joka täydentää Korpelan alueen monimuotoisia elinympäristökuvioita. Hyönteislajistolle hyvä kuvio, linnustolle mahdollisesti tärkeä ruokailualue (hyönteis- ja siemensyöjät)
A23: 132 | B23: M01.02.05 Kostea keskiravinteinen lehto | C23: 99 | D23: 1.1 | E23: 0.6 | F23: 0.8 | G23: 0.7 | H23: 1 | I23: 0.4 | J23: 0.9 | K23: 0.9 | L23: 0.7 | M23: 0.7583333333 | N23: 0.8341666667 | O23: kyllä | P23: Lehdot (9050) | Q23: erinomainen | R23: ei | S23: ei | T23: ei | U23: NT | V23: Lehtipuuvaltainen, korpinurmikkaa (NT,RT), velholehteä.
A24: 170 | B24: M01.02.05 Kostea keskiravinteinen lehto | C24: 95 | D24: 1.3 | E24: 0.6 | F24: 0.9 | G24: 0.8 | H24: 0.9 | I24: 0.5 | J24: 1 | K24: 0.5 | L24: 0.6 | M24: 0.75 | N24: 0.975 | O24: kyllä | P24: Lehdot (9050) | Q24: hyvä, poikkeama ihmistoiminnan aiheuttama | R24: kyllä | S24: ei | T24: ei | U24: NT | V24: Korvapuron varressa. Suuria haapoja, tuomiryteiköä paikoin, lahopuuta hyvin. Hiirenporras, isoalvejuuri, metsäalvejuuri, korpi-imarre, metsäimarre, käenkaali, sudenmarja, suokeltto, suo-orvokki, rönsyleinikki, ranta- ja luhtamatara, metsäkorte, rentukka, vehka, terttualpi. Mahdollinen hajuheinän kasvupaikka.
A25: 244 | B25: M01.02.06 Kosteat runsasravinteiset lehdot | C25: 95 | D25: 0.7 | E25: 0.6 | F25: 0.7 | G25: 0.2 | H25: 0.7 | I25: 0.3 | J25: 1 | K25: 0.4 | L25: 0.5 | M25: 0.55 | N25: 0.385 | O25: ei | P25: Lehdot (9050) | Q25: hyvä, poikkeama ihmistoiminnan aiheuttama | R25: ei | S25: ei | T25: ei | U25: VU | V25: Vanhaa peltoa, suuri kivivalli, jonka päällä vanhoja roskasäiliöitä. Ojia. Puusto mä valtaista kasvatusmetsää, monilajista, mutta lahopuuta ei juuri lankaan.
A26: 246 | B26: M01.02.06 Kosteat runsasravinteiset lehdot | C26: 95 | D26: 1.1 | E26: 0.6 | F26: 0.7 | G26: 0.2 | H26: 0.7 | I26: 0.3 | J26: 1 | K26: 0.5 | L26: 0.5 | M26: 0.5583333333 | N26: 0.6141666667 | O26: ei | P26: Lehdot (9050) | Q26: hyvä, poikkeama ihmistoiminnan aiheuttama | R26: ei | S26: ei | T26: ei | U26: VU | V26: Vanhaa peltoa, ojia
A27: 254 | B27: M01.02.05 Kosteat keskiravinteiset lehdot | C27: 65 | D27: 0.3 | E27: 0.8 | F27: 0.8 | G27: 0.7 | H27: 0.9 | I27: 0.7 | J27: 1 | K27: 1 | L27: 1 | M27: 0.8416666667 | N27: 0.2525 | O27: kyllä | P27: Lehdot (9050) | Q27: erinomainen | R27: kyllä | S27: ei, mutta kuviolla noro | T27: ei | U27: NT | V27: Kuvio melko jyrkässä rinnenotkelmassa, kuviolla noro. Puusto osin vanhaa, järeitä ku, keskiosa lehtipuuvaltainen, hale, tuomi. Saniaislehtoa. Notkelman rinteet ylempänä OMT-kangasta.
A28: 258 | B28: M01.02.06 Kosteat runsasravinteiset lehdot | C28: 60 | D28: 1.4 | E28: 0.5 | F28: 0.6 | G28: 0.2 | H28: 0.8 | I28: 0.3 | J28: 1 | K28: 0.6 | L28: 0.7 | M28: 0.5666666667 | N28: 0.7933333333 | O28: kyllä | P28: Lehdot (9050) | Q28: hyvä, poikkeama ihmistoiminnan aiheuttama | R28: ei | S28: ei | T28: ei | U28: VU | V28: Entiselle pellolle syntynyt kostea, nuori lehto. Ojitettu, kapea sähkölinja talolle. Osa pustosta varttuneempaa, osa havupuuvaltaista ei tarkkaa tietoa luontotyypistä.
A29: 290 | B29: M01.02.06 Kosteat runsasravinteiset lehdot | C29: 70 | D29: 1.7 | E29: 0.6 | F29: 0.8 | G29: 0.6 | H29: 0.9 | I29: 0.5 | J29: 0.9 | K29: 0.5 | L29: 0.9 | M29: 0.7166666667 | N29: 1.218333333 | O29: kyllä | P29: Lehdot (9050) | Q29: hyvä, poikkeama ihmistoiminnan aiheuttama | R29: kyllä | S29: ei, mutta kuviolla noro | T29: ei | U29: VU | V29: Puusto erirakenteista, monilajista, kasvillisuus edustavaa, velholehteä ym. Uria ja hieman roskaantumista, norouomaan kajottu, viereinen hakkuu heikentänyt myös luonnontilaisuutta.
A30: 305 | B30: M01.02.05 Kosteat keskiravinteiset lehdot | C30: 45 | D30: 0.7 | E30: 0.5 | F30: 0.7 | G30: 0.4 | H30: 0.9 | I30: 0.2 | J30: 1 | K30: 0.5 | L30: 0.5 | M30: 0.6 | N30: 0.42 | O30: kyllä | P30: Lehdot (9050) | Q30: hyvä, poikkeama ihmistoiminnan aiheuttama | R30: kyllä | S30: ei, mutta kuviolla noro | T30: ei | U30: NT | V30: Noronvarsilehto rinteessä. Rinteen alla metsäkortevaltaista ojitettua turvekangasta ja korpimuuttumaa.
A31: 324 | B31: M01.02.05 Kosteat keskiravinteiset lehdot | C31: 40 | D31: 0.6 | E31: 0.7 | F31: 0.9 | G31: 0.7 | H31: 1 | I31: 0.7 | J31: 1 | K31: 0.9 | L31: 0.9 | M31: 0.8416666667 | N31: 0.505 | O31: kyllä | P31: Lehdot (9050) | Q31: erinomainen | R31: kyllä | S31: ei, mutta kuviolla noro | T31: ei | U31: NT | V31: Lehtipuuvaltainen, erirakenteinen! Runsaasti haapaa. Muutamia järeitä lehtipuita: ha, ko, tele. Kuvion keskellä kulkee noro osin kivikossa näkymättömissä Kaatopaikantien nurkilta rinnettä alas koilliseen. Aiempia ja maastokartoituksen yhteydessä tehty päivityshavainto hajuheinästä. Kuvion keskiosa kosteaa, runsas- ja keskiravinteista lehtoa ja loput kuviosta tuoretta, keskiravinteista lehtoa.
A32: 332 | B32: M01.02.05 Kosteat keskiravinteiset lehdot | C32: 55 | D32: 1.2 | E32: 0.4 | F32: 0.6 | G32: 0.2 | H32: 0.3 | I32: 0.3 | J32: 0.9 | K32: 0.2 | L32: 0.4 | M32: 0.4 | N32: 0.48 | O32: ei | P32: ei | Q32: ei | R32: ei | S32: ei | T32: ei | U32: NT | V32: Mutaa ja maa-aineksia, sekä asfalttilohkareita vyörynyt laajalti kuviolle, voimakas reuna- ja ihmisvaikutus. Salaojaputkesta valuu vettä louhosalueelta kuviolle.
A33: 342 | B33: M01.02.06 Kosteat runsasravinteiset lehdot | C33: 95 | D33: 1.9 | E33: 0.4 | F33: 0.7 | G33: 0.3 | H33: 0.7 | I33: 0.2 | J33: 0.4 | K33: 0.3 | L33: 0.7 | M33: 0.4833333333 | N33: 0.9183333333 | O33: ei | P33: 9050 | Q33: merkittävä, poikkeama ihmistoiminnan aiheuttama | R33: kyllä | S33: ei | T33: ei | U33: VU | V33: Tulkittu. Rajautuu kahdelta sivulta noroon ja puroon. Viereinen kaatopaikka ja metsänkäsittely heikentäneet merkittävästi luonnontilaa.
A34: 345 | B34: M01.02.05 Kosteat keskiravinteisest lehdot | C34: 90 | D34: 0.8 | E34: 0.5 | F34: 0.4 | G34: 0.1 | H34: 0.5 | I34: 0.3 | J34: 0.8 | K34: 0.7 | L34: 0.4 | M34: =(2*SUM(E34:H34)+SUM(I34:L34))/(2*COLUMNS(E34:H34)+COLUMNS(I34:L34)) -> 0.4333333333 | N34: =(PRODUCT(D34,M34)) -> 0.3466666667 | O34: ei | P34: lehdot (9050) | Q34: ei merkittävä, poikkeama ihmistoiminnan aiheuttama | R34: ei | S34: ei | T34: ei | U34: NT | V34: Kuvionro oli hukkunut ja sama nro 2x. Oli tehtävä uusi numero joka ei sotke systeemiä.
A35: 367 | B35: M01.02.05 Kosteat keskiravinteiset lehdot | C35: 55 | D35: 0.5 | E35: 0.6 | F35: 0.8 | G35: 0.6 | H35: 0.8 | I35: 0.3 | J35: 0.9 | K35: 0.7 | L35: 0.7 | M35: 0.6833333333 | N35: 0.3416666667 | O35: kyllä | P35: 9050 | Q35: hyvä, poikkeama ihmistoiminnan aiheuttama | R35: ei | S35: ei | T35: ei | U35: NT | V35: Alue rajautuu entisen kaatopaikan täyttömäkeen. Vaihettuu painanteeseen tultaessa nopesti lehtomaisesta kankaasta lehdoksi. Hiirenporras runsain kenttäkerroksessa, hiko, ku, hale, ha puustossa.
A37: 367 | B37: M01.02.06 Kosteat runsasravinteiset lehdot | C37: 45 | D37: 0.5 | E37: 0.6 | F37: 0.8 | G37: 0.6 | H37: 0.7 | I37: 0.3 | J37: 0.9 | K37: 0.6 | L37: 0.7 | M37: 0.6583333333 | N37: 0.3291666667 | O37: kyllä | P37: 9050 | Q37: hyvä, poikkeama ihmistoiminnan aiheuttama | R37: ei | S37: ei | T37: ei | U37: VU | V37: Keskellä sameavetinen leveä oja jamutaisia vesiallikoita, joissa limaskaa. Hiirenporras, käenkaali, mustaherukka ja metsäkorte runsaita, koiranputki, vadelma, nokkonen, rönsyleinikki.
A38: 372 | B38: M01.02.05 Kosteat keskiravinteiset lehdot | C38: 95 | D38: 1.2 | E38: 0.5 | F38: 0.8 | G38: 0.7 | H38: 1 | I38: 0.2 | J38: 1 | K38: 0.8 | L38: 1 | M38: 0.75 | N38: 0.9 | O38: kyllä | P38: 9050 | Q38: erinomainen | R38: ei | S38: ei | T38: ei | U38: NT | V38: Lehtipuuvaltainen saniaislehto, lahopuuta melko runsaasti ikään nähden. Ojitettu, mutta vesitalous vaikuttaa luonnontilaisen kaltaiselta. Vieressä ent. kaatopaikan täyttömäki, jonka suunnalta vesiä ojia pitkin alueelle ja sen läpi. Kasvillisuus indikoi osin runsasravinteisuutta. Pikkuvelholehti, isoalvejuuri, soreahiirenporras, käenkaali, ojakellukka, mustaherukka, lehtotähtimö, lehtomatara, nokkonen, vadelma, metsäkorte, mesiangervo, karhunputki, leskenlehti, järvikorte, lehväsammalet.
A39: 375 | B39: M01.02.05 Kosteat keskiravinteiset lehdot | C39: 85 | D39: 1.3 | E39: 1 | F39: 0.9 | G39: 0.9 | H39: 1 | I39: 0.7 | J39: 1 | K39: 0.9 | L39: 0.9 | M39: 0.925 | N39: 1.2025 | O39: kyllä | P39: 9050 | Q39: erinomainen | R39: kyllä | S39: ei | T39: ei | U39: NT | V39: Kuviolla painanne, jossa osin piilossa virtaava noro (376) ja saniaislehtoa. Jo aiemmin tunnistettu METE-kohteeksi. Yläpuolella, kuvion eteläpuolella olevalla louhoksella saattaa olla vaikutusta noron vesitalouteen.
A40: 412 | B40: M01.02.05 Kosteat keskiravinteiset lehdot | C40: 85 | D40: 0.6 | E40: 0.7 | F40: 0.8 | G40: 0.8 | H40: 0.9 | I40: 0.6 | J40: 1 | K40: 0.7 | L40: 0.8 | M40: 0.7916666667 | N40: 0.475 | O40: kyllä | P40: 9050 | Q40: hyvä, poikkeama ihmistoiminnan aiheuttama | R40: ei | S40: ei | T40: ei | U40: NT | V40: Entiselle pellolle jo vuosikymmeniä sitten syntynyt ryteikköinen lehto. S-reunalla vanha pelto-oja (?) jonka pohjalla kirkasta vettä. Isoalvejuuri runsas, suokelttoa, leskenlehteä, mesiangervoa. Saattaa olla pohjavesivaikutteinen. Itälaidalla vanha kiviaita.
A41: 413 | B41: M01.02.06 Kosteat runsasravinteiset lehdot | C41: 90 | D41: 1.1 | E41: 0.7 | F41: 0.6 | G41: 0.3 | H41: 0.6 | I41: 0.5 | J41: 1 | K41: 0.7 | L41: 0.8 | M41: 0.6166666667 | N41: 0.6783333333 | O41: ei | P41: ei | Q41: ei | R41: ei | S41: ei | T41: ei | U41: VU | V41: Entiselle pellolle syntynyt harvapuustoinen, kulttuurivaikutteinen lehto. Ko valtainen. Vadelma, metsäkorte ja mesiangervo runsaita, paikoin esim nurmitädykettä. Harvennettu,koneuria, mutakuoppia. Kostea juotti itään.
A42: 445 | B42: M01.02.06 Kosteat runsasravinteiset lehdot | C42: 100 | D42: 0.5 | E42: 0.4 | F42: 0.7 | G42: 0.3 | H42: 0.7 | I42: 0.2 | J42: 1 | K42: 0.7 | L42: 0.8 | M42: 0.575 | N42: 0.2875 | O42: kyllä | P42: ei | Q42: ei | R42: ei | S42: ei | T42: ei | U42: VU | V42: Tulkittu. Entiselle pellolle kehittynyt ilmeisesti kostean lehdon kasvillisuutta. Ollut vielä 1990-luvulla peltoa, tai osin niittyä, ojitukset selvästi vielä näkyvissä. Rajautuu VL- ja METE-kohteeseen luonnontilaisen kaltainen noro (293). Havaittu jo aiemmin täyttävän METSO-ohjelman III-luokan perusteet. Tuolloin tulkittu olevan mahdollisesti puustoinen perinnebiotooppi. Tästä ei varmuutta, koska ei tarkempaa tietoa lajihavainnoista.
A43: 446 | B43: M01.02.06 Kosteat runsasravinteiset lehdot | C43: 100 | D43: 0.7 | E43: 0.5 | F43: 0.6 | G43: 0.3 | H43: 0.7 | I43: 0.3 | J43: 1 | K43: 0.6 | L43: 0.7 | M43: 0.5666666667 | N43: 0.3966666667 | O43: ei | P43: ei | Q43: ei | R43: ei | S43: ei | T43: ei | U43: VU | V43: Tulkittu. Entistä peltoa.Varttunut puusto pitkin entisiäpelto-ojia riveissä. Aukkoinen.
A44: 453 | B44: M01.02.05 Kosteat keskiravinteiset lehdot | C44: 90 | D44: 0.6 | E44: 0.8 | F44: 0.8 | G44: 0.7 | H44: 0.7 | I44: 0.6 | J44: 1 | K44: 0.6 | L44: 0.7 | M44: 0.7416666667 | N44: 0.445 | O44: ei | P44: ei | Q44: ei | R44: ei | S44: ei | T44: ei | U44: VU | V44: Tulkittu. Mahdollinen METSO-kohde! Kuviolla VL-kohde noro (454).

Sheet Muut lehdot ja erityismetsät
A1: 8.3.2b. Lehdot ja jalopuulehdot, Harjumetsien valorinteet, Sisämaan dyynimetsät, Serpentiinivaikutteisen maapohjan metsät
A4: Mittarit | F4: Kehitysluokka | G4: Luontotyypille ominaisten puuston rakennepiirteiden esiintyminen: eri-ikäisyys, latvuskerroksellisuus, satunnainen tilajakauma, palojäljet, monilajisuus | H4: Luontotyypille ominainen lahopuun määrä3 ja rakennepiirteet: jatkumo, järeä lahopuu, monilajisuus | I4: Kasvillisuuden (putkilokasvit ja/tai jäkälät ja/tai sammalet) edustavuus: lajisto ja kasvillisuuden rakenne (runsaus, peittävyys, lajien/lajiryhmien runsaussuhteet | J4: Järeiden puiden määrä | K4: Haitalliset vieraskavilajit | L4: Muu ihmisvaikutus
A5: Mittarin suhteellinen painokerroin | F5: 2 | G5: 2 | H5: 2 | I5: 2 | J5: 1 | K5: 1 | L5: 1
C7: Tee tarvitatessa usempi rivi samalle kuviolle, jos useita tämän taulukon otsikon mukaisia luontotyyppejä!
A8: Kuvionro | B8: apusarake | C8: LuTu-luontotyyppi (koodi) | D8: LuTu-tyypin % kuviosta | E8: Kuvion pinta-ala, ha | F8: Mittarin arvo (0,1 -1,0) | G8: Mittarin arvo (0,1 -1,0) | H8: Mittarin arvo (0,1 -1,0) | I8: Mittarin arvo (0,1 -1,0) | J8: Mittarin arvo (0,1 -1,0) | K8: Mittarin arvo (0,1 -1,0) | L8: Mittarin arvo (0,1 -1,0) | M8: Luonnonarvovastaavuus | N8: Luonnonarvohehtaarit | O8: METSO kohde | P8: NATURA-tyyppi | Q8: Natura-edustavuusluokka | R8: mete | S8: vesilakikohde | T8: LSL 64-65 § kohde | U8: uhex | V8: Muuta
A9: 17 | C9: M01.02.03 Tuoreet keskiravinteiset lehdot | D9: 70 | E9: 1.4 | F9: 0.6 | G9: 0.5 | H9: 0.3 | I9: 0.7 | J9: 0.3 | K9: 0.6 | L9: 0.8 | M9: =(2*SUM(F9:I9)+SUM(J9:L9))/(2*COLUMNS(F9:I9)+COLUMNS(J9:L9)) -> 0.5363636364 | N9: =(PRODUCT(E9,M9)) -> 0.7509090909 | O9: ei | P9: lehdot (9050) | Q9: Hyvä, poikkeama ihmistoiminnan aiheuttama | R9: ei | S9: ei | T9: ei | U9: VU | V9: Entinen talon paikka, ks. Ilmakuva vv 1949. Ollut niittypeltoa jne. (mv-tieto: puuston keski-ikä 51 v), havupuuvaltainen, mutta myös vanhoja koivuja. Alikasvoksena mm. pihlajaa, myös metsäruusu. Saattaisi olla hyvä kehittyvä kohde, esim METSO-kohteeksi.
A10: 67 | B10: Metsokohde, puronvarsimetsää, monilajista, myös vanhaa, lahopuuta | C10: M01.02.03 Tuoreet keskiravinteiset lehdot | D10: 70 | E10: 2.66 | F10: 0.8 | G10: 0.9 | H10: 0.8 | I10: 0.9 | J10: 0.8 | K10: 1 | L10: 0.9 | M10: 0.8636363636 | N10: 2.297272727 | O10: kyllä | P10: lehdot (9050) | Q10: Hyvä, poikkeama ihmistoiminnan aiheuttama | R10: OSITTAIN. Lähteiden, purojen ja pysyvän vedenjuoksu-uoman muodostavien norojen sekä pienten lampien välittömät lähiympäristöt | T10: ei | U10: VU | V10: Noronvarsilehto, paikoin runsaasti lahopuuta. Monilajinen puusto.Ehdotettu METSO- kohteeksi, myös metsälaikohteena Kuopion metsävaratiedoissa. Koko kuvio metekohteena liian iso, mutta koko noronvarsi on 10-20 metrin leveydeltä metsälakikohde. Uomaa on oiottu, mutta paikoin hyvin luonnotilaisen oloinen, esim kiviä, lahopuuta jne, käyntihetkellä uoma oli kuitenkin pääosin kuiva. Osa kuviosta kosteaa lehtoa (toisella välilehdellä). Osin hieman sositunuttakin, sekä lehtomaista kangasta.
A11: 91 | B11: nuori, harvennettu kuusivaltainen lehtorinne | C11: M01.02.03 Tuoreet keskiravinteiset lehdot | D11: 90 | E11: 0.9 | F11: 0.5 | G11: 0.6 | H11: 0.2 | I11: 0.7 | J11: 0.1 | K11: 1 | L11: 0.5 | M11: 0.5090909091 | N11: 0.4581818182 | O11: ei | P11: ei | R11: ei | S11: ei | T11: ei | U11: VU | V11: vaihettuu länteen lehtom kankaaksi, pohjoisosa runsasravinteisempi: lehtokuusama, puna-ailakki, lehtotesma
A12: 93 | B12: Nuori kuusivaltainen turvelehto, vanhalle pellolle syntynyt, ihmisvaikutteinen | C12: M01.02.03 Tuoreet keskiravinteiset lehdot | D12: 95 | E12: 0.4 | F12: 0.5 | G12: 0.6 | H12: 0.5 | I12: 0.3 | J12: 0.1 | K12: 1 | L12: 0.2 | M12: 0.4636363636 | N12: 0.1854545455 | O12: ei | P12: ei | R12: ei | S12: ei | T12: ei | U12: VU | V12: puna-ailakki, mesiangervo, vadelma, metsäkurjenpolvi, hirenporras, nokkonen paikoin. Paljasta, karikkeista maata
A13: 102 | B13: nuori, kuusivaltainen vanhalle pellolle syntynyt lehto, varttuneita koivuja | C13: M01.02.03 Tuoreet keskiravinteiset lehdot | D13: 85 | E13: 0.7 | F13: 0.5 | G13: 0.6 | H13: 0.2 | I13: 0.6 | J13: 0.1 | K13: 1 | L13: 0.3 | M13: 0.4727272727 | N13: 0.3309090909 | O13: ei | P13: ei | R13: ei | S13: ei | T13: ei | U13: VU | V13: Varttuneita lehtipuita erityisesti vanhojen ojien reunamilla, kenttäkerroksessa mm. oravanmarja, puna-ailakki, mesiangervo, metsäkurjenpolvi, metsäalvejuuri, suo-orvokki metsätähti, metsäkorte.
A14: 104 | B14: Varttunut, sekapuustoinen kuiva, keskiravinteinen lehto VRT | C14: M01.02.01 Kuivat keskiravinteiset lehdot | D14: 50 | E14: 0.9 | F14: 0.8 | G14: 0.8 | H14: 0.7 | I14: 1 | J14: 0.7 | K14: 1 | L14: 0.8 | M14: 0.8272727273 | N14: 0.7445454545 | O14: kyllä | P14: lehdot (9050) | Q14: hyvä | R14: ei | S14: ei | T14: ei | U14: NT | V14: Ehdotettu aiemmin METSO-kohteeksi, vahaa ja lahoa lehtipuuta, liito-oravan ruokailualue, liito-oravahavaintoja, erirakenteinen. Myös lepakoille sopiva.
A15: 106 | B15: Varttunut, harvennettu koivuvaltainen lehto | C15: M01.02.01 Kuivat keskiravinteiset lehdot | D15: 60 | E15: 0.3 | F15: 0.7 | G15: 0.8 | H15: 0.5 | I15: 0.9 | J15: 0.5 | K15: 1 | L15: 0.7 | M15: 0.7272727273 | N15: 0.2181818182 | O15: ei | P15: lehdot (9050) | Q15: ei merkittävä, poikkeama ihmistoiminnan aiheuttama | R15: ei | S15: ei | T15: ei | U15: NT | V15: Osa koivuista ja haavoista järeitä, mutta harvennettu rajusti ja lahopuuta vähän. Alikasvoksena runsaasti haapaa. Liiturihavainto 2015, soveltuu yhä lajille. Loput kuviosta lehtomaista kangasta.
A16: 108 | B16: Ihmisvaikutteinen lehto vanhan Ratapohjan ympäristössä | C16: M01.02.03 Tuoreet keskiravinteiset lehdot | E16: 1.3 | F16: 0.6 | G16: 0.8 | H16: 0.7 | I16: 0.9 | J16: 0.5 | K16: 0.9 | L16: 0.6 | M16: 0.7272727273 | N16: 0.9454545455 | O16: ei | P16: ei | Q16: ei | R16: ei | S16: ei | T16: ei | U16: VU | V16: Ratapohjan ulkoilureitti kallioleikauksineen osin kuviolla. Vanha talonpaikka kuvion pohjoispäässä. Talonpaikan metsä erityisen monimuotoista ja rehevää lehtoa, puusto varttuneempaa, kuin muualla kuviolla. Runsaita mm. kielo, metsäkurjenpolvi, käenkali, oravanmarja, lillukka, metsätähti, metsäalvejuuri, metsäimarre, vadelma, mesiangervo ja puna-ailakki. Tuoreiden ja kuivien lehtojen kasvillisuus vaihettuu ulkoilureitin reunoilla toreiden ja kosteiden niittyjen kasvillisuudeksi. Paikoin metsäruusua, näsiää, mustaherukkaa, muutama koiranheisi ja talopaikan luona karviainen. Ulkoilureitin pintareilla ja kallioleikkauksessa paikoin hietapitkäpalkoa ja peurankelloa.Sopii liito-oravan ja lepakoiden elinympäristöksi.
A17: 113 | B17: Ihmisvaikutteinen lehto vanhan Ratapohjan ympäristössä | C17: M01.02.03 Tuoreet keskiravinteiset lehdot | D17: 60 | E17: 0.3 | F17: 0.5 | G17: 0.6 | H17: 0.3 | I17: 0.5 | J17: 0.4 | K17: 0.9 | L17: 0.3 | M17: 0.4909090909 | N17: 0.1472727273 | O17: ei | P17: ei | Q17: ei | R17: ei | S17: ei | T17: ei | U17: VU | V17: Vanha Ratapohja nousee kuviolla korkean, sammaloituneen kivipengerryksen päälle, metsäisen rinteet ulkoilureitin molemmin puolin. Kuviolla vesilakikohde: luonnontilaisen kaltainen noro alittaa Ratapohjan länsi-itäsuunnassa.Noro alittaa tässä Ratapohjan sukeltamalla vanhan kiveyksen alle Puusto kuusivaltainen, myös rauduskoivua. Aiempia liito-oravahavaintoja. Kuvio rajautuu osin pohjoisessa luonnonsuojelualueeseen ( uhanalaisen lajin suojelualue Ratapohjan pengermän kedolla kuviolla 114). HUOM! Kuviolta ei kartoitettu Ratapohjan E-puolelle jäävää osaa.
A18: 125 | B18: Varttunut sekapuustoinen reunuslehto | C18: M01.02.03 Tuoreet keskiravinteiset lehdot | D18: 99 | E18: 0.8 | F18: 0.6 | G18: 0.9 | H18: 0.6 | I18: 0.8 | J18: 0.4 | K18: 1 | L18: 0.8 | M18: 0.7272727273 | N18: 0.5818181818 | O18: ei | P18: ei | Q18: ei | R18: ei | S18: ei | T18: ei | U18: VU | V18: Osana Korpelan metsien monimuotoista kokonaisuutta merkittävä, vaikka reunavaikutuksen vuoksi ei voida katsoa olevan luonnontilainen. Puuston koostumus vaihtelee, paikoin lehtipuvaltainen, paikoin pieniä tiheikköjä ja ryteikköisyyttä. Käenkaali, oravanmarja, lillukka, kielo, ahomansikka, runsaita, paikoin tuomi, vadelma, näsiä, nokkonen, metsäkorte, metsäalvejuuri, kultapiisku, metsäorvokki, korpiorvokki, korpi-imarre, hiirenporras. Liittyy METSO-kohteeseen (122,123,124)
A19: 134 | B19: Lehtipuuvaltainen ruderaattilehto | C19: M01 Lehdot | D19: 90 | E19: 3.9 | F19: 0.4 | G19: 0.5 | H19: 0.4 | I19: 0.3 | J19: 0.1 | K19: 0.4 | L19: 0.3 | M19: 0.3636363636 | N19: 1.418181818 | O19: ei | P19: ei | Q19: ei | R19: ei | S19: ei | T19: ei | U19: VU | V19: Ei enää sovi ruderaatin määritelmään, vanhan kaatopaikka-alueen ruderaatille kehittynyt rehevä, lehtipuuvaltainen lehto. Ollut jätevesialtaita 1990-luvulla, jotka täytetty. Ei myöskään LuTu. Pajut, hale, kyläkellukka, nokkonen, vadelma, rönsyleinikki ja ranta-alpi runsaita.
A20: 188 | B20: Lehtipuuvaltainen taimikko vanhalla peltomaalla | C20: M01 Lehdot | D20: 90 | E20: 0.9 | F20: 0.5 | G20: 0.7 | H20: 0.6 | I20: 0.5 | J20: 0.4 | K20: 0.8 | L20: 0.6 | M20: 0.5818181818 | N20: 0.5236363636 | O20: kyllä | P20: lehdot (9050) | Q20: ei merkittävä, poikkeama ihmistoiminnan aiheuttama | R20: ei | S20: ei | T20: ei | U20: VU | V20: Tiheä, lehtipuuvaltainen lehto Liukon entisellä peltomaalla. Osin käsitelty, puusto paikoin nuorempaa, paikoin varttunutta. Puustollisesti arvokas, kenttäkerros heikommin kehittynyt. Runsaasti liito-oravahavaintoja vuodelta 2015.
A21: 245 | B21: Lehtipuuvaltainen lehto vanhalla peltomaalla | C21: M01 Lehdot | D21: 99 | E21: 0.4 | F21: 0.3 | G21: 0.5 | H21: 0.2 | I21: 0.7 | J21: 0.1 | K21: 1 | L21: 0.5 | M21: 0.4545454545 | N21: 0.1818181818 | O21: ei | P21: lehdot (9050) | Q21: ei merkittävä, poikkeama ihmistoiminnan aiheuttama | R21: ei | S21: ei | T21: ei | U21: VU | V21: Ollut jonkinlainen kääntöpaikka ja varastointialue
A22: 261 | B22: Erirakenteinen metsä | C22: M01.02.03 Tuoreet keskiravinteiset lehdot | D22: 85 | E22: 1.2 | F22: 0.7 | G22: 0.8 | H22: 0.7 | I22: 1 | J22: 0.2 | K22: 1 | L22: 0.8 | M22: 0.7636363636 | N22: 0.9163636364 | O22: ei | P22: lehdot (9050) | Q22: merkittävä | R22: ei | S22: ei | T22: ei | U22: VU | V22: Osa kuviosta tuoretta kosteampaa, metsäkorte, hiireporras, osa kuivempaa OMT-kangasta.
A23: 328 | B23: Varttunut ku valtainen metsä | C23: M01.02.03 Tuoreet keskiravinteiset lehdot | D23: 90 | E23: 0.5 | F23: 0.7 | G23: 0.8 | H23: 0.7 | I23: 1 | J23: 0.7 | K23: 0.9 | L23: 0.9 | M23: 0.8090909091 | N23: 0.4045454545 | O23: kyllä | P23: lehdot (9050) | Q23: hyvä | R23: ei | S23: ei | T23: ei | U23: VU | V23: Vaihettuu kosteampaan rinnettä alas. Osa puista vanhempia.
A24: 331 | B24: Lehtipuuvaltainen vaihteleva lehto | C24: M01.02.03 Tuoreet keskiravinteiset lehdot | D24: 80 | E24: 1.3 | F24: 0.5 | G24: 0.7 | H24: 0.3 | I24: 0.7 | J24: 0.3 | K24: 0.8 | L24: 0.6 | M24: 0.5545454545 | N24: 0.7209090909 | O24: kyllä | P24: lehdot (9050) | Q24: ei merkittävä, poikkeama ihmistoiminnan aiheuttama | R24: ei | S24: ei | T24: ei | U24: VU | V24: Valtapuu vaihdellen ha, ko, ku. Haapa runsas, jokunen järeä. Reunavaikutusta.
A25: 421 | B25: Kallionaluslehto | C25: M01.02.03 Tuoreet keskiravinteiset lehdot | D25: 35 | E25: 0.3 | F25: 1 | G25: 0.9 | H25: 0.8 | I25: 1 | J25: 1 | K25: 1 | L25: 0.9 | M25: 0.9363636364 | N25: 0.2809090909 | O25: kyllä | P25: lehdot (9050) | Q25: erinomainen | R25: kyllä | S25: ei | T25: ei | U25: VU | V25: Osa monimuotoista vaihtelevaa pientä kuviota. Loput kuviosta MT-kangasta ja kalliometsää. Koko kuvio ympäristöstään selvästi erottuva. Lehdossa lehtokuusama runsas, suuria haapoja, joista yksi koloinen ja laho.

Sheet Kalliojyrkänteet
A1: 9.3.2. Kalliojyrkänteet
A4: Mittarit | D4: Kasvillisuuden (putkilokasvit ja/tai jäkälät ja/tai sammalet) edustavuus: lajisto ja kasvillisuuden rakenne (runsaus, peittävyys, lajien/lajiryhmien runsaussuhteet) | E4: Jyrkänteen morfologinen monimuotoisuus | F4: Varjostus ja mikroilmaston vakaus | G4: Jyrkänne- ja aluspuusto | H4: Vaatelias lajisto
A5: Mittarin suhteellinen painokerroin:
A6: karut | B6: varjoisat | C6: puustoiset | D6: 2 | E6: 2 | F6: 1 | G6: 1 | H6: ei sovelleta | K6: Luonnonarvohehtaari lasketaan ekologinen tila x pinta-ala
A7: karut | B7: varjoisat | C7: avoimet | D7: 2 | E7: 2 | F7: 1 | G7: ei sovelleta | H7: ei sovelleta
A8: karut | B8: ei-varjoisat | C8: puustoiset | D8: 2 | E8: 2 | F8: ei sovelleta | G8: 1 | H8: ei sovelleta
A9: karut | B9: ei-varjoisat | C9: avoimet | D9: 2 | E9: 2 | F9: ei sovelleta | G9: ei sovelleta | H9: ei sovelleta
A10: keskiravinteiset | B10: varjoisat | C10: puustoiset | D10: 2 | E10: 1 | F10: 1 | G10: 1 | H10: ei sovelleta
A11: keskiravinteiset | B11: varjoisat | C11: avoimet | D11: 2 | E11: 1 | F11: 1 | G11: ei sovelleta | H11: ei sovelleta
A12: keskiravinteiset | B12: ei-varjoisat | C12: puustoiset | D12: 2 | E12: 1 | F12: ei sovelleta | G12: 1 | H12: ei sovelleta
A13: keskiravinteiset | B13: ei-varjoisat | C13: avoimet | D13: 2 | E13: 1 | F13: ei sovelleta | G13: ei sovelleta | H13: ei sovelleta
A14: kalkki- tai serpentiini | B14: varjoisat | C14: puustoiset | D14: 2 | E14: 1 | F14: 1 | G14: 1 | H14: 2
A15: kalkki- tai serpentiini | B15: varjoisat | C15: avoimet | D15: 2 | E15: 1 | F15: 1 | G15: ei sovelleta | H15: 2
A16: kalkki- tai serpentiini | B16: ei-varjoisat | C16: puustoiset | D16: 2 | E16: 1 | F16: ei sovelleta | G16: 1 | H16: 2
A17: kalkki- tai serpentiini | B17: ei-varjoisat | C17: avoimet | D17: 2 | E17: 1 | F17: ei sovelleta | G17: ei sovelleta | H17: 2
A19: Laske luontoarvohehtaarit erikseen jokaiselle tyypille.
A20: Kuvionro | B20: LuTu-luontotyyppi (koodi) | C20: Kuvion pinta-ala, ha | D20: Mittarin arvo (0,1 -1,0) | E20: Mittarin arvo (0,1 -1,0) | F20: Mittarin arvo (0,1 -1,0) | G20: Mittarin arvo (0,1 -1,0) | H20: Mittarin arvo (0,1 -1,0) | I20: ekologinen tila (luonnonarvovastaavuus) | J20: Luonnonarvohehtaarit | K20: METSO kohde? | L20: NATURA-tyyppi? | M20: Natura-edustavuusluokka | N20: mete? | O20: vesilakikohde? | P20: LSL 64-65 § kohde? | Q20: uhex | R20: Muuta
A21: 13 | B21: K01.07 Karut varjoisat kalliojyrkänteet | C21: 0.3 | D21: 0.9 | E21: 0.5 | F21: 0.4 | G21: 0.7 | H21: ei sovelleta | I21: =(2*SUM(D21:E21)+SUM(F21:G21))/(2*COLUMNS(D21:E21)+COLUMNS(F21:G21)) -> 0.65 | J21: =(PRODUCT(C21,I21)) -> 0.195 | K21: ei | L21: silikaattikalliot (8220) | M21: Hyvä, poikkeama ihmistoiminnan aiheuttama | N21: ei | O21: ei | P21: ei | Q21: NT | R21: esim. kallio-omensammalta
A22: 14 | B22: K01.07 Karut varjoisat kalliojyrkänteet | C22: 1.3 | D22: 0.9 | E22: 0.5 | F22: 0.4 | G22: 0.7 | H22: ei sovelleta | I22: =(2*SUM(D22:E22)+SUM(F22:G22))/(2*COLUMNS(D22:E22)+COLUMNS(F22:G22)) -> 0.65 | J22: =(PRODUCT(C22,I22)) -> 0.845 | K22: ei | L22: silikaattikalliot (8220) | M22: Hyvä, poikkeama ihmistoiminnan aiheuttama | N22: ei | O22: ei | P22: ei | Q22: NT
A23: 15 | B23: K01.07 Karut varjoisat kalliojyrkänteet | C23: 0.8 | D23: 0.9 | E23: 0.5 | F23: 0.4 | G23: 0.7 | H23: ei sovelleta | I23: 0.65 | J23: =(PRODUCT(C23,I23)) -> 0.52 | K23: ei | L23: silikaattikalliot (8220) | M23: Hyvä, poikkeama ihmistoiminnan aiheuttama | N23: ei | O23: ei | P23: ei | Q23: NT

Sheet Karut avokalliot
A1: 9.3.1b. Karut avokalliot
A4: Mittarit | E4: Kasvillisuuden (putkilokasvit ja/tai jäkälät ja/tai sammalet) edustavuus: lajisto ja kasvillisuuden rakenne (runsaus, peittävyys, lajien/lajiryhmien runsaussuhteet) | F4: Kallion morfologinen monimuotoisuus | G4: Muu ihmisvaikutus | H4: Puusto
A5: Mittarin suhteellinen painokerroin | E5: 2 | F5: 2 | G5: 1 | H5: 1
B7: Tee tarvitatessa usempi rivi samalle kuviolle, jos useampia karujen avokallioiden luontotyyppejä!
A8: Kuvionro | B8: LuTu-luontotyyppi (koodi) | C8: LuTu-tyypin % kuviosta | D8: Kuvion pinta-ala, ha | E8: Mittarin arvo (0,1 -1,0) | F8: Mittarin arvo (0,1 -1,0) | G8: Mittarin arvo (0,1 -1,0) | H8: Mittarin arvo (0,1 -1,0) | I8: Ekologinen tila/ Luonnonarvovastaavuus | J8: Luonnonarvohehtaarit | K8: METSO kohde | L8: NATURA-tyyppi | M8: Natura-edustavuusluokka | N8: mete-kohde (ML 10 §) | O8: vesilakikohde (VL 11 §) | P8: LSL 64-65 § kohde | Q8: uhex | R8: Muuta
A9: 20 | B9: K01.05 Karut poronjäkälä-sammalkalliot | C9: 99 | D9: 0.1 | E9: 0.3 | F9: 0.2 | G9: 0.3 | H9: 0 | I9: =(2*SUM(E9:F9)+SUM(G9))/(2*COLUMNS(E9:F9)+COLUMNS(G9)) -> 0.26 | J9: =(PRODUCT(D9,I9)) -> 0.026 | K9: ei | L9: ei | M9: ei | N9: Karukkokankaita puuntuotannollisesti vähätuottoisemmat hietikot, kalliot, kivikot ja louhikot, joiden ominaispiirre on harvahko puusto. | O9: ei | P9: ei | Q9: LC | R9: Kohteella kananverkkorulla sekä kangas"koreja"

Sheet karuimmat- ja kalliometsät
A1: 8.3.3. Karukkokankaat, Kalliometsät, Jäkäläturvekankaat
A4: Mittarit | E4: Kehitysluokka | F4: Luontotyypille ominaisten puuston rakennepiirteiden esiintyminen: eri-ikäisyys, latvuskerroksellisuus, satunnainen tilajakauma, palojäljet, monilajisuus | G4: Luontotyypille ominainen lahopuun määrä ja rakennepiirteet: jatkumo, järeä lahopuu, monilajisuus | H4: Kasvillisuuden (putkilokasvit ja/tai jäkälät ja/tai sammalet) edustavuus: lajisto ja kasvillisuuden rakenne (runsaus, peittävyys, lajien/lajiryhmien runsaussuhteet | I4: Järeiden puiden määrä | J4: Haitalliset vieraskavilajit | K4: Muu ihmisvaikutus
A5: Mittarin suhteellinen painokerroin | E5: 2 | F5: 2 | G5: 2 | H5: 1 | I5: 1 | J5: 1 | K5: 1
B7: Tee tarvitatessa usempi rivi samalle kuviolle, jos sekä karukkokankaiden, kalliometsien ja/tai jäkälakankaan luontotyyppejä!
A8: Kuvionro | B8: LuTu-luontotyyppi (koodi) | C8: LuTu-tyypin % kuviosta | D8: Kuvion pinta-ala, ha | E8: Mittarin arvo (0,1 -1,0) | F8: Mittarin arvo (0,1 -1,0) | G8: Mittarin arvo (0,1 -1,0) | H8: Mittarin arvo (0,1 -1,0) | I8: Mittarin arvo (0,1 -1,0) | J8: Mittarin arvo (0,1 -1,0) | K8: Mittarin arvo (0,1 -1,0) | L8: Ekologinen tila/Luonnonarvovastaavuus | M8: Luonnonarvohehtaarit | N8: METSO kohde? | O8: NATURA-tyyppi? | P8: Natura-edustavuusluokka | Q8: mete? | R8: vesilakikohde? | S8: LSL 64-65 § kohde? | T8: uhex | U8: Muuta
A9: 12 | B9: M03.04 Kalliometsät | C9: 80 | D9: 0.7 | E9: 0.9 | F9: 0.9 | G9: 0.6 | H9: 1 | I9: 1 | J9: 1 | K9: 1 | L9: =(2*SUM(E9:G9)+SUM(H9:K9))/(2*COLUMNS(E9:G9)+COLUMNS(H9:K9)) -> 0.88 | M9: =(PRODUCT(D9,L9)) -> 0.616 | N9: kyllä, Metso-taulukossa | O9: Luonnonmetsät (9010) | P9: hyvä, poikkeama ihmistoiminnan ja luontaisten syiden aiheuttama | Q9: ei | R9: ei | S9: ei | T9: NT | U9: Puolta kuviosta ei ole hakattu ilmeisesti lainkaan sitten 1900-luvun alun, toiselta puolen ilm pientä poimintahakkuuta, joka sekin vanhaa perua. keski-ikä 91 vuotta mv-tiedoissa, mutta osa puustosta pitempään ollut hakkaamatta, jo 1900 -luvun alusta (ks esim. vanhat ilmakuvat), lahopuuta kuitenkin niukasti. Kilpikaarnamäntyjä, myös nuorta haapaa.
A10: 355 | B10: M03.04 Kalliometsät | C10: 90 | D10: 0.9 | E10: 0.9 | F10: 0.9 | G10: 0.5 | H10: 1 | I10: 1 | J10: 1 | K10: 1 | L10: 0.86 | M10: 0.774 | N10: kyllä, Metso-taulukossa | O10: Luonnonmetsät (9010) | P10: hyvä, poikkeama ihmistoiminnan ja luontaisten syiden aiheuttama | Q10: ei | R10: ei | S10: ei | T10: NT | U10: Puusto MV-tietojen mukaan 120-vuotiasta. Komeita kilpikaarnaisia mäntyjä, suuria haapoja reunamilla. Kataja runsas kallion päällä, samoin nuori kuusi taaempana. Kallioinen mäki laskeutuu jyrkkänä länteen. Lahopuuta niukalti. Myös maisema-arvoja.
A11: 383 | B11: M03.04 Kalliometsät | C11: 100 | D11: 0.7 | E11: 0.9 | F11: 0.7 | G11: 0.6 | H11: 1 | I11: 1 | J11: 1 | K11: 0.6 | L11: 0.8 | M11: 0.56 | N11: kyllä, Metso-taulukossa | O11: Luonnonmetsät (9010) | P11: merkittävä | Q11: ei | R11: ei | S11: ei | T11: NT | U11: Kilpikaarnamäntyjä, pari keloa ja muutama keloutunut maapuu. Muuten lahopuuta niukalti. Vanhaa puustoa ja maisema-arvoja. Kalliometsän laella uudehko, puurakenteinen laavu ja viereisellä kuviolla (384) ulkokäymälä. Maasto kulunut laavun ympärillä, ei roskia. Muutoin pohjakerros suurelta osin rahkainen, variksenmarjaa kenttäkerroksessa puolukan ja mustikan seurassa, kanervaa laella. Tunnistettu METSO-ohjelmaan sopivaksi kohteeksi jo aiemmissa luontoselvityksissä ja mainittu metson soidinpaikaksi (Kröger 2014).
A12: 392 | B12: M03.04 Kalliometsät | C12: 98 | D12: 0.2 | E12: 0.4 | F12: 0.5 | G12: 0.3 | H12: 1 | I12: 0.8 | J12: 1 | K12: 1 | L12: 0.62 | M12: 0.124 | N12: ei | O12: ei | P12: ei | Q12: kyllä | R12: ei | S12: ei | T12: NT | U12: Pieni kalliopaljastuma, jonka korkeimmalla kohdalla ketun ulosteita. W-reunalla pikkuinen jyrkänne. Lakiosaa peittävät poronjäkälät ja puolukka. Muutama kilpikaarnamänty ja kelo kuvion S-osassa, muutoin puusto nuorta.
A13: 395 | B13: M03.04 Kalliometsät | C13: 90 | D13: 0.2 | E13: 0.4 | F13: 0.6 | G13: 0.4 | H13: 1 | I13: 0.3 | J13: 1 | K13: 1 | L13: 0.61 | M13: 0.122 | N13: ei | O13: ei | P13: ei | Q13: ei | R13: ei | S13: ei | T13: NT | U13: Pieni kalliopaljastuma.
A14: 402 | B14: M03.04 Kalliometsät | C14: 99 | D14: 0.1 | E14: 0.6 | F14: 0.6 | G14: 0.6 | H14: 1 | I14: 0.8 | J14: 1 | K14: 1 | L14: 0.74 | M14: 0.074 | N14: ei | O14: ei | P14: ei | Q14: kyllä | R14: ei | S14: ei | T14: NT | U14: Muutama kilpikaarnamänty, kelo ja lahopökkelö, pari suurta kuusta reunalla. Muu puusto nuorempaa. Jäkäläistä kalliopaljastumaa.
A15: 421 | B15: M03.04 Kalliometsät | C15: 25 | D15: 0.3 | E15: 1 | F15: 0.8 | G15: 0.8 | H15: 1 | I15: 1 | J15: 1 | K15: 1 | L15: 0.92 | M15: 0.276 | N15: kyllä, Metso-taulukossa | O15: Luonnonmetsät (9010) | P15: hyvä | Q15: kyllä | R15: ei | S15: ei | T15: NT | U15: Kilpikaarnamäntyjä ja järeitä kuusia. Osa pientä, monipuolista kuviota. Loput kuviosta vanhaa MT-kangasta ja tuoretta lehtoa.

Sheet Puustoiset perinnebiotoopit
A1: 10.3.3. Puustoiset perinnebiotoopit
A4: Mittarit | E4: Kasvillisuuden (putkilokasvit ja/tai jäkälät ja/tai sammalet) edustavuus: lajisto ja kasvillisuuden rakenne (runsaus, peittävyys, lajien/lajiryhmien runsaussuhteet) | F4: Huomionarvoinen lajisto | G4: Rehevöityminen ja miinuslajit | H4: Puuston ja pensaston edustavuus | I4: Ei rehevöittävä niitto tai laidunnus, tai muu vastaava hoito | J4: Umpeenkasvu | K4: Haitalliset vieraskasvilajit
A5: Mittarin suhteellinen painokerroin | E5: 2 | F5: 2 | G5: 2 | H5: 2 | I5: 1 | J5: 1 | K5: 1
B7: Tee tarvitatessa usempi rivi samalle kuviolle, jos useampia puustoisten perinnebiotooppien luontotyyppejä!
A8: Kuvionro | B8: LuTu-luontotyyppi (koodi) | C8: LuTu-tyypin % kuviosta | D8: Kuvion pinta-ala, ha | E8: Mittarin arvo (0,1 -1,0) | F8: Mittarin arvo (0,1 -1,0) | G8: Mittarin arvo (0,1 -1,0) | H8: Mittarin arvo (0,1 -1,0) | I8: Mittarin arvo (0,1 -1,0) | J8: Mittarin arvo (0,1 -1,0) | K8: Mittarin arvo (0,1 -1,0) | L8: Luonnonarvovastaavuus | M8: Luonnonarvohehtaarit | N8: METSO kohde | O8: NATURA-tyyppi | P8: Natura-edustavuusluokka | Q8: mete | R8: vesilakikohde | S8: LSL 64-65 § kohde | T8: Uhex | U8: Muuta
A9: 121 | B9: P12.03 Havumetsälaitumet | C9: 60 | D9: 0.3 | E9: 0.5 | F9: 0.2 | G9: 1 | H9: 0.7 | I9: 0.5 | J9: 0.9 | K9: 1 | L9: =(2*SUM(E9:H9)+SUM(I9:K9))/(2*COLUMNS(E9:H9)+COLUMNS(I9:K9)) -> 0.6545454545 | M9: =(PRODUCT(D9,L9)) -> 0.1963636364 | O9: ei | P9: ei | Q9: ei | R9: ei | S9: ei | T9: CR | U9: Liittyy muihin Korpelan arvokkaisiin luontotyyppikuvioihin, METSO-, vesilaki- ja METE-kohteisiin. Puusto vanhaa kuusikkoa. Ei tarkkaa tietoa kasvilajistosta. Kenttäkerros eroaa kuitenkin läheiden OMT metsän pohjasta. Ei tietoa laidunnustilanteesta (laidunnusta ollut kuitenkin aitarakenteista päätellen vielä joku aika sitten). Muistiinpanot riittämättömät.

Sheet Taul23
